{"text_format":"1","workbook":"xlsx","n_sheets":12,"sheets":["Title","Key Locations Lots & Structures","Key Descriptions","Pivot Table Data","By Area","By Neighborhood","By Structure","By Surface Lot","By Space Type","EV By Location","ADA By Location","Reserved By Location"],"not_rendered":{"charts":0,"images":0,"macros":1,"external_links":2,"defined_names":268,"comments":0,"pivot_tables":8},"unopened":[],"bounds":{"document_bytes":16777216,"sheet_cells":100000,"rows_first":2000,"rows_last":500,"rows_between":2000,"halvings":0,"cell_chars":16384,"cell_head_chars":4096},"cells_cut":0,"cells_raw":0,"read":"whole","date_system":"1900"}

{"sheet":"Title","index":0,"n_rows":15,"n_cols":4,"rows_kept":15,"cut":false,"hidden":false,"merged":[]}
[]
[]
[]
[]
[]
[]
[]
[]
[null,null,null,"Transportation Services"]
[]
[null,null,null,"Fall Quarter "]
[null,null,null,"Parking Space Occupancy Report"]
[]
[null,null,null,"University of California San Diego"]
[null,null,null,"December 20, 2024"]

{"sheet":"Key Locations Lots & Structures","index":1,"n_rows":43,"n_cols":22,"rows_kept":43,"cut":false,"hidden":false,"merged":[]}
[]
[null,"Location",null,"Location",null,null,null,null,null,null,null,null,null,null,null,null,"Location",null,null,null,null,"Location"]
[null,"La Jolla Campus",null," La Jolla Campus",null,null,null,null,null,null,null,null,null,null,null,null," La Jolla Campus",null,null,null,null,"Medical Center Hillcrest"]
[]
[null,"Area",null,"Area",null,null,null,null,null,null,null,null,null,null,null,null,"Area",null,null,null,null,"Area"]
[null,"Scripps Institution of Oceanography",null," West Campus",null,null,null,null,null,null,null,null,null,null,null,null," East Campus",null,null,null,null,"Medical Center Hillcrest"]
[]
[null,"Neighborhood",null,"Neighborhood",null,null,null,null,null,null,null,null,null,null,null,null,"Neighborhood",null,null,null,null,"Neighborhood"]
[null,null,null,"Revelle","Muir","N. Torrey Pines","Marshall","Roosevelt","North","Torrey Pines","Pepper ","University","Warren","Campus","Health ",null,"East","Health","Preuss","Science",null,"Medical Center Hillcrest"]
[null,"SIO",null,"College","College","Living &Learning","College","College","Campus","Center","Canyon","Center","College","Services","Science",null,"Recreation","Sciences","School","Research"]
[null,null,null,null,null,null,null,null,null,null,null,null,null,"Complex","West",null,null,"East",null,"Park"]
[null,"Lots & Structures",null,"Lots & Structures",null,null,null,null,null,null,null,null,null,null,null,null,"Lots & Structures",null,null,null,null,"Lots & Structures"]
[null,"P001",null,"P101","P113","Scholars","P302","P306","P351","TPC South","P401","P405","P418","P507","P601",null,"P701","P702","P706","P782",null,"Arbor"]
[null,"P002",null,"P103","P201","(P211-3)","P303","Hopkins","P352","(P381-3)","P402","P407","P502","P510","P602",null,null,"P703",null,"P785",null,"(P901-14)"]
[null,"P003",null,"P106","P202",null,"P304","(P341-7)","P357","P384","P406","P408","P503",null,"P603",null,null,"P704",null,"Vela/",null,"First Ave"]
[null,"P004",null,"P107","P203",null,"P308","P353","P358","P385","P506","P410","P504",null,"P604",null,null,"P705",null,"Nuevo W.",null,"(P921-28)"]
[null,"P005",null,"P108","P204",null,"P309","P354","P359","P386",null,"P411","P505",null,"P605",null,null,"P706",null,"(P791-3)",null,"P952"]
[null,"P006",null,"P110","P205",null,"P310","Pangea",null,"TPC North",null,"P412","P508",null,"P606",null,null,"P707",null,null,null,"P953"]
[null,"P007",null,"P112","P206",null,null,"(P371-6)",null,"(P391-5)",null,"P413","P509",null,"P607",null,null,"Campus Pt E.",null,null,null,"P954"]
[null,"P008",null,"P116","P414",null,null,null,null,null,null,"Gilman",null,null,"P608",null,null,"(P721-2)",null,null,null,"P955"]
[null,"P009",null,null,"P415",null,null,null,null,null,null,"(P451-6)",null,null,"P610",null,null,"Campus Pt W.",null,null,null,"P956"]
[null,"P010",null,null,"P416",null,null,null,null,null,null,"P501",null,null,"South ",null,null,"(P731-5)",null,null,null,"P957"]
[null,"P011",null,null,null,null,null,null,null,null,null,null,null,null,"(P651-5)",null,null,"Athena",null,null,null,"P958"]
[null,"P012",null,null,null,null,null,null,null,null,null,null,null,null,null,null,null,"(P741-7)",null,null,null,"P962"]
[null,"P013",null,null,null,null,null,null,null,null,null,null,null,null,null,null,null,"P751",null,null,null,"P963"]
[null,"P014",null,null,null,null,null,null,null,null,null,null,null,null,null,null,null,"P752",null,null,null,"P964"]
[null,"P015",null,null,null,null,null,null,null,null,null,null,null,null,null,null,null,"P753"]
[null,"P016",null,null,null,null,null,null,null,null,null,null,null,null,null,null,null,"P757"]
[null,"P017",null,null,null,null,null,null,null,null,null,null,null,null,null,null,null,"P758"]
[null,"P021",null,null,null,null,null,null,null,null,null,null,null,null,null,null,null,"P759"]
[null,null,null,null,null,null,null,null,null,null,null,null,null,null,null,null,null,"P760"]
[null,null,null,null,null,null,null,null,null,null,null,null,null,null,null,null,null,"P761"]
[null,null,null,null,null,null,null,null,null,null,null,null,null,null,null,null,null,"P762"]
[null,null,null,null,null,null,null,null,null,null,null,null,null,null,null,null,null,"P784"]
[]
[]
[null,"Lot Completely Closed"]
[null,"Total Inventory Numbers Affected by Construction"]
[null,"Closed for COVID-19 testing"]
[]
[null,"Partially Affected by Construction"]
[null,"Closed for Construction"]
[null,"Pernamently Closed"]

{"sheet":"Key Descriptions","index":2,"n_rows":28,"n_cols":4,"rows_kept":28,"cut":false,"hidden":false,"merged":[[0,1,0,2]]}
[null,"Key 2: Parking Space Descriptions"]
[]
[null,"Parking Space Type","Description","Subtypes"]
[null,"A","\"A\" spaces are for individuals with \"A\" permits.","If no subtype is listed, any \"A\" permit holder can use the space without limitations. Other permits can upgrade to use these spaces."]
[null,null,"These spaces are stenciled with red blocks, 'A'; Or designated with 24/7 signage.","24/7 A spaces have signage indicating A permits are required at all times. Preuss A and Physician A require additional permits to use this spaces."]
[null,"B","\"B\" spaces are for individuals with \"B\" permits.","Preuss B and SIO B require additional permits to use this spaces."]
[null,null,"These spaces are stenciled with green blocks, 'B'."]
[null,"S","\"S\" spaces are for individuals with \"S\" permits.","SIO S require additional permits to use this spaces."]
[null,null,"These spaces are stenciled with yellow blocks, 'S'."]
[null,"SR","\"SR\" spaces are for individuals with \"SR\" permits."]
[null,null,"These spaces are stenciled with black and yellow 'SR' blocks."]
[null,"D","\"D\" spaces are for individuals with \"D\" permits or permit bought via ParkMobile."]
[null,null,"These spaces are not stenciled and are located at Regents lots, P703, P704, P705."]
[null,"$3","\"$3\" spaces can be used by visitors or permit holders with permit bought via ParkMobile."]
[null,null,"Spaces have no stencil or color block."]
[null,"Visitor","\"Visitor\" spaces are for those without permits.","Subtypes include: Medical Patients, Birch Aquarium, Sanford Consortium, Police Visitor"]
[null,null,"These spaces are stenciled with white blocks, 'V'.","Payment at these subtype spaces is not subject to the same restrictions as Visitor spaces."]
[null,"Reserved","\"Reserved\" spaces are stenciled with numbers, 'Reserved', and/or signage."]
[null,null,"Spaces are paid for by departments or individuals."]
[null,"Allocated","\"Allocated\" spaces are special use spaces.","A full list of Allocated spaces is listed in the Allocated Summary table of this report. "]
[null,null,"These spaces are designated with signage or stenciled with description."]
[null,"Accessible","\"Accessible\" spaces are for individuals with disabilities.","Accessible spaces with Electric Vehicle charging access are listed seperately."]
[null,"UC Vehicle","\"UC Vehicle\" spaces are for official university vehicles, stenciled 'UC Vehicle' or 'UC Cart'.","Subtype includes: UC Cart spaces."]
[null,"Service Yard","\"Service Yard\" spaces are stenciled 'Service Yard'."]
[null,"Loading","\"Loading\" spaces are stenciled 'Loading'.","If no subtype is listed, it is a Loading space marked only with the Loading Time Limit. Subtypes include: Bars (large areas not spaces), Docks, Commercial."]
[null,"Carpool","\"Carpool\" spaces have \"Reserved\" signage with notes on the type of carpool permit needed as well as hours of enforcement.","Subtypes include: 2-Person, A/B/S 3-Person, Electric Vehicle charging access."]
[null,"Electric Vehicle","\"Electric Vehicle\" spaces have signage with notes indicating time limit and permit requirements."]
[null,"Motorcycle","\"Motorcycle\" sections are designated with signage and/or stenciled 'Motorcycles'."]

{"sheet":"Pivot Table Data","index":3,"n_rows":700,"n_cols":36,"rows_kept":700,"cut":false,"hidden":true,"merged":[]}
[null,null,null,null,null,null,{"$f":"SUBTOTAL(3, G3:G700)","v":171},{"$f":"SUBTOTAL(3, H3:H700)","v":164},null,null,null,null,{"$f":"SUBTOTAL(9, M3:M700)","v":55},15291,15288,0,0,0,5717,4449,3937,3181,2973,3276,3522,4531,5454,5288,0,0,0,0,0,null,null,"Fall 2024"]
["Date","Zone #","University Wide","Location","Area","Neighborhood","Structure","Lot #","Lot / Garage","Space Type","Space Subtype","Time Limit [minutes]","Summer 2024","Fall 2024","Winter 2025","Spring 2025","6am","7am","8am","9am","10am","11am","12pm","1pm","2pm","3pm","4pm","5pm","6pm","7pm","8pm","9pm","10pm","Min Open Stalls","Max Open Stalls","Inventory"]
[null,null,"University Wide","La Jolla Campus","West Campus","Revelle College ","Surface Lot",null,{"$f":"IF(G3=\"Surface Lot\", H3, G3)","v":0},"Loading","Curb",30,null,10,10,null,null,null,0,0,0,0,0,0,0,0,0,0,null,null,null,null,null,{"$f":"MIN($Q3:$AG3)","v":0},{"$f":"MAX($Q3:$AG3)","v":0},{"$f":"_xlfn.IFS(AJ$1=M$2, M3, AJ$1=N$2, N3,AJ$1=O$2, O3,AJ$1=P$2, P3)","v":10}]
[null,null,"University Wide","La Jolla Campus","West Campus","Revelle College ","Surface Lot",null,0,"Reserved",null,null,null,0,0,null,null,null,0,0,0,0,0,0,0,0,0,0,null,null,null,null,null,{"$f":"MIN($Q4:$AG4)","v":0},{"$f":"MAX($Q4:$AG4)","v":0},{"$f":"_xlfn.IFS(AJ$1=M$2, M4, AJ$1=N$2, N4,AJ$1=O$2, O4,AJ$1=P$2, P4)","v":0}]
[null,null,"University Wide","La Jolla Campus","West Campus",8980,8980,null,8980,"A",null,null,null,44,44,null,null,null,25,22,23,23,23,18,20,22,22,24,null,null,null,null,null,{"$f":"MIN($Q5:$AG5)","v":18},25,{"$f":"_xlfn.IFS(AJ$1=M$2, M5, AJ$1=N$2, N5,AJ$1=O$2, O5,AJ$1=P$2, P5)","v":44}]
[null,null,"University Wide","La Jolla Campus","West Campus",8980,8980,null,8980,"Accessible",null,null,null,7,7,null,null,null,7,6,6,6,6,7,7,7,7,7,null,null,null,null,null,6,7,{"$f":"_xlfn.IFS(AJ$1=M$2, M6, AJ$1=N$2, N6,AJ$1=O$2, O6,AJ$1=P$2, P6)","v":7}]
[null,null,"University Wide","La Jolla Campus","West Campus",8980,8980,null,8980,"B",null,null,null,73,73,null,null,null,25,16,17,9,8,12,11,12,20,22,null,null,null,null,null,8,25,{"$f":"_xlfn.IFS(AJ$1=M$2, M7, AJ$1=N$2, N7,AJ$1=O$2, O7,AJ$1=P$2, P7)","v":73}]
[null,null,"University Wide","La Jolla Campus","West Campus",8980,8980,null,8980,"Carpool",null,null,null,0,0,null,null,null,18,20,22,14,13,21,27,27,35,34,null,null,null,null,null,13,35,{"$f":"_xlfn.IFS(AJ$1=M$2, M8, AJ$1=N$2, N8,AJ$1=O$2, O8,AJ$1=P$2, P8)","v":0}]
[null,null,"University Wide","La Jolla Campus","West Campus",8980,8980,null,8980,"Electric Vehicle",null,null,null,18,18,null,null,null,18,15,18,17,15,0,18,18,18,18,null,null,null,null,null,0,18,{"$f":"_xlfn.IFS(AJ$1=M$2, M9, AJ$1=N$2, N9,AJ$1=O$2, O9,AJ$1=P$2, P9)","v":18}]
[null,null,"University Wide","La Jolla Campus","West Campus",8980,8980,null,8980,"Motorcycle Section",null,null,null,0,0,null,null,null,0,0,0,0,0,3,0,0,0,0,null,null,null,null,null,{"$f":"MIN($Q10:$AG10)","v":0},{"$f":"MAX($Q10:$AG10)","v":3},{"$f":"_xlfn.IFS(AJ$1=M$2, M10, AJ$1=N$2, N10,AJ$1=O$2, O10,AJ$1=P$2, P10)","v":0}]
[null,null,"University Wide","La Jolla Campus","West Campus",8980,8980,null,8980,"Reserved",null,null,null,5,5,null,null,null,0,0,0,0,0,0,0,0,0,0,null,null,null,null,null,0,0,{"$f":"_xlfn.IFS(AJ$1=M$2, M11, AJ$1=N$2, N11,AJ$1=O$2, O11,AJ$1=P$2, P11)","v":5}]
[null,null,"University Wide","La Jolla Campus","West Campus",8980,8980,null,8980,"S",null,null,null,57,57,null,null,null,36,38,38,49,48,51,47,49,54,56,null,null,null,null,null,36,56,{"$f":"_xlfn.IFS(AJ$1=M$2, M12, AJ$1=N$2, N12,AJ$1=O$2, O12,AJ$1=P$2, P12)","v":57}]
[null,null,"University Wide","La Jolla Campus","West Campus",8980,8980,null,8980,"UC Cart",null,null,null,1,1,null,null,null,0,0,0,0,0,0,0,0,1,1,null,null,null,null,null,0,1,{"$f":"_xlfn.IFS(AJ$1=M$2, M13, AJ$1=N$2, N13,AJ$1=O$2, O13,AJ$1=P$2, P13)","v":1}]
[null,null,"University Wide","La Jolla Campus","West Campus",8980,8980,null,8980,"UC Vehicle",null,null,null,1,1,null,null,null,1,1,0,0,0,0,0,0,0,0,null,null,null,null,null,0,1,{"$f":"_xlfn.IFS(AJ$1=M$2, M14, AJ$1=N$2, N14,AJ$1=O$2, O14,AJ$1=P$2, P14)","v":1}]
[null,null,"University Wide","La Jolla Campus","West Campus",8980,8980,null,8980,"Visitor",null,null,null,0,0,null,null,null,0,0,0,0,0,0,0,0,0,0,null,null,null,null,null,0,0,{"$f":"_xlfn.IFS(AJ$1=M$2, M15, AJ$1=N$2, N15,AJ$1=O$2, O15,AJ$1=P$2, P15)","v":0}]
[null,null,"University Wide","Medical Center Hillcrest","Medical Center Hillcrest","Medical Center Hillcrest","Arbor","P901","Arbor","Visitor",null,null,null,263,263,null,null,null,176,105,105,57,81,83,85,101,112,130,null,null,null,null,null,57,176,{"$f":"_xlfn.IFS(AJ$1=M$2, M16, AJ$1=N$2, N16,AJ$1=O$2, O16,AJ$1=P$2, P16)","v":263}]
[null,null,"University Wide","Medical Center Hillcrest","Medical Center Hillcrest","Medical Center Hillcrest","Arbor","P907","Arbor","Motorcycle Section",null,null,null,10,10,null,null,null,7,2,0,1,7,7,8,9,8,10,null,null,null,null,null,0,10,{"$f":"_xlfn.IFS(AJ$1=M$2, M17, AJ$1=N$2, N17,AJ$1=O$2, O17,AJ$1=P$2, P17)","v":10}]
[null,null,"University Wide","Medical Center Hillcrest","Medical Center Hillcrest","Medical Center Hillcrest","Arbor","P907","Arbor","Visitor","Patient/Visitor Reserved",null,null,4,4,null,null,null,4,3,3,3,3,2,2,2,2,3,null,null,null,null,null,2,4,{"$f":"_xlfn.IFS(AJ$1=M$2, M18, AJ$1=N$2, N18,AJ$1=O$2, O18,AJ$1=P$2, P18)","v":4}]
[null,null,"University Wide","Medical Center Hillcrest","Medical Center Hillcrest","Medical Center Hillcrest","Arbor","P908","Arbor","Accessible",null,null,null,15,15,null,null,null,5,0,0,0,0,0,0,0,13,15,null,null,null,null,null,0,15,{"$f":"_xlfn.IFS(AJ$1=M$2, M19, AJ$1=N$2, N19,AJ$1=O$2, O19,AJ$1=P$2, P19)","v":15}]
[null,null,"University Wide","Medical Center Hillcrest","Medical Center Hillcrest","Medical Center Hillcrest","Arbor","P908","Arbor","Allocated","Transportation Office Vehicle",null,null,1,1,null,null,null,0,0,0,0,0,0,0,0,0,0,null,null,null,null,null,0,0,{"$f":"_xlfn.IFS(AJ$1=M$2, M20, AJ$1=N$2, N20,AJ$1=O$2, O20,AJ$1=P$2, P20)","v":1}]
[null,null,"University Wide","Medical Center Hillcrest","Medical Center Hillcrest","Medical Center Hillcrest","Arbor","P908","Arbor","UC Vehicle",null,null,null,2,2,null,null,null,0,0,1,1,0,0,1,2,2,1,null,null,null,null,null,0,2,{"$f":"_xlfn.IFS(AJ$1=M$2, M21, AJ$1=N$2, N21,AJ$1=O$2, O21,AJ$1=P$2, P21)","v":2}]
[null,null,"University Wide","Medical Center Hillcrest","Medical Center Hillcrest","Medical Center Hillcrest","Arbor","P909","Arbor","Electric Vehicle",null,"4-Hours",null,12,12,null,null,null,5,3,2,2,7,7,8,9,8,10,null,null,null,null,null,2,10,{"$f":"_xlfn.IFS(AJ$1=M$2, M22, AJ$1=N$2, N22,AJ$1=O$2, O22,AJ$1=P$2, P22)","v":12}]
[null,null,"University Wide","Medical Center Hillcrest","Medical Center Hillcrest","Medical Center Hillcrest","Arbor","P909","Arbor","Reserved",null,null,null,19,19,null,null,null,0,0,0,0,0,0,0,0,0,0,null,null,null,null,null,0,0,{"$f":"_xlfn.IFS(AJ$1=M$2, M23, AJ$1=N$2, N23,AJ$1=O$2, O23,AJ$1=P$2, P23)","v":19}]
[null,null,"University Wide","Medical Center Hillcrest","Medical Center Hillcrest","Medical Center Hillcrest","Arbor","P910","Arbor","A",null,null,null,226,226,null,null,null,80,54,55,48,62,68,76,83,98,125,null,null,null,null,null,48,125,{"$f":"_xlfn.IFS(AJ$1=M$2, M24, AJ$1=N$2, N24,AJ$1=O$2, O24,AJ$1=P$2, P24)","v":226}]
[null,null,"University Wide","La Jolla Campus","Scripps Institution of Oceanography","Scripps Institution of Oceanography","Surface Lot","P001","P001","B","Scripps Institution of Oceanography",null,null,4,0,null,null,null,0,0,0,0,0,0,0,0,0,0,null,null,null,null,null,0,0,{"$f":"_xlfn.IFS(AJ$1=M$2, M25, AJ$1=N$2, N25,AJ$1=O$2, O25,AJ$1=P$2, P25)","v":4}]
[null,null,"University Wide","La Jolla Campus","Scripps Institution of Oceanography","Scripps Institution of Oceanography","Surface Lot","P001","P001","Electric Vehicle",null,"4 hours",null,10,9,null,null,null,9,8,6,7,7,6,6,7,9,10,null,null,null,null,null,6,10,{"$f":"_xlfn.IFS(AJ$1=M$2, M26, AJ$1=N$2, N26,AJ$1=O$2, O26,AJ$1=P$2, P26)","v":10}]
[null,null,"University Wide","La Jolla Campus","Scripps Institution of Oceanography","Scripps Institution of Oceanography","Surface Lot","P002","P002","B","Scripps Institution of Oceanography",null,null,31,31,null,null,null,24,20,22,9,0,18,16,9,22,17,null,null,null,null,null,0,24,{"$f":"_xlfn.IFS(AJ$1=M$2, M27, AJ$1=N$2, N27,AJ$1=O$2, O27,AJ$1=P$2, P27)","v":31}]
[null,null,"University Wide","La Jolla Campus","Scripps Institution of Oceanography","Scripps Institution of Oceanography","Surface Lot","P003","P003","B","Scripps Institution of Oceanography",null,null,64,64,null,null,null,50,34,13,2,3,16,17,19,30,35,null,null,null,null,null,2,50,{"$f":"_xlfn.IFS(AJ$1=M$2, M28, AJ$1=N$2, N28,AJ$1=O$2, O28,AJ$1=P$2, P28)","v":64}]
[null,null,"University Wide","La Jolla Campus","Scripps Institution of Oceanography","Scripps Institution of Oceanography","Surface Lot","P004","P004","Electric Vehicle",null,null,null,1,1,null,null,null,0,0,0,0,0,0,0,0,0,0,null,null,null,null,null,0,0,{"$f":"_xlfn.IFS(AJ$1=M$2, M29, AJ$1=N$2, N29,AJ$1=O$2, O29,AJ$1=P$2, P29)","v":1}]
[null,null,"University Wide","La Jolla Campus","Scripps Institution of Oceanography","Scripps Institution of Oceanography","Surface Lot","P006","P006","B","Scripps Institution of Oceanography",null,null,6,6,null,null,null,4,1,0,0,2,0,2,2,0,2,null,null,null,null,null,0,4,{"$f":"_xlfn.IFS(AJ$1=M$2, M30, AJ$1=N$2, N30,AJ$1=O$2, O30,AJ$1=P$2, P30)","v":6}]
[null,null,"University Wide","La Jolla Campus","Scripps Institution of Oceanography","Scripps Institution of Oceanography","Surface Lot","P007","P007","B","Scripps Institution of Oceanography",null,null,22,22,null,null,null,6,2,0,3,20,3,1,6,8,7,null,null,null,null,null,0,20,{"$f":"_xlfn.IFS(AJ$1=M$2, M31, AJ$1=N$2, N31,AJ$1=O$2, O31,AJ$1=P$2, P31)","v":22}]
[null,null,"University Wide","La Jolla Campus","Scripps Institution of Oceanography","Scripps Institution of Oceanography","Surface Lot","P007","P007","Electric Vehicle",null,null,null,8,8,null,null,null,8,8,1,0,2,1,2,5,7,6,null,null,null,null,null,0,8,{"$f":"_xlfn.IFS(AJ$1=M$2, M32, AJ$1=N$2, N32,AJ$1=O$2, O32,AJ$1=P$2, P32)","v":8}]
[null,null,"University Wide","La Jolla Campus","East Campus","Health Sciences East","Athena","P741","Athena","Accessible","Electric Vehicle",null,null,2,2,null,null,null,2,2,2,1,1,0,0,0,0,0,null,null,null,null,null,0,2,{"$f":"_xlfn.IFS(AJ$1=M$2, M33, AJ$1=N$2, N33,AJ$1=O$2, O33,AJ$1=P$2, P33)","v":2}]
[null,null,"University Wide","La Jolla Campus","East Campus","Health Sciences East","Athena","P741","Athena","Accessible",null,null,null,79,79,null,null,null,35,16,11,11,23,17,27,29,33,32,null,null,null,null,null,11,35,{"$f":"_xlfn.IFS(AJ$1=M$2, M34, AJ$1=N$2, N34,AJ$1=O$2, O34,AJ$1=P$2, P34)","v":79}]
[null,null,"University Wide","La Jolla Campus","East Campus","Health Sciences East","Athena","P741",{"$f":"IF(G35=\"Surface Lot\", H35, G35)","v":"Athena"},"Motorcycle Section",null,null,null,42,null,null,null,null,5,5,5,4,3,2,4,4,4,3,null,null,null,null,null,2,5,{"$f":"_xlfn.IFS(AJ$1=M$2, M35, AJ$1=N$2, N35,AJ$1=O$2, O35,AJ$1=P$2, P35)","v":42}]
[null,null,"University Wide","La Jolla Campus","East Campus","Health Sciences East","Athena","P744","Athena","Reserved",null,null,null,214,{"$f":"214-10","v":204},null,null,null,0,0,0,0,0,0,0,0,0,0,null,null,null,null,null,0,0,{"$f":"_xlfn.IFS(AJ$1=M$2, M36, AJ$1=N$2, N36,AJ$1=O$2, O36,AJ$1=P$2, P36)","v":214}]
[null,null,"University Wide","La Jolla Campus","Scripps Institution of Oceanography","Scripps Institution of Oceanography","Surface Lot","P008","P008","B","Scripps Institution of Oceanography",null,null,26,26,null,null,null,4,0,0,1,2,2,5,3,2,4,null,null,null,null,null,0,5,{"$f":"_xlfn.IFS(AJ$1=M$2, M37, AJ$1=N$2, N37,AJ$1=O$2, O37,AJ$1=P$2, P37)","v":26}]
[null,null,"University Wide","La Jolla Campus","Scripps Institution of Oceanography","Scripps Institution of Oceanography","Surface Lot","P010","P010","B","Scripps Institution of Oceanography",null,null,20,23,null,null,null,17,10,7,1,1,6,11,14,14,16,null,null,null,null,null,1,17,{"$f":"_xlfn.IFS(AJ$1=M$2, M38, AJ$1=N$2, N38,AJ$1=O$2, O38,AJ$1=P$2, P38)","v":20}]
[null,null,"University Wide","La Jolla Campus","Scripps Institution of Oceanography","Scripps Institution of Oceanography","Surface Lot","P011","P011","B","Scripps Institution of Oceanography",null,null,16,15,null,null,null,13,5,9,4,5,4,5,6,10,10,null,null,null,null,null,4,13,{"$f":"_xlfn.IFS(AJ$1=M$2, M39, AJ$1=N$2, N39,AJ$1=O$2, O39,AJ$1=P$2, P39)","v":16}]
[null,null,"University Wide","La Jolla Campus","East Campus","Health Sciences East","Campus Point East","P722","Campus Point East","Accessible",null,null,null,12,12,null,null,null,3,3,2,2,1,0,0,8,10,11,null,null,null,null,null,0,11,{"$f":"_xlfn.IFS(AJ$1=M$2, M40, AJ$1=N$2, N40,AJ$1=O$2, O40,AJ$1=P$2, P40)","v":12}]
[null,null,"University Wide","La Jolla Campus","East Campus","Health Sciences East","Campus Point East","P722","Campus Point East","Motorcycle Section",null,null,null,8,8,null,null,null,3,3,3,3,2,2,0,5,5,5,null,null,null,null,null,0,5,{"$f":"_xlfn.IFS(AJ$1=M$2, M41, AJ$1=N$2, N41,AJ$1=O$2, O41,AJ$1=P$2, P41)","v":8}]
[null,null,"University Wide","La Jolla Campus","East Campus","Health Sciences East","Campus Point East","P722","Campus Point East","Reserved",null,null,null,40,40,null,null,null,0,0,0,0,0,0,0,0,0,0,null,null,null,null,null,0,0,{"$f":"_xlfn.IFS(AJ$1=M$2, M42, AJ$1=N$2, N42,AJ$1=O$2, O42,AJ$1=P$2, P42)","v":40}]
[null,null,"University Wide","La Jolla Campus","East Campus","Health Sciences East","Campus Point East","P723","Campus Point East","Reserved","Valet",null,null,127,127,null,null,null,0,0,0,0,0,0,0,0,0,0,null,null,null,null,null,0,0,{"$f":"_xlfn.IFS(AJ$1=M$2, M43, AJ$1=N$2, N43,AJ$1=O$2, O43,AJ$1=P$2, P43)","v":127}]
[null,null,"University Wide","La Jolla Campus","Scripps Institution of Oceanography","Scripps Institution of Oceanography","Surface Lot","P012","P012","B","Scripps Institution of Oceanography",null,null,12,12,null,null,null,3,3,0,0,0,1,1,4,0,4,null,null,null,null,null,0,4,{"$f":"_xlfn.IFS(AJ$1=M$2, M44, AJ$1=N$2, N44,AJ$1=O$2, O44,AJ$1=P$2, P44)","v":12}]
[null,null,"University Wide","La Jolla Campus","Scripps Institution of Oceanography","Scripps Institution of Oceanography","Surface Lot","P013","P013","B","Scripps Institution of Oceanography",null,null,12,12,null,null,null,9,4,1,2,4,3,5,2,1,4,null,null,null,null,null,1,9,{"$f":"_xlfn.IFS(AJ$1=M$2, M45, AJ$1=N$2, N45,AJ$1=O$2, O45,AJ$1=P$2, P45)","v":12}]
[null,null,"University Wide","La Jolla Campus","Scripps Institution of Oceanography","Scripps Institution of Oceanography","Surface Lot","P013","P013","Electric Vehicle",null,null,null,2,2,null,null,null,2,2,2,0,2,2,2,2,2,2,null,null,null,null,null,0,2,{"$f":"_xlfn.IFS(AJ$1=M$2, M46, AJ$1=N$2, N46,AJ$1=O$2, O46,AJ$1=P$2, P46)","v":2}]
[null,null,"University Wide","La Jolla Campus","Scripps Institution of Oceanography","Scripps Institution of Oceanography","Surface Lot","P014","P014","B","Scripps Institution of Oceanography",null,null,69,69,null,null,null,46,38,2,38,40,28,32,35,46,48,null,null,null,null,null,2,48,{"$f":"_xlfn.IFS(AJ$1=M$2, M47, AJ$1=N$2, N47,AJ$1=O$2, O47,AJ$1=P$2, P47)","v":69}]
[null,null,"University Wide","La Jolla Campus","East Campus","Health Sciences East","Campus Point West","P731","Campus Point West","Motorcycle Section",null,null,null,8,8,null,null,null,2,0,0,0,0,0,1,2,1,2,null,null,null,null,null,0,2,{"$f":"_xlfn.IFS(AJ$1=M$2, M48, AJ$1=N$2, N48,AJ$1=O$2, O48,AJ$1=P$2, P48)","v":8}]
[null,null,"University Wide","La Jolla Campus","East Campus","Health Sciences East","Campus Point West","P733","Campus Point West","Accessible",null,null,null,104,104,null,null,null,3,1,2,0,0,0,0,8,15,16,null,null,null,null,null,0,16,{"$f":"_xlfn.IFS(AJ$1=M$2, M49, AJ$1=N$2, N49,AJ$1=O$2, O49,AJ$1=P$2, P49)","v":104}]
[null,null,"University Wide","La Jolla Campus","East Campus","Health Sciences East","Campus Point West","P734","Campus Point West","Reserved","Emergency Room",null,null,10,10,null,null,null,0,0,0,0,0,0,0,0,0,0,null,null,null,null,null,0,0,{"$f":"_xlfn.IFS(AJ$1=M$2, M50, AJ$1=N$2, N50,AJ$1=O$2, O50,AJ$1=P$2, P50)","v":10}]
[null,null,"University Wide","La Jolla Campus","East Campus","Health Sciences East","Campus Point West","P734","Campus Point West","Reserved",null,null,null,18,18,null,null,null,0,0,0,0,0,0,0,0,0,0,null,null,null,null,null,0,0,{"$f":"_xlfn.IFS(AJ$1=M$2, M51, AJ$1=N$2, N51,AJ$1=O$2, O51,AJ$1=P$2, P51)","v":18}]
[null,null,"University Wide","La Jolla Campus","East Campus","Health Sciences East","Curb","Curb","Curb","Reserved",null,null,null,8,8,null,null,null,0,0,0,0,0,0,0,0,0,0,null,null,null,null,null,0,0,{"$f":"_xlfn.IFS(AJ$1=M$2, M52, AJ$1=N$2, N52,AJ$1=O$2, O52,AJ$1=P$2, P52)","v":8}]
[null,null,"University Wide","Medical Center Hillcrest","Medical Center Hillcrest","Medical Center HIllcrest","First Ave","P920","First Ave","A",null,null,null,0,0,null,null,null,null,null,null,null,null,null,null,null,null,null,null,null,null,null,null,0,0,{"$f":"_xlfn.IFS(AJ$1=M$2, M53, AJ$1=N$2, N53,AJ$1=O$2, O53,AJ$1=P$2, P53)","v":0}]
[null,null,"University Wide","Medical Center Hillcrest","Medical Center Hillcrest","Medical Center HIllcrest","First Ave","P920","First Ave","Accessible",null,null,null,{"$f":"59-5-4","v":50},{"$f":"59-5-4","v":50},null,null,null,20,16,26,11,23,23,20,32,39,45,null,null,null,null,null,11,45,{"$f":"_xlfn.IFS(AJ$1=M$2, M54, AJ$1=N$2, N54,AJ$1=O$2, O54,AJ$1=P$2, P54)","v":50}]
[null,null,"University Wide","Medical Center Hillcrest","Medical Center Hillcrest","Medical Center HIllcrest","First Ave","P920","First Ave","B",null,null,null,{"$f":"1703-196-242","v":1265},{"$f":"1703-196-242","v":1265},null,null,null,230,215,109,73,195,207,380,442,582,595,null,null,null,null,null,73,595,{"$f":"_xlfn.IFS(AJ$1=M$2, M55, AJ$1=N$2, N55,AJ$1=O$2, O55,AJ$1=P$2, P55)","v":1265}]
[null,null,"University Wide","Medical Center Hillcrest","Medical Center Hillcrest","Medical Center HIllcrest","First Ave","P920","First Ave","Construction Area",null,null,null,464,464,null,null,null,0,0,0,0,0,0,0,0,0,0,null,null,null,null,null,0,0,{"$f":"_xlfn.IFS(AJ$1=M$2, M56, AJ$1=N$2, N56,AJ$1=O$2, O56,AJ$1=P$2, P56)","v":464}]
[null,null,"University Wide","Medical Center Hillcrest","Medical Center Hillcrest","Medical Center HIllcrest","First Ave","P920","First Ave","Electric Vehicle",null,null,null,30,30,null,null,null,18,11,10,7,7,12,3,2,15,20,null,null,null,null,null,2,20,{"$f":"_xlfn.IFS(AJ$1=M$2, M57, AJ$1=N$2, N57,AJ$1=O$2, O57,AJ$1=P$2, P57)","v":30}]
[null,null,"University Wide","Medical Center Hillcrest","Medical Center Hillcrest","Medical Center HIllcrest","First Ave","P920","First Ave","Motorcycle Section",null,null,null,{"$f":"60-15-2","v":43},{"$f":"60-15-2","v":43},null,null,null,13,12,12,12,5,4,5,8,11,13,null,null,null,null,null,4,13,{"$f":"_xlfn.IFS(AJ$1=M$2, M58, AJ$1=N$2, N58,AJ$1=O$2, O58,AJ$1=P$2, P58)","v":43}]
[null,null,"University Wide","La Jolla Campus","Scripps Institution of Oceanography","Scripps Institution of Oceanography","Surface Lot","P014","P014","Electric Vehicle",null,null,null,2,2,null,null,null,2,2,2,2,2,2,2,2,1,2,null,null,null,null,null,1,2,{"$f":"_xlfn.IFS(AJ$1=M$2, M59, AJ$1=N$2, N59,AJ$1=O$2, O59,AJ$1=P$2, P59)","v":2}]
[null,null,"University Wide","La Jolla Campus","Scripps Institution of Oceanography","Scripps Institution of Oceanography","Surface Lot","P014","P014","S",null,null,null,26,26,null,null,null,13,16,21,20,11,14,15,17,12,16,null,null,null,null,null,11,21,{"$f":"_xlfn.IFS(AJ$1=M$2, M60, AJ$1=N$2, N60,AJ$1=O$2, O60,AJ$1=P$2, P60)","v":26}]
[null,null,"University Wide","La Jolla Campus","Scripps Institution of Oceanography","Scripps Institution of Oceanography","Surface Lot","P014","P014","Visitor",null,null,null,4,4,null,null,null,3,2,0,0,1,1,1,2,1,2,null,null,null,null,null,0,3,{"$f":"_xlfn.IFS(AJ$1=M$2, M61, AJ$1=N$2, N61,AJ$1=O$2, O61,AJ$1=P$2, P61)","v":4}]
[null,null,"University Wide","La Jolla Campus","Scripps Institution of Oceanography","Scripps Institution of Oceanography","Surface Lot","P016","P016","S","Scripps Institution of Oceanography",null,null,58,58,null,null,null,46,2,34,33,24,29,29,28,35,37,null,null,null,null,null,2,46,{"$f":"_xlfn.IFS(AJ$1=M$2, M62, AJ$1=N$2, N62,AJ$1=O$2, O62,AJ$1=P$2, P62)","v":58}]
[null,null,"University Wide","La Jolla Campus","Scripps Institution of Oceanography","Scripps Institution of Oceanography","Surface Lot","P017","P017","Electric Vehicle",null,null,null,2,2,null,null,null,1,2,0,2,2,2,2,2,2,1,null,null,null,null,null,0,2,{"$f":"_xlfn.IFS(AJ$1=M$2, M63, AJ$1=N$2, N63,AJ$1=O$2, O63,AJ$1=P$2, P63)","v":2}]
[null,null,"University Wide","La Jolla Campus","West Campus","University Center","Gilman","P451","Gilman","Accessible",null,null,null,42,42,null,null,null,0,0,0,0,3,3,11,13,13,22,null,null,null,null,null,0,22,{"$f":"_xlfn.IFS(AJ$1=M$2, M64, AJ$1=N$2, N64,AJ$1=O$2, O64,AJ$1=P$2, P64)","v":42}]
[null,null,"University Wide","La Jolla Campus","West Campus","University Center","Gilman","P451","Gilman","Reserved","Credit Union Member",null,null,10,10,null,null,null,0,0,0,0,0,0,0,0,0,0,null,null,null,null,null,0,0,{"$f":"_xlfn.IFS(AJ$1=M$2, M65, AJ$1=N$2, N65,AJ$1=O$2, O65,AJ$1=P$2, P65)","v":10}]
[null,null,"University Wide","La Jolla Campus","West Campus","University Center","Gilman","P451","Gilman","Reserved","Credit Union Staff",null,null,10,10,null,null,null,0,0,0,0,0,0,0,0,0,0,null,null,null,null,null,0,0,{"$f":"_xlfn.IFS(AJ$1=M$2, M66, AJ$1=N$2, N66,AJ$1=O$2, O66,AJ$1=P$2, P66)","v":10}]
[null,null,"University Wide","La Jolla Campus","West Campus","University Center","Gilman","P451",{"$f":"IF(G67=\"Surface Lot\", H67, G67)","v":"Gilman"},"Reserved","Target",null,null,7,7,null,null,null,0,0,0,0,0,0,0,0,0,0,null,null,null,null,null,0,0,{"$f":"_xlfn.IFS(AJ$1=M$2, M67, AJ$1=N$2, N67,AJ$1=O$2, O67,AJ$1=P$2, P67)","v":7}]
[null,null,"University Wide","La Jolla Campus","West Campus","University Center","Gilman","P451","Gilman","Reserved",null,null,null,13,13,null,null,null,0,0,0,0,0,0,0,0,0,0,null,null,null,null,null,{"$f":"MIN($Q68:$AG68)","v":0},{"$f":"MAX($Q68:$AG68)","v":0},{"$f":"_xlfn.IFS(AJ$1=M$2, M68, AJ$1=N$2, N68,AJ$1=O$2, O68,AJ$1=P$2, P68)","v":13}]
[null,null,"University Wide","La Jolla Campus","West Campus","University Center","Gilman","P452","Gilman","Accessible","Electric Vehicle",null,null,1,1,null,null,null,0,0,0,0,0,0,0,0,0,0,null,null,null,null,null,0,0,{"$f":"_xlfn.IFS(AJ$1=M$2, M69, AJ$1=N$2, N69,AJ$1=O$2, O69,AJ$1=P$2, P69)","v":1}]
[null,null,"University Wide","La Jolla Campus","West Campus","University Center","Gilman","P452","Gilman","Allocated","Curbside",null,null,5,5,null,null,null,1,1,1,1,1,1,0,0,1,1,null,null,null,null,null,0,1,{"$f":"_xlfn.IFS(AJ$1=M$2, M70, AJ$1=N$2, N70,AJ$1=O$2, O70,AJ$1=P$2, P70)","v":5}]
[null,null,"University Wide","La Jolla Campus","West Campus","University Center","Gilman","P452","Gilman","Motorcycle Section",null,null,null,12,12,null,null,null,1,2,1,5,1,1,0,1,2,2,null,null,null,null,null,0,5,{"$f":"_xlfn.IFS(AJ$1=M$2, M71, AJ$1=N$2, N71,AJ$1=O$2, O71,AJ$1=P$2, P71)","v":12}]
[null,null,"University Wide","La Jolla Campus","West Campus","University Center","Gilman","P452","Gilman","Reserved","Enterprise",null,null,3,3,null,null,null,0,0,0,0,0,0,0,0,0,0,null,null,null,null,null,0,0,{"$f":"_xlfn.IFS(AJ$1=M$2, M72, AJ$1=N$2, N72,AJ$1=O$2, O72,AJ$1=P$2, P72)","v":3}]
[null,null,"University Wide","La Jolla Campus","West Campus","University Center","Gilman","P452","Gilman","UC Vehicle","UC Cart",null,null,12,12,null,null,null,4,0,8,8,2,1,1,1,0,2,null,null,null,null,null,0,8,{"$f":"_xlfn.IFS(AJ$1=M$2, M73, AJ$1=N$2, N73,AJ$1=O$2, O73,AJ$1=P$2, P73)","v":12}]
[null,null,"University Wide","La Jolla Campus","Scripps Institution of Oceanography","Scripps Institution of Oceanography","Surface Lot","P017","P017","Visitor","Birch Aquarium",null,null,254,254,null,null,null,192,97,157,112,161,142,142,168,146,180,null,null,null,null,null,97,192,{"$f":"_xlfn.IFS(AJ$1=M$2, M74, AJ$1=N$2, N74,AJ$1=O$2, O74,AJ$1=P$2, P74)","v":254}]
[null,null,"University Wide","La Jolla Campus","Scripps Institution of Oceanography","Scripps Institution of Oceanography","Surface Lot","P021","P021","S","Scripps Institution of Oceanography",null,null,75,75,null,null,null,68,22,71,75,28,74,74,74,20,17,null,null,null,null,null,17,75,{"$f":"_xlfn.IFS(AJ$1=M$2, M75, AJ$1=N$2, N75,AJ$1=O$2, O75,AJ$1=P$2, P75)","v":75}]
[null,null,"University Wide","La Jolla Campus","West Campus","Revelle College ","Surface Lot","P106","P106","Visitor",null,null,null,1,1,null,null,null,1,1,1,1,0,0,0,0,0,0,null,null,null,null,null,0,1,{"$f":"_xlfn.IFS(AJ$1=M$2, M76, AJ$1=N$2, N76,AJ$1=O$2, O76,AJ$1=P$2, P76)","v":1}]
[null,null,"University Wide","La Jolla Campus","West Campus","Muir College","Surface Lot","P113","P113","Visitor",null,"2 hours",null,22,22,null,null,null,6,10,8,0,2,0,6,4,4,7,null,null,null,null,null,0,10,{"$f":"_xlfn.IFS(AJ$1=M$2, M77, AJ$1=N$2, N77,AJ$1=O$2, O77,AJ$1=P$2, P77)","v":22}]
[null,null,"University Wide","La Jolla Campus","West Campus","Muir College","Surface Lot","P201","P201","A",null,null,null,11,11,null,null,null,1,0,0,0,0,0,0,0,0,0,null,null,null,null,null,0,1,{"$f":"_xlfn.IFS(AJ$1=M$2, M78, AJ$1=N$2, N78,AJ$1=O$2, O78,AJ$1=P$2, P78)","v":11}]
[null,null,"University Wide","La Jolla Campus","West Campus","Muir College","Surface Lot","P206","P206","A",null,"2 Hour",0,0,32,null,null,null,0,0,0,0,0,0,0,0,0,0,null,null,null,null,null,0,0,{"$f":"_xlfn.IFS(AJ$1=M$2, M79, AJ$1=N$2, N79,AJ$1=O$2, O79,AJ$1=P$2, P79)","v":0}]
[null,null,"University Wide","La Jolla Campus","West Campus","Muir College","Surface Lot","P206",{"$f":"IF(G80=\"Surface Lot\", H80, G80)","v":"P206"},"B",null,"2 Hour",48,{"$f":"25+7","v":32},0,null,null,null,1,9,2,0,0,0,2,0,1,2,null,null,null,null,null,0,9,{"$f":"_xlfn.IFS(AJ$1=M$2, M80, AJ$1=N$2, N80,AJ$1=O$2, O80,AJ$1=P$2, P80)","v":32}]
[null,null,"University Wide","La Jolla Campus","West Campus","Muir College","Surface Lot","P206","P206","Electric Vehicle",null,"4-Hour",2,2,2,null,null,null,0,2,0,0,0,0,0,0,1,1,null,null,null,null,null,0,2,{"$f":"_xlfn.IFS(AJ$1=M$2, M81, AJ$1=N$2, N81,AJ$1=O$2, O81,AJ$1=P$2, P81)","v":2}]
[null,null,"University Wide","La Jolla Campus","West Campus","Muir College","Surface Lot","P206","P206","Visitor",null,"2 Hour",5,5,5,null,null,null,3,2,1,4,4,3,2,4,3,2,null,null,null,null,null,1,4,{"$f":"_xlfn.IFS(AJ$1=M$2, M82, AJ$1=N$2, N82,AJ$1=O$2, O82,AJ$1=P$2, P82)","v":5}]
[null,null,"University Wide","La Jolla Campus","West Campus","Roosevelt College","Hopkins","P341","Hopkins","Motorcycle Section",null,null,null,30,30,null,null,null,5,3,1,2,3,3,3,3,3,3,null,null,null,null,null,1,5,{"$f":"_xlfn.IFS(AJ$1=M$2, M83, AJ$1=N$2, N83,AJ$1=O$2, O83,AJ$1=P$2, P83)","v":30}]
[null,null,"University Wide","La Jolla Campus","West Campus","Roosevelt College","Hopkins","P341","Hopkins","Reserved","V2G",null,null,0,0,null,null,null,0,0,0,0,0,0,0,0,0,0,null,null,null,null,null,0,0,{"$f":"_xlfn.IFS(AJ$1=M$2, M84, AJ$1=N$2, N84,AJ$1=O$2, O84,AJ$1=P$2, P84)","v":0}]
[null,null,"University Wide","La Jolla Campus","West Campus","Roosevelt College","Hopkins","P341","Hopkins","UC Vehicle",null,null,null,9,9,null,null,null,9,9,9,9,8,8,8,8,8,8,null,null,null,null,null,8,9,{"$f":"_xlfn.IFS(AJ$1=M$2, M85, AJ$1=N$2, N85,AJ$1=O$2, O85,AJ$1=P$2, P85)","v":9}]
[null,null,"University Wide","La Jolla Campus","West Campus","Roosevelt College","Hopkins","P342","Hopkins","Accessible","Electric Vehicle",null,null,2,2,null,null,null,2,2,2,1,2,2,1,2,2,2,null,null,null,null,null,1,2,{"$f":"_xlfn.IFS(AJ$1=M$2, M86, AJ$1=N$2, N86,AJ$1=O$2, O86,AJ$1=P$2, P86)","v":2}]
[null,null,"University Wide","La Jolla Campus","West Campus","Roosevelt College","Hopkins","P342","Hopkins","Accessible",null,null,null,22,22,null,null,null,20,18,17,17,15,14,13,15,21,21,null,null,null,null,null,13,21,{"$f":"_xlfn.IFS(AJ$1=M$2, M87, AJ$1=N$2, N87,AJ$1=O$2, O87,AJ$1=P$2, P87)","v":22}]
[null,null,"University Wide","La Jolla Campus","West Campus","Roosevelt College","Hopkins","P342","Hopkins","Reserved",null,null,null,10,10,null,null,null,0,0,0,0,0,0,0,0,0,0,null,null,null,null,null,0,0,{"$f":"_xlfn.IFS(AJ$1=M$2, M88, AJ$1=N$2, N88,AJ$1=O$2, O88,AJ$1=P$2, P88)","v":10}]
[null,null,"University Wide","La Jolla Campus","West Campus","North Torrey Pines Living and Learning","Scholars","P211","Scholars","B",null,null,null,381,381,null,null,null,0,9,8,9,0,0,1,6,32,51,null,null,null,null,null,0,51,{"$f":"_xlfn.IFS(AJ$1=M$2, M89, AJ$1=N$2, N89,AJ$1=O$2, O89,AJ$1=P$2, P89)","v":381}]
[null,null,"University Wide","La Jolla Campus","West Campus","North Torrey Pines Living and Learning","Scholars","P211","Scholars","SR",null,null,null,103,103,null,null,null,0,5,5,4,0,0,0,2,9,3,null,null,null,null,null,0,9,{"$f":"_xlfn.IFS(AJ$1=M$2, M90, AJ$1=N$2, N90,AJ$1=O$2, O90,AJ$1=P$2, P90)","v":103}]
[null,null,"University Wide","La Jolla Campus","West Campus","North Torrey Pines Living and Learning","Scholars","P212","Scholars","A",null,null,null,295,295,null,null,null,111,126,94,62,12,3,15,52,89,47,null,null,null,null,null,3,126,{"$f":"_xlfn.IFS(AJ$1=M$2, M91, AJ$1=N$2, N91,AJ$1=O$2, O91,AJ$1=P$2, P91)","v":295}]
[null,null,"University Wide","La Jolla Campus","East Campus","Science Research Park","Nuevo West/Vela","P791","Nuevo West/Vela","Accessible",null,null,null,19,19,null,null,null,10,12,12,13,11,8,10,12,12,12,null,null,null,null,null,8,13,{"$f":"_xlfn.IFS(AJ$1=M$2, M92, AJ$1=N$2, N92,AJ$1=O$2, O92,AJ$1=P$2, P92)","v":19}]
[null,null,"University Wide","La Jolla Campus","East Campus","Science Research Park","Nuevo West/Vela","P791","Nuevo West/Vela","Motorcycle Section",null,null,null,12,12,null,null,null,0,2,3,7,5,5,6,6,6,4,null,null,null,null,null,0,7,{"$f":"_xlfn.IFS(AJ$1=M$2, M93, AJ$1=N$2, N93,AJ$1=O$2, O93,AJ$1=P$2, P93)","v":12}]
[null,null,"University Wide","La Jolla Campus","East Campus","Science Research Park","Nuevo West/Vela","P793","Nuevo West/Vela","Reserved",null,null,null,1,1,null,null,null,0,0,0,0,0,0,0,0,0,0,null,null,null,null,null,0,0,{"$f":"_xlfn.IFS(AJ$1=M$2, M94, AJ$1=N$2, N94,AJ$1=O$2, O94,AJ$1=P$2, P94)","v":1}]
[null,null,"University Wide","La Jolla Campus","West Campus","North Torrey Pines Living and Learning","Scholars","P212","Scholars","Carpool","2 Person",null,null,92,92,null,null,null,60,52,38,30,25,10,12,21,37,49,null,null,null,null,null,10,60,{"$f":"_xlfn.IFS(AJ$1=M$2, M95, AJ$1=N$2, N95,AJ$1=O$2, O95,AJ$1=P$2, P95)","v":92}]
[null,null,"University Wide","La Jolla Campus","West Campus","North Torrey Pines Living and Learning","Scholars","P212","Scholars","Visitor",null,null,null,42,42,null,null,null,21,37,23,22,13,10,15,11,11,21,null,null,null,null,null,10,37,{"$f":"_xlfn.IFS(AJ$1=M$2, M96, AJ$1=N$2, N96,AJ$1=O$2, O96,AJ$1=P$2, P96)","v":42}]
[null,null,"University Wide","La Jolla Campus","Scripps Institution of Oceanography","Scripps Institution of Oceanography","Surface Lot","P001","P001","Accessible","Electric Vehicle",null,null,1,1,null,null,null,1,1,0,0,0,0,1,1,1,1,null,null,null,null,null,0,1,{"$f":"_xlfn.IFS(AJ$1=M$2, M97, AJ$1=N$2, N97,AJ$1=O$2, O97,AJ$1=P$2, P97)","v":1}]
[null,null,"University Wide","La Jolla Campus","Scripps Institution of Oceanography","Scripps Institution of Oceanography","Surface Lot","P001","P001","Loading","Oversized","20 minutes",null,1,1,null,null,null,0,1,0,1,1,0,0,1,1,1,null,null,null,null,null,0,1,{"$f":"_xlfn.IFS(AJ$1=M$2, M98, AJ$1=N$2, N98,AJ$1=O$2, O98,AJ$1=P$2, P98)","v":1}]
[null,null,"University Wide","La Jolla Campus","Scripps Institution of Oceanography","Scripps Institution of Oceanography","Surface Lot","P001","P001","Reserved",null,null,null,2,1,null,null,null,0,0,0,0,0,0,0,0,0,0,null,null,null,null,null,0,0,{"$f":"_xlfn.IFS(AJ$1=M$2, M99, AJ$1=N$2, N99,AJ$1=O$2, O99,AJ$1=P$2, P99)","v":2}]
[null,null,"University Wide","La Jolla Campus","West Campus","North Torrey Pines Living and Learning","Scholars","P213","Scholars","Electric Vehicle",null,null,null,30,30,null,null,null,4,6,6,5,3,5,3,4,5,4,null,null,null,null,null,3,6,{"$f":"_xlfn.IFS(AJ$1=M$2, M100, AJ$1=N$2, N100,AJ$1=O$2, O100,AJ$1=P$2, P100)","v":30}]
[null,null,"University Wide","La Jolla Campus","Scripps Institution of Oceanography","Scripps Institution of Oceanography","Surface Lot","P002","P002","Accessible",null,null,null,2,2,null,null,null,2,1,1,1,1,1,1,2,2,2,null,null,null,null,null,1,2,{"$f":"_xlfn.IFS(AJ$1=M$2, M101, AJ$1=N$2, N101,AJ$1=O$2, O101,AJ$1=P$2, P101)","v":2}]
[null,null,"University Wide","La Jolla Campus","West Campus","North Torrey Pines Living and Learning","Scholars","P213","Scholars","Visitor","2-Hour Limit",60,null,111,111,null,null,null,33,30,24,9,2,8,6,5,12,19,null,null,null,null,null,2,33,{"$f":"_xlfn.IFS(AJ$1=M$2, M102, AJ$1=N$2, N102,AJ$1=O$2, O102,AJ$1=P$2, P102)","v":111}]
[null,null,"University Wide","La Jolla Campus","Scripps Institution of Oceanography","Scripps Institution of Oceanography","Surface Lot","P003","P003","Accessible",null,null,null,2,2,null,null,null,0,1,0,1,0,1,1,1,1,0,null,null,null,null,null,0,1,{"$f":"_xlfn.IFS(AJ$1=M$2, M103, AJ$1=N$2, N103,AJ$1=O$2, O103,AJ$1=P$2, P103)","v":2}]
[null,null,"University Wide","La Jolla Campus","Scripps Institution of Oceanography","Scripps Institution of Oceanography","Surface Lot","P003","P003","Allocated","Lifeguard",null,null,1,1,null,null,null,0,1,0,0,1,0,0,0,1,1,null,null,null,null,null,0,1,{"$f":"_xlfn.IFS(AJ$1=M$2, M104, AJ$1=N$2, N104,AJ$1=O$2, O104,AJ$1=P$2, P104)","v":1}]
[null,null,"University Wide","La Jolla Campus","Scripps Institution of Oceanography","Scripps Institution of Oceanography","Surface Lot","P003","P003","Loading","Commercial","20 minutes",null,3,3,null,null,null,2,2,0,2,3,2,2,2,0,2,null,null,null,null,null,0,3,{"$f":"_xlfn.IFS(AJ$1=M$2, M105, AJ$1=N$2, N105,AJ$1=O$2, O105,AJ$1=P$2, P105)","v":3}]
[null,null,"University Wide","La Jolla Campus","Scripps Institution of Oceanography","Scripps Institution of Oceanography","Surface Lot","P003","P003","Loading",null,"20 minutes",null,2,2,null,null,null,1,2,0,2,1,2,2,2,2,2,null,null,null,null,null,0,2,{"$f":"_xlfn.IFS(AJ$1=M$2, M106, AJ$1=N$2, N106,AJ$1=O$2, O106,AJ$1=P$2, P106)","v":2}]
[null,null,"University Wide","La Jolla Campus","Scripps Institution of Oceanography","Scripps Institution of Oceanography","Surface Lot","P003","P003","Motorcycle Section",null,null,null,0,0,null,null,null,0,0,0,0,0,0,0,0,0,0,null,null,null,null,null,0,0,{"$f":"_xlfn.IFS(AJ$1=M$2, M107, AJ$1=N$2, N107,AJ$1=O$2, O107,AJ$1=P$2, P107)","v":0}]
[null,null,"University Wide","La Jolla Campus","West Campus","Marshall College","Surface Lot","P303","P303","A",null,null,null,84,88,null,null,null,70,42,39,37,21,23,32,35,40,44,null,null,null,null,null,21,70,{"$f":"_xlfn.IFS(AJ$1=M$2, M108, AJ$1=N$2, N108,AJ$1=O$2, O108,AJ$1=P$2, P108)","v":84}]
[null,null,"University Wide","La Jolla Campus","Scripps Institution of Oceanography","Scripps Institution of Oceanography","Surface Lot","P004","P004","Loading","Oversized Commercial","20 minutes",null,2,2,null,null,null,1,0,0,0,0,0,0,0,0,0,null,null,null,null,null,0,1,{"$f":"_xlfn.IFS(AJ$1=M$2, M109, AJ$1=N$2, N109,AJ$1=O$2, O109,AJ$1=P$2, P109)","v":2}]
[null,null,"University Wide","La Jolla Campus","Scripps Institution of Oceanography","Scripps Institution of Oceanography","Surface Lot","P004","P004","Loading",null,"20 minutes",null,5,5,null,null,null,0,0,0,0,0,0,0,0,2,2,null,null,null,null,null,0,2,{"$f":"_xlfn.IFS(AJ$1=M$2, M110, AJ$1=N$2, N110,AJ$1=O$2, O110,AJ$1=P$2, P110)","v":5}]
[null,null,"University Wide","La Jolla Campus","Scripps Institution of Oceanography","Scripps Institution of Oceanography","Surface Lot","P004","P004","Service Yard",null,null,null,1,1,null,null,null,0,1,0,0,0,0,0,0,0,0,null,null,null,null,null,0,1,{"$f":"_xlfn.IFS(AJ$1=M$2, M111, AJ$1=N$2, N111,AJ$1=O$2, O111,AJ$1=P$2, P111)","v":1}]
[null,null,"University Wide","La Jolla Campus","Scripps Institution of Oceanography","Scripps Institution of Oceanography","Surface Lot","P004",{"$f":"IF(G112=\"Surface Lot\", H112, G112)","v":"P004"},"UC Vehicle","UC Cart",null,null,1,1,null,null,null,0,0,0,0,0,0,0,1,0,1,null,null,null,null,null,0,1,{"$f":"_xlfn.IFS(AJ$1=M$2, M112, AJ$1=N$2, N112,AJ$1=O$2, O112,AJ$1=P$2, P112)","v":1}]
[null,null,"University Wide","La Jolla Campus","Scripps Institution of Oceanography","Scripps Institution of Oceanography","Surface Lot","P004","P004","UC Vehicle",null,null,null,5,5,null,null,null,0,1,0,0,0,0,0,1,1,0,null,null,null,null,null,0,1,{"$f":"_xlfn.IFS(AJ$1=M$2, M113, AJ$1=N$2, N113,AJ$1=O$2, O113,AJ$1=P$2, P113)","v":5}]
[null,null,"University Wide","La Jolla Campus","Scripps Institution of Oceanography","Scripps Institution of Oceanography","Surface Lot","P005","P005","Accessible",null,null,null,1,1,null,null,null,1,1,0,1,0,0,0,1,1,1,null,null,null,null,null,0,1,{"$f":"_xlfn.IFS(AJ$1=M$2, M114, AJ$1=N$2, N114,AJ$1=O$2, O114,AJ$1=P$2, P114)","v":1}]
[null,null,"University Wide","La Jolla Campus","Scripps Institution of Oceanography","Scripps Institution of Oceanography","Surface Lot","P005","P005","Loading","Bars","20 minutes",null,1,1,null,null,null,1,0,0,0,1,0,0,0,1,1,null,null,null,null,null,0,1,{"$f":"_xlfn.IFS(AJ$1=M$2, M115, AJ$1=N$2, N115,AJ$1=O$2, O115,AJ$1=P$2, P115)","v":1}]
[null,null,"University Wide","La Jolla Campus","Scripps Institution of Oceanography","Scripps Institution of Oceanography","Surface Lot","P005","P005","Motorcycle Section",null,null,null,2,2,null,null,null,1,1,1,1,1,1,1,1,1,1,null,null,null,null,null,1,1,{"$f":"_xlfn.IFS(AJ$1=M$2, M116, AJ$1=N$2, N116,AJ$1=O$2, O116,AJ$1=P$2, P116)","v":2}]
[null,null,"University Wide","La Jolla Campus","Scripps Institution of Oceanography","Scripps Institution of Oceanography","Surface Lot","P005","P005","Service Yard","Bars",null,null,1,1,null,null,null,0,0,0,0,1,0,0,1,1,1,null,null,null,null,null,0,1,{"$f":"_xlfn.IFS(AJ$1=M$2, M117, AJ$1=N$2, N117,AJ$1=O$2, O117,AJ$1=P$2, P117)","v":1}]
[null,null,"University Wide","La Jolla Campus","West Campus","Marshall College","Surface Lot","P303","P303","Visitor","5 Minute","5 minutes",null,2,2,null,null,null,2,2,2,2,2,2,2,1,1,2,null,null,null,null,null,1,2,{"$f":"_xlfn.IFS(AJ$1=M$2, M118, AJ$1=N$2, N118,AJ$1=O$2, O118,AJ$1=P$2, P118)","v":2}]
[null,null,"University Wide","La Jolla Campus","Scripps Institution of Oceanography","Scripps Institution of Oceanography","Surface Lot","P006","P006","Accessible",null,null,null,1,1,null,null,null,1,1,1,1,1,1,1,1,1,1,null,null,null,null,null,1,1,{"$f":"_xlfn.IFS(AJ$1=M$2, M119, AJ$1=N$2, N119,AJ$1=O$2, O119,AJ$1=P$2, P119)","v":1}]
[null,null,"University Wide","La Jolla Campus","West Campus","Marshall College","Surface Lot","P303","P303","Visitor",null,null,null,26,28,null,null,null,17,9,0,1,4,2,3,8,13,11,null,null,null,null,null,0,17,{"$f":"_xlfn.IFS(AJ$1=M$2, M120, AJ$1=N$2, N120,AJ$1=O$2, O120,AJ$1=P$2, P120)","v":26}]
[null,null,"University Wide","La Jolla Campus","West Campus","Marshall College","Surface Lot","P304","P304","B",null,null,null,0,0,null,null,null,0,0,0,0,0,0,0,0,0,0,null,null,null,null,null,0,0,{"$f":"_xlfn.IFS(AJ$1=M$2, M121, AJ$1=N$2, N121,AJ$1=O$2, O121,AJ$1=P$2, P121)","v":0}]
[null,null,"University Wide","La Jolla Campus","Scripps Institution of Oceanography","Scripps Institution of Oceanography","Surface Lot","P007","P007","Accessible",null,null,null,3,3,null,null,null,1,1,1,1,1,1,1,1,1,1,null,null,null,null,null,1,1,{"$f":"_xlfn.IFS(AJ$1=M$2, M122, AJ$1=N$2, N122,AJ$1=O$2, O122,AJ$1=P$2, P122)","v":3}]
[null,null,"University Wide","La Jolla Campus","Scripps Institution of Oceanography","Scripps Institution of Oceanography","Surface Lot","P007","P007","Loading","Dock","20 minutes",null,1,1,null,null,null,1,1,0,0,0,0,0,0,1,1,null,null,null,null,null,0,1,{"$f":"_xlfn.IFS(AJ$1=M$2, M123, AJ$1=N$2, N123,AJ$1=O$2, O123,AJ$1=P$2, P123)","v":1}]
[null,null,"University Wide","La Jolla Campus","Scripps Institution of Oceanography","Scripps Institution of Oceanography","Surface Lot","P007","P007","Loading",null,"20 minutes",null,1,1,null,null,null,0,0,0,0,0,0,0,0,0,0,null,null,null,null,null,0,0,{"$f":"_xlfn.IFS(AJ$1=M$2, M124, AJ$1=N$2, N124,AJ$1=O$2, O124,AJ$1=P$2, P124)","v":1}]
[null,null,"University Wide","La Jolla Campus","Scripps Institution of Oceanography","Scripps Institution of Oceanography","Surface Lot","P007","P007","Motorcycle Section",null,null,null,2,2,null,null,null,0,0,0,0,0,0,0,0,0,0,null,null,null,null,null,0,0,{"$f":"_xlfn.IFS(AJ$1=M$2, M125, AJ$1=N$2, N125,AJ$1=O$2, O125,AJ$1=P$2, P125)","v":2}]
[null,null,"University Wide","La Jolla Campus","Scripps Institution of Oceanography","Scripps Institution of Oceanography","Surface Lot","P007","P007","UC Vehicle","UC Cart Bar",null,null,1,1,null,null,null,0,1,0,0,1,0,0,0,0,1,null,null,null,null,null,0,1,{"$f":"_xlfn.IFS(AJ$1=M$2, M126, AJ$1=N$2, N126,AJ$1=O$2, O126,AJ$1=P$2, P126)","v":1}]
[null,null,"University Wide","La Jolla Campus","Scripps Institution of Oceanography","Scripps Institution of Oceanography","Surface Lot","P007","P007","UC Vehicle",null,null,null,2,2,null,null,null,1,0,0,0,1,0,0,1,2,0,null,null,null,null,null,0,2,{"$f":"_xlfn.IFS(AJ$1=M$2, M127, AJ$1=N$2, N127,AJ$1=O$2, O127,AJ$1=P$2, P127)","v":2}]
[null,null,"University Wide","La Jolla Campus","West Campus","Marshall College","Surface Lot","P304","P304","S",null,null,null,72,72,null,null,null,8,1,0,0,4,0,1,1,3,22,null,null,null,null,null,0,22,{"$f":"_xlfn.IFS(AJ$1=M$2, M128, AJ$1=N$2, N128,AJ$1=O$2, O128,AJ$1=P$2, P128)","v":72}]
[null,null,"University Wide","La Jolla Campus","Scripps Institution of Oceanography","Scripps Institution of Oceanography","Surface Lot","P008","P008","Accessible",null,null,null,3,3,null,null,null,1,0,0,0,0,0,0,0,0,1,null,null,null,null,null,0,1,{"$f":"_xlfn.IFS(AJ$1=M$2, M129, AJ$1=N$2, N129,AJ$1=O$2, O129,AJ$1=P$2, P129)","v":3}]
[null,null,"University Wide","La Jolla Campus","Scripps Institution of Oceanography","Scripps Institution of Oceanography","Surface Lot","P008","P008","Motorcycle Section",null,null,null,1,1,null,null,null,0,0,0,0,0,0,0,0,0,0,null,null,null,null,null,0,0,{"$f":"_xlfn.IFS(AJ$1=M$2, M130, AJ$1=N$2, N130,AJ$1=O$2, O130,AJ$1=P$2, P130)","v":1}]
[null,null,"University Wide","La Jolla Campus","Scripps Institution of Oceanography","Scripps Institution of Oceanography","Surface Lot","P009","P009","Service Yard",null,null,null,2,2,null,null,null,1,0,0,1,1,0,0,0,0,0,null,null,null,null,null,0,1,{"$f":"_xlfn.IFS(AJ$1=M$2, M131, AJ$1=N$2, N131,AJ$1=O$2, O131,AJ$1=P$2, P131)","v":2}]
[null,null,"University Wide","La Jolla Campus","West Campus","Roosevelt College","Hopkins","P341","Hopkins","S",null,null,null,174,174,null,null,null,112,60,20,15,3,5,6,12,25,49,null,null,null,null,null,{"$f":"MIN($Q132:$AG132)","v":3},{"$f":"MAX($Q132:$AG132)","v":112},{"$f":"_xlfn.IFS(AJ$1=M$2, M132, AJ$1=N$2, N132,AJ$1=O$2, O132,AJ$1=P$2, P132)","v":174}]
[null,null,"University Wide","La Jolla Campus","Scripps Institution of Oceanography","Scripps Institution of Oceanography","Surface Lot","P010","P010","Accessible",null,null,null,1,1,null,null,null,1,1,0,0,0,1,1,1,1,1,null,null,null,null,null,0,1,{"$f":"_xlfn.IFS(AJ$1=M$2, M133, AJ$1=N$2, N133,AJ$1=O$2, O133,AJ$1=P$2, P133)","v":1}]
[null,null,"University Wide","La Jolla Campus","West Campus","Roosevelt College","Hopkins","P341","Hopkins","SR",null,null,null,51,51,null,null,null,37,29,31,29,20,16,14,15,21,24,null,null,null,null,null,14,37,{"$f":"_xlfn.IFS(AJ$1=M$2, M134, AJ$1=N$2, N134,AJ$1=O$2, O134,AJ$1=P$2, P134)","v":51}]
[null,null,"University Wide","La Jolla Campus","Scripps Institution of Oceanography","Scripps Institution of Oceanography","Surface Lot","P011","P011","Accessible",null,null,null,2,2,null,null,null,1,1,2,2,0,2,1,2,1,2,null,null,null,null,null,0,2,{"$f":"_xlfn.IFS(AJ$1=M$2, M135, AJ$1=N$2, N135,AJ$1=O$2, O135,AJ$1=P$2, P135)","v":2}]
[null,null,"University Wide","La Jolla Campus","Scripps Institution of Oceanography","Scripps Institution of Oceanography","Surface Lot","P011","P011","Allocated","Coastal Access","1 hour",null,4,4,null,null,null,4,1,0,0,0,0,1,0,3,2,null,null,null,null,null,0,4,{"$f":"_xlfn.IFS(AJ$1=M$2, M136, AJ$1=N$2, N136,AJ$1=O$2, O136,AJ$1=P$2, P136)","v":4}]
[null,null,"University Wide","La Jolla Campus","Scripps Institution of Oceanography","Scripps Institution of Oceanography","Surface Lot","P011","P011","Loading",null,"20 minutes",null,1,1,null,null,null,1,1,0,1,1,1,1,0,0,1,null,null,null,null,null,0,1,{"$f":"_xlfn.IFS(AJ$1=M$2, M137, AJ$1=N$2, N137,AJ$1=O$2, O137,AJ$1=P$2, P137)","v":1}]
[null,null,"University Wide","La Jolla Campus","Scripps Institution of Oceanography","Scripps Institution of Oceanography","Surface Lot","P011","P011","Motorcycle Section",null,null,null,1,1,null,null,null,0,0,0,0,1,1,1,1,0,0,null,null,null,null,null,0,1,{"$f":"_xlfn.IFS(AJ$1=M$2, M138, AJ$1=N$2, N138,AJ$1=O$2, O138,AJ$1=P$2, P138)","v":1}]
[null,null,"University Wide","La Jolla Campus","West Campus","Roosevelt College","Hopkins","P342","Hopkins","B",null,null,null,639,639,null,null,null,515,324,324,240,117,192,188,197,217,353,null,null,null,null,null,117,515,{"$f":"_xlfn.IFS(AJ$1=M$2, M139, AJ$1=N$2, N139,AJ$1=O$2, O139,AJ$1=P$2, P139)","v":639}]
[null,null,"University Wide","La Jolla Campus","Scripps Institution of Oceanography","Scripps Institution of Oceanography","Surface Lot","P012","P012","Accessible",null,null,null,1,1,null,null,null,1,0,0,0,0,1,1,1,0,1,null,null,null,null,null,0,1,{"$f":"_xlfn.IFS(AJ$1=M$2, M140, AJ$1=N$2, N140,AJ$1=O$2, O140,AJ$1=P$2, P140)","v":1}]
[null,null,"University Wide","La Jolla Campus","West Campus","Roosevelt College","Hopkins","P342","Hopkins","Carpool","2 Person",null,null,78,78,null,null,null,67,56,46,33,24,12,10,9,10,20,null,null,null,null,null,9,67,{"$f":"_xlfn.IFS(AJ$1=M$2, M141, AJ$1=N$2, N141,AJ$1=O$2, O141,AJ$1=P$2, P141)","v":78}]
[null,null,"University Wide","La Jolla Campus","West Campus","Roosevelt College","Hopkins","P342","Hopkins","Electric Vehicle",null,null,null,20,20,null,null,null,18,15,4,4,2,4,4,3,3,9,null,null,null,null,null,2,18,{"$f":"_xlfn.IFS(AJ$1=M$2, M142, AJ$1=N$2, N142,AJ$1=O$2, O142,AJ$1=P$2, P142)","v":20}]
[null,null,"University Wide","La Jolla Campus","Scripps Institution of Oceanography","Scripps Institution of Oceanography","Surface Lot","P013","P013","Accessible",null,null,null,1,1,null,null,null,1,1,1,1,1,1,1,1,1,1,null,null,null,null,null,1,1,{"$f":"_xlfn.IFS(AJ$1=M$2, M143, AJ$1=N$2, N143,AJ$1=O$2, O143,AJ$1=P$2, P143)","v":1}]
[null,null,"University Wide","La Jolla Campus","West Campus","Roosevelt College","Hopkins","P342",{"$f":"IF(G144=\"Surface Lot\", H144, G144)","v":"Hopkins"},"Visitor","5 Minute","5 minutes",null,1,1,null,null,null,1,1,1,1,1,0,0,1,1,1,null,null,null,null,null,0,1,{"$f":"_xlfn.IFS(AJ$1=M$2, M144, AJ$1=N$2, N144,AJ$1=O$2, O144,AJ$1=P$2, P144)","v":1}]
[null,null,"University Wide","La Jolla Campus","West Campus","Roosevelt College","Hopkins","P345","Hopkins","A",null,null,null,295,295,null,null,null,259,189,153,141,199,147,152,169,167,184,null,null,null,null,null,141,259,{"$f":"_xlfn.IFS(AJ$1=M$2, M145, AJ$1=N$2, N145,AJ$1=O$2, O145,AJ$1=P$2, P145)","v":295}]
[null,null,"University Wide","La Jolla Campus","West Campus","Roosevelt College","Hopkins","P345","Hopkins","Carpool","S 3-Person",null,null,6,6,null,null,null,0,0,0,0,4,3,2,2,2,0,null,null,null,null,null,0,4,{"$f":"_xlfn.IFS(AJ$1=M$2, M146, AJ$1=N$2, N146,AJ$1=O$2, O146,AJ$1=P$2, P146)","v":6}]
[null,null,"University Wide","La Jolla Campus","West Campus","Roosevelt College","Hopkins","P347","Hopkins","Visitor",null,null,null,90,90,null,null,null,63,40,34,30,37,50,54,50,48,52,null,null,null,null,null,30,63,{"$f":"_xlfn.IFS(AJ$1=M$2, M147, AJ$1=N$2, N147,AJ$1=O$2, O147,AJ$1=P$2, P147)","v":90}]
[null,null,"University Wide","La Jolla Campus","Scripps Institution of Oceanography","Scripps Institution of Oceanography","Surface Lot","P014","P014","Accessible",null,null,null,4,4,null,null,null,4,4,2,4,3,3,4,4,2,3,null,null,null,null,null,2,4,{"$f":"_xlfn.IFS(AJ$1=M$2, M148, AJ$1=N$2, N148,AJ$1=O$2, O148,AJ$1=P$2, P148)","v":4}]
[null,null,"University Wide","La Jolla Campus","Scripps Institution of Oceanography","Scripps Institution of Oceanography","Surface Lot","P014","P014","Motorcycle Section",null,null,null,8,8,null,null,null,1,0,2,0,1,1,1,1,2,2,null,null,null,null,null,0,2,{"$f":"_xlfn.IFS(AJ$1=M$2, M149, AJ$1=N$2, N149,AJ$1=O$2, O149,AJ$1=P$2, P149)","v":8}]
[null,null,"University Wide","La Jolla Campus","Scripps Institution of Oceanography","Scripps Institution of Oceanography","Surface Lot","P014","P014","Reserved",null,null,null,0,0,null,null,null,0,0,0,0,0,0,0,0,0,0,null,null,null,null,null,0,0,{"$f":"_xlfn.IFS(AJ$1=M$2, M150, AJ$1=N$2, N150,AJ$1=O$2, O150,AJ$1=P$2, P150)","v":0}]
[null,null,"University Wide","La Jolla Campus","Scripps Institution of Oceanography","Scripps Institution of Oceanography","Surface Lot","P015","P015","Loading",null,null,null,1,1,null,null,null,1,1,0,0,0,0,1,0,0,0,null,null,null,null,null,0,1,{"$f":"_xlfn.IFS(AJ$1=M$2, M151, AJ$1=N$2, N151,AJ$1=O$2, O151,AJ$1=P$2, P151)","v":1}]
[null,null,"University Wide","La Jolla Campus","West Campus","North Campus","Surface Lot","P351","P351","A",null,null,null,22,22,null,null,null,7,4,3,1,0,0,2,3,3,4,null,null,null,null,null,0,7,{"$f":"_xlfn.IFS(AJ$1=M$2, M152, AJ$1=N$2, N152,AJ$1=O$2, O152,AJ$1=P$2, P152)","v":22}]
[null,null,"University Wide","La Jolla Campus","Scripps Institution of Oceanography","Scripps Institution of Oceanography","Surface Lot","P016","P016","Accessible",null,null,null,2,2,null,null,null,2,1,2,2,2,2,2,2,2,2,null,null,null,null,null,1,2,{"$f":"_xlfn.IFS(AJ$1=M$2, M153, AJ$1=N$2, N153,AJ$1=O$2, O153,AJ$1=P$2, P153)","v":2}]
[null,null,"University Wide","La Jolla Campus","Scripps Institution of Oceanography","Scripps Institution of Oceanography","Surface Lot","P016","P016","Motorcycle Section",null,null,null,1,1,null,null,null,1,1,1,1,1,1,1,1,0,0,null,null,null,null,null,0,1,{"$f":"_xlfn.IFS(AJ$1=M$2, M154, AJ$1=N$2, N154,AJ$1=O$2, O154,AJ$1=P$2, P154)","v":1}]
[null,null,"University Wide","La Jolla Campus","West Campus","North Campus","Surface Lot","P357","P357","B",null,null,null,119,117,null,null,null,20,1,2,0,1,1,11,10,11,0,null,null,null,null,null,0,20,{"$f":"_xlfn.IFS(AJ$1=M$2, M155, AJ$1=N$2, N155,AJ$1=O$2, O155,AJ$1=P$2, P155)","v":119}]
[null,null,"University Wide","La Jolla Campus","West Campus","North Campus","Surface Lot","P357","P357","Electric Vehicle",null,"4-Hour",null,10,10,null,null,null,6,2,1,0,0,0,1,1,3,2,null,null,null,null,null,0,6,{"$f":"_xlfn.IFS(AJ$1=M$2, M156, AJ$1=N$2, N156,AJ$1=O$2, O156,AJ$1=P$2, P156)","v":10}]
[null,null,"University Wide","La Jolla Campus","Scripps Institution of Oceanography","Scripps Institution of Oceanography","Surface Lot","P017","P017","Accessible",null,null,null,9,9,null,null,null,8,5,7,6,0,5,5,9,5,7,null,null,null,null,null,0,9,{"$f":"_xlfn.IFS(AJ$1=M$2, M157, AJ$1=N$2, N157,AJ$1=O$2, O157,AJ$1=P$2, P157)","v":9}]
[null,null,"University Wide","La Jolla Campus","West Campus","North Campus","Surface Lot","P357","P357","Visitor",null,null,null,13,13,null,null,null,0,6,9,1,1,0,5,6,0,0,null,null,null,null,null,0,9,{"$f":"_xlfn.IFS(AJ$1=M$2, M158, AJ$1=N$2, N158,AJ$1=O$2, O158,AJ$1=P$2, P158)","v":13}]
[null,null,"University Wide","La Jolla Campus","West Campus","Revelle College ","Surface Lot","P101","P101","Accessible",null,null,null,12,12,null,null,null,2,0,0,0,0,0,1,0,6,7,null,null,null,null,null,0,7,{"$f":"_xlfn.IFS(AJ$1=M$2, M159, AJ$1=N$2, N159,AJ$1=O$2, O159,AJ$1=P$2, P159)","v":12}]
[null,null,"University Wide","La Jolla Campus","West Campus","Revelle College ","Surface Lot","P101","P101","Reserved",null,null,null,1,1,null,null,null,0,0,0,0,0,0,0,0,0,0,null,null,null,null,null,0,0,{"$f":"_xlfn.IFS(AJ$1=M$2, M160, AJ$1=N$2, N160,AJ$1=O$2, O160,AJ$1=P$2, P160)","v":1}]
[null,null,"University Wide","La Jolla Campus","West Campus","North Campus","Surface Lot","P359","P359","B",null,null,null,49,49,null,null,null,10,12,9,5,6,8,12,10,7,5,null,null,null,null,null,5,12,{"$f":"_xlfn.IFS(AJ$1=M$2, M161, AJ$1=N$2, N161,AJ$1=O$2, O161,AJ$1=P$2, P161)","v":49}]
[null,null,"University Wide","La Jolla Campus","West Campus","Revelle College ","Surface Lot","P106","P106","Accessible",null,null,null,1,1,null,null,null,1,0,0,1,0,0,0,0,0,0,null,null,null,null,null,0,1,{"$f":"_xlfn.IFS(AJ$1=M$2, M162, AJ$1=N$2, N162,AJ$1=O$2, O162,AJ$1=P$2, P162)","v":1}]
[null,null,"University Wide","La Jolla Campus","West Campus","Revelle College ","Surface Lot","P106","P106","Motorcycle Section",null,null,null,2,2,null,null,null,1,1,0,1,0,1,1,1,1,1,null,null,null,null,null,0,1,{"$f":"_xlfn.IFS(AJ$1=M$2, M163, AJ$1=N$2, N163,AJ$1=O$2, O163,AJ$1=P$2, P163)","v":2}]
[null,null,"University Wide","La Jolla Campus","West Campus","Revelle College ","Surface Lot","P106","P106","Reserved",null,null,null,6,5,null,null,null,0,0,0,0,0,0,0,0,0,0,null,null,null,null,null,0,0,{"$f":"_xlfn.IFS(AJ$1=M$2, M164, AJ$1=N$2, N164,AJ$1=O$2, O164,AJ$1=P$2, P164)","v":6}]
[null,null,"University Wide","La Jolla Campus","West Campus","Revelle College ","Surface Lot","P110","P110","Service Yard",null,null,null,5,5,null,null,null,3,5,5,0,5,4,4,4,5,5,null,null,null,null,null,0,5,{"$f":"_xlfn.IFS(AJ$1=M$2, M165, AJ$1=N$2, N165,AJ$1=O$2, O165,AJ$1=P$2, P165)","v":5}]
[null,null,"University Wide","La Jolla Campus","West Campus","Revelle College ","Surface Lot","P112","P112","Service Yard",null,null,null,7,6,null,null,null,2,2,1,0,0,1,3,3,2,2,null,null,null,null,null,0,3,{"$f":"_xlfn.IFS(AJ$1=M$2, M166, AJ$1=N$2, N166,AJ$1=O$2, O166,AJ$1=P$2, P166)","v":7}]
[null,null,"University Wide","La Jolla Campus","West Campus","Roosevelt College","Pangea","P371","Pangea","S",null,null,null,199,199,null,null,null,105,63,46,34,21,26,29,33,67,83,null,null,null,null,null,21,105,{"$f":"_xlfn.IFS(AJ$1=M$2, M167, AJ$1=N$2, N167,AJ$1=O$2, O167,AJ$1=P$2, P167)","v":199}]
[null,null,"University Wide","La Jolla Campus","West Campus","Muir College","Surface Lot","P113","P113","Accessible",null,null,null,2,2,null,null,null,0,0,0,0,1,0,0,0,0,0,null,null,null,null,null,0,1,{"$f":"_xlfn.IFS(AJ$1=M$2, M168, AJ$1=N$2, N168,AJ$1=O$2, O168,AJ$1=P$2, P168)","v":2}]
[null,null,"University Wide","La Jolla Campus","West Campus","Muir College","Surface Lot","P113","P113","Loading",null,null,null,1,1,null,null,null,1,1,1,0,0,0,0,0,0,1,null,null,null,null,null,0,1,{"$f":"_xlfn.IFS(AJ$1=M$2, M169, AJ$1=N$2, N169,AJ$1=O$2, O169,AJ$1=P$2, P169)","v":1}]
[null,null,"University Wide","La Jolla Campus","West Campus","Muir College","Surface Lot","P113","P113","Motorcycle Section",null,null,null,1,1,null,null,null,1,1,0,0,0,0,0,0,1,1,null,null,null,null,null,0,1,{"$f":"_xlfn.IFS(AJ$1=M$2, M170, AJ$1=N$2, N170,AJ$1=O$2, O170,AJ$1=P$2, P170)","v":1}]
[null,null,"University Wide","La Jolla Campus","West Campus","Muir College","Surface Lot","P113","P113","Reserved","Food Pick-Up","15 min",null,3,3,null,null,null,0,0,0,0,0,0,0,0,0,0,null,null,null,null,null,0,0,{"$f":"_xlfn.IFS(AJ$1=M$2, M171, AJ$1=N$2, N171,AJ$1=O$2, O171,AJ$1=P$2, P171)","v":3}]
[null,null,"University Wide","La Jolla Campus","West Campus","Muir College","Surface Lot","P113","P113","Reserved",null,null,null,1,1,null,null,null,0,0,0,0,0,0,0,0,0,0,null,null,null,null,null,0,0,{"$f":"_xlfn.IFS(AJ$1=M$2, M172, AJ$1=N$2, N172,AJ$1=O$2, O172,AJ$1=P$2, P172)","v":1}]
[null,null,"University Wide","La Jolla Campus","West Campus","Revelle College ","Surface Lot","P116","P116","Allocated","Catering Vehicle",null,null,5,5,null,null,null,0,0,0,0,0,0,0,0,1,0,null,null,null,null,null,0,1,{"$f":"_xlfn.IFS(AJ$1=M$2, M173, AJ$1=N$2, N173,AJ$1=O$2, O173,AJ$1=P$2, P173)","v":5}]
[null,null,"University Wide","La Jolla Campus","West Campus","Revelle College ","Surface Lot","P116","P116","Allocated","Housing, Dining, and Hospitality Vehicle",null,null,5,5,null,null,null,0,0,0,0,0,0,0,0,0,0,null,null,null,null,null,0,0,{"$f":"_xlfn.IFS(AJ$1=M$2, M174, AJ$1=N$2, N174,AJ$1=O$2, O174,AJ$1=P$2, P174)","v":5}]
[null,null,"University Wide","La Jolla Campus","West Campus","Revelle College ","Surface Lot","P116","P116","Allocated","UC Vehicle #0796",null,null,1,1,null,null,null,0,0,1,0,0,1,0,0,0,1,null,null,null,null,null,0,1,{"$f":"_xlfn.IFS(AJ$1=M$2, M175, AJ$1=N$2, N175,AJ$1=O$2, O175,AJ$1=P$2, P175)","v":1}]
[null,null,"University Wide","La Jolla Campus","West Campus","Revelle College ","Surface Lot","P116",{"$f":"IF(G176=\"Surface Lot\", H176, G176)","v":"P116"},"UC Vehicle","Electric Vehicle","4-Hour",null,2,2,null,null,null,0,0,1,1,0,1,0,0,0,0,null,null,null,null,null,0,1,{"$f":"_xlfn.IFS(AJ$1=M$2, M176, AJ$1=N$2, N176,AJ$1=O$2, O176,AJ$1=P$2, P176)","v":2}]
[null,null,"University Wide","La Jolla Campus","West Campus","Roosevelt College","Pangea","P371","Pangea","SR",null,null,null,184,184,null,null,null,77,84,53,57,51,58,48,51,62,55,null,null,null,null,null,48,84,{"$f":"_xlfn.IFS(AJ$1=M$2, M177, AJ$1=N$2, N177,AJ$1=O$2, O177,AJ$1=P$2, P177)","v":184}]
[null,null,"University Wide","La Jolla Campus","West Campus","Muir College","Surface Lot","P201","P201","Accessible",null,null,null,3,3,null,null,null,2,2,0,0,0,0,1,2,2,2,null,null,null,null,null,0,2,{"$f":"_xlfn.IFS(AJ$1=M$2, M178, AJ$1=N$2, N178,AJ$1=O$2, O178,AJ$1=P$2, P178)","v":3}]
[null,null,"University Wide","La Jolla Campus","West Campus","Muir College","Surface Lot","P201","P201","Loading","Space",15,null,8,8,null,null,null,0,3,4,2,1,1,0,0,1,1,null,null,null,null,null,0,4,{"$f":"_xlfn.IFS(AJ$1=M$2, M179, AJ$1=N$2, N179,AJ$1=O$2, O179,AJ$1=P$2, P179)","v":8}]
[null,null,"University Wide","La Jolla Campus","West Campus","Muir College","Surface Lot","P201","P201","Motorcycle Section",null,null,null,3,3,null,null,null,1,2,2,0,0,0,1,2,2,2,null,null,null,null,null,0,2,{"$f":"_xlfn.IFS(AJ$1=M$2, M180, AJ$1=N$2, N180,AJ$1=O$2, O180,AJ$1=P$2, P180)","v":3}]
[null,null,"University Wide","La Jolla Campus","West Campus","Muir College","Surface Lot","P202","P202","Accessible",null,null,null,3,2,null,null,null,0,0,0,0,0,0,1,1,1,0,null,null,null,null,null,0,1,{"$f":"_xlfn.IFS(AJ$1=M$2, M181, AJ$1=N$2, N181,AJ$1=O$2, O181,AJ$1=P$2, P181)","v":3}]
[null,null,"University Wide","La Jolla Campus","West Campus","Muir College","Surface Lot","P202","P202","Loading","Space",20,null,4,4,null,null,null,3,2,0,4,3,0,2,1,1,1,null,null,null,null,null,0,4,{"$f":"_xlfn.IFS(AJ$1=M$2, M182, AJ$1=N$2, N182,AJ$1=O$2, O182,AJ$1=P$2, P182)","v":4}]
[null,null,"University Wide","La Jolla Campus","West Campus","Muir College","Surface Lot","P202","P202","Reserved",null,null,null,1,1,null,null,null,0,0,0,0,0,0,0,0,0,0,null,null,null,null,null,0,0,{"$f":"_xlfn.IFS(AJ$1=M$2, M183, AJ$1=N$2, N183,AJ$1=O$2, O183,AJ$1=P$2, P183)","v":1}]
[null,null,"University Wide","La Jolla Campus","West Campus","Muir College","Surface Lot","P202","P202","Service Yard",null,null,null,2,2,null,null,null,2,2,2,2,2,0,2,2,2,2,null,null,null,null,null,0,2,{"$f":"_xlfn.IFS(AJ$1=M$2, M184, AJ$1=N$2, N184,AJ$1=O$2, O184,AJ$1=P$2, P184)","v":2}]
[null,null,"University Wide","La Jolla Campus","West Campus","Muir College","Surface Lot","P203","P203","Reserved",null,null,null,5,6,null,null,null,0,0,0,0,0,0,0,0,0,0,null,null,null,null,null,0,0,{"$f":"_xlfn.IFS(AJ$1=M$2, M185, AJ$1=N$2, N185,AJ$1=O$2, O185,AJ$1=P$2, P185)","v":5}]
[null,null,"University Wide","La Jolla Campus","West Campus","Muir College","Surface Lot","P204","P204","Allocated","Housing/Dining Maintenance Vehicle",null,null,2,2,null,null,null,0,1,1,0,0,1,1,0,2,2,null,null,null,null,null,0,2,{"$f":"_xlfn.IFS(AJ$1=M$2, M186, AJ$1=N$2, N186,AJ$1=O$2, O186,AJ$1=P$2, P186)","v":2}]
[null,null,"University Wide","La Jolla Campus","West Campus","Muir College","Surface Lot","P205","P205","Service Yard",null,null,null,4,4,null,null,null,0,0,2,2,2,0,2,2,2,2,null,null,null,null,null,0,2,{"$f":"_xlfn.IFS(AJ$1=M$2, M187, AJ$1=N$2, N187,AJ$1=O$2, O187,AJ$1=P$2, P187)","v":4}]
[null,null,"University Wide","La Jolla Campus","West Campus","Roosevelt College","Pangea","P373","Pangea","B",null,null,null,387,387,null,null,null,235,154,92,117,89,81,73,91,107,147,null,null,null,null,null,73,235,{"$f":"_xlfn.IFS(AJ$1=M$2, M188, AJ$1=N$2, N188,AJ$1=O$2, O188,AJ$1=P$2, P188)","v":387}]
[null,null,"University Wide","La Jolla Campus","West Campus","Roosevelt College","Pangea","P375","Pangea","A",null,null,null,142,142,null,null,null,94,89,86,65,82,73,51,87,84,91,null,null,null,null,null,51,94,{"$f":"_xlfn.IFS(AJ$1=M$2, M189, AJ$1=N$2, N189,AJ$1=O$2, O189,AJ$1=P$2, P189)","v":142}]
[null,null,"University Wide","La Jolla Campus","West Campus","Roosevelt College","Pangea","P375","Pangea","Electric Vehicle",null,null,null,4,4,null,null,null,2,3,3,1,2,1,2,2,3,3,null,null,null,null,null,1,3,{"$f":"_xlfn.IFS(AJ$1=M$2, M190, AJ$1=N$2, N190,AJ$1=O$2, O190,AJ$1=P$2, P190)","v":4}]
[null,null,"University Wide","La Jolla Campus","West Campus","Roosevelt College","Pangea","P376","Pangea","Visitor",null,null,null,76,76,null,null,null,36,37,29,47,58,55,53,59,56,61,null,null,null,null,null,29,61,{"$f":"_xlfn.IFS(AJ$1=M$2, M191, AJ$1=N$2, N191,AJ$1=O$2, O191,AJ$1=P$2, P191)","v":76}]
[null,null,"University Wide","La Jolla Campus","West Campus","Muir College","Surface Lot","P206","P206","Accessible",null,null,6,6,6,null,null,null,3,3,2,0,0,2,2,2,3,3,null,null,null,null,null,0,3,{"$f":"_xlfn.IFS(AJ$1=M$2, M192, AJ$1=N$2, N192,AJ$1=O$2, O192,AJ$1=P$2, P192)","v":6}]
[null,null,"University Wide","La Jolla Campus","West Campus","Muir College","Surface Lot","P206","P206","Commercial Loading",null,null,0,4,4,null,null,null,3,3,3,4,4,4,3,3,3,3,null,null,null,null,null,3,4,{"$f":"_xlfn.IFS(AJ$1=M$2, M193, AJ$1=N$2, N193,AJ$1=O$2, O193,AJ$1=P$2, P193)","v":4}]
[null,null,"University Wide","La Jolla Campus","West Campus","Muir College","Surface Lot","P206","P206","Loading Zone",null,"5 Min",1,1,1,null,null,null,1,1,1,1,1,1,1,1,1,1,null,null,null,null,null,1,1,{"$f":"_xlfn.IFS(AJ$1=M$2, M194, AJ$1=N$2, N194,AJ$1=O$2, O194,AJ$1=P$2, P194)","v":1}]
[null,null,"University Wide","La Jolla Campus","West Campus","Muir College","Surface Lot","P206","P206","UC Vehicle",null,null,0,4,4,null,null,null,2,2,2,2,1,1,1,1,2,1,null,null,null,null,null,1,2,{"$f":"_xlfn.IFS(AJ$1=M$2, M195, AJ$1=N$2, N195,AJ$1=O$2, O195,AJ$1=P$2, P195)","v":4}]
[null,null,"University Wide","La Jolla Campus","West Campus","Torrey Pines Center","Torrey Pines Center South","P381",{"$f":"IF(G196=\"Surface Lot\", H196, G196)","v":"Torrey Pines Center South"},"B",null,null,null,373,373,null,null,null,112,129,232,211,208,192,206,226,260,290,null,null,null,null,null,{"$f":"MIN($Q196:$AG196)","v":112},{"$f":"MAX($Q196:$AG196)","v":290},{"$f":"_xlfn.IFS(AJ$1=M$2, M196, AJ$1=N$2, N196,AJ$1=O$2, O196,AJ$1=P$2, P196)","v":373}]
[null,null,"University Wide","La Jolla Campus","West Campus","Torrey Pines Center","Torrey Pines Center South","P381","Torrey Pines Center South","Carpool","B 3-Person",null,null,10,10,null,null,null,7,8,8,7,9,7,7,6,6,6,null,null,null,null,null,6,9,{"$f":"_xlfn.IFS(AJ$1=M$2, M197, AJ$1=N$2, N197,AJ$1=O$2, O197,AJ$1=P$2, P197)","v":10}]
[null,null,"University Wide","La Jolla Campus","West Campus","Torrey Pines Center","Torrey Pines Center South","P382","Torrey Pines Center South","Electric Vehicle",null,null,null,10,10,null,null,null,9,8,7,7,6,6,5,4,6,10,null,null,null,null,null,4,10,{"$f":"_xlfn.IFS(AJ$1=M$2, M198, AJ$1=N$2, N198,AJ$1=O$2, O198,AJ$1=P$2, P198)","v":10}]
[null,null,"University Wide","La Jolla Campus","West Campus","Marshall College","Surface Lot","P303","P303","Accessible",null,null,null,6,6,null,null,null,6,4,3,2,4,4,4,4,5,6,null,null,null,null,null,2,6,{"$f":"_xlfn.IFS(AJ$1=M$2, M199, AJ$1=N$2, N199,AJ$1=O$2, O199,AJ$1=P$2, P199)","v":6}]
[null,null,"University Wide","La Jolla Campus","West Campus","Marshall College","Surface Lot","P303","P303","Loading",null,"20 minutes",null,2,2,null,null,null,2,2,2,1,1,2,1,2,2,2,null,null,null,null,null,1,2,{"$f":"_xlfn.IFS(AJ$1=M$2, M200, AJ$1=N$2, N200,AJ$1=O$2, O200,AJ$1=P$2, P200)","v":2}]
[null,null,"University Wide","La Jolla Campus","West Campus","Marshall College","Surface Lot","P303","P303","Reserved",null,null,null,5,5,null,null,null,0,0,0,0,0,0,0,0,0,0,null,null,null,null,null,0,0,{"$f":"_xlfn.IFS(AJ$1=M$2, M201, AJ$1=N$2, N201,AJ$1=O$2, O201,AJ$1=P$2, P201)","v":5}]
[null,null,"University Wide","La Jolla Campus","West Campus","Marshall College","Surface Lot","P303","P303","Service Yard",null,null,null,2,2,null,null,null,2,2,2,2,2,2,2,2,2,2,null,null,null,null,null,2,2,{"$f":"_xlfn.IFS(AJ$1=M$2, M202, AJ$1=N$2, N202,AJ$1=O$2, O202,AJ$1=P$2, P202)","v":2}]
[null,null,"University Wide","La Jolla Campus","West Campus","Torrey Pines Center","Torrey Pines Center South","P382","Torrey Pines Center South","S",null,null,null,0,0,null,null,null,0,0,0,0,0,0,0,0,0,0,null,null,null,null,null,0,0,{"$f":"_xlfn.IFS(AJ$1=M$2, M203, AJ$1=N$2, N203,AJ$1=O$2, O203,AJ$1=P$2, P203)","v":0}]
[null,null,"University Wide","La Jolla Campus","West Campus","Torrey Pines Center","Torrey Pines Center South","P382","Torrey Pines Center South","Visitor",null,null,null,17,17,null,null,null,6,3,3,2,7,6,7,8,9,8,null,null,null,null,null,2,9,{"$f":"_xlfn.IFS(AJ$1=M$2, M204, AJ$1=N$2, N204,AJ$1=O$2, O204,AJ$1=P$2, P204)","v":17}]
[null,null,"University Wide","La Jolla Campus","West Campus","Marshall College","Surface Lot","P304","P304","Accessible",null,null,null,2,2,null,null,null,0,0,0,0,0,0,0,1,1,2,null,null,null,null,null,0,2,{"$f":"_xlfn.IFS(AJ$1=M$2, M205, AJ$1=N$2, N205,AJ$1=O$2, O205,AJ$1=P$2, P205)","v":2}]
[null,null,"University Wide","La Jolla Campus","West Campus","Marshall College","Surface Lot","P304","P304","Loading",null,"20 minutes",null,2,2,null,null,null,1,1,1,1,2,1,1,2,2,2,null,null,null,null,null,1,2,{"$f":"_xlfn.IFS(AJ$1=M$2, M206, AJ$1=N$2, N206,AJ$1=O$2, O206,AJ$1=P$2, P206)","v":2}]
[null,null,"University Wide","La Jolla Campus","West Campus","Marshall College","Surface Lot","P304","P304","Motorcycle Section",null,null,null,5,5,null,null,null,1,1,1,1,0,0,0,0,1,1,null,null,null,null,null,0,1,{"$f":"_xlfn.IFS(AJ$1=M$2, M207, AJ$1=N$2, N207,AJ$1=O$2, O207,AJ$1=P$2, P207)","v":5}]
[null,null,"University Wide","La Jolla Campus","West Campus","Marshall College","Surface Lot","P304","P304","Service Yard",null,null,null,2,2,null,null,null,2,1,0,0,1,0,0,2,1,1,null,null,null,null,null,0,2,{"$f":"_xlfn.IFS(AJ$1=M$2, M208, AJ$1=N$2, N208,AJ$1=O$2, O208,AJ$1=P$2, P208)","v":2}]
[null,null,"University Wide","La Jolla Campus","West Campus","Roosevelt College","Surface Lot","P306","P306","Accessible",null,null,null,3,3,null,null,null,0,1,0,1,0,0,0,0,1,0,null,null,null,null,null,0,1,{"$f":"_xlfn.IFS(AJ$1=M$2, M209, AJ$1=N$2, N209,AJ$1=O$2, O209,AJ$1=P$2, P209)","v":3}]
[null,null,"University Wide","La Jolla Campus","West Campus","Roosevelt College","Surface Lot","P306","P306","Loading",null,"20 minutes",null,4,4,null,null,null,3,2,2,3,2,2,2,1,0,0,null,null,null,null,null,0,3,{"$f":"_xlfn.IFS(AJ$1=M$2, M210, AJ$1=N$2, N210,AJ$1=O$2, O210,AJ$1=P$2, P210)","v":4}]
[null,null,"University Wide","La Jolla Campus","West Campus","Roosevelt College","Surface Lot","P306","P306","Reserved",null,null,null,4,4,null,null,null,0,0,0,0,0,0,0,0,0,0,null,null,null,null,null,0,0,{"$f":"_xlfn.IFS(AJ$1=M$2, M211, AJ$1=N$2, N211,AJ$1=O$2, O211,AJ$1=P$2, P211)","v":4}]
[null,null,"University Wide","La Jolla Campus","West Campus","Roosevelt College","Surface Lot","P306","P306","UC Vehicle",null,null,null,3,3,null,null,null,2,2,2,2,2,2,2,2,1,2,null,null,null,null,null,1,2,{"$f":"_xlfn.IFS(AJ$1=M$2, M212, AJ$1=N$2, N212,AJ$1=O$2, O212,AJ$1=P$2, P212)","v":3}]
[null,null,"University Wide","La Jolla Campus","West Campus","Marshall College","Surface Lot","P310","P310","Accessible",null,null,null,2,2,null,null,null,2,0,1,1,2,2,2,2,2,2,null,null,null,null,null,0,2,{"$f":"_xlfn.IFS(AJ$1=M$2, M213, AJ$1=N$2, N213,AJ$1=O$2, O213,AJ$1=P$2, P213)","v":2}]
[null,null,"University Wide","La Jolla Campus","West Campus","Marshall College","Surface Lot","P310","P310","Loading",null,"20 minutes",null,2,2,null,null,null,2,1,1,0,1,1,2,2,0,1,null,null,null,null,null,0,2,{"$f":"_xlfn.IFS(AJ$1=M$2, M214, AJ$1=N$2, N214,AJ$1=O$2, O214,AJ$1=P$2, P214)","v":2}]
[null,null,"University Wide","La Jolla Campus","West Campus","Torrey Pines Center","Surface Lot","P384","P384","B","Sanford Consortium",null,null,123,175,null,null,null,72,50,33,12,7,14,23,4,46,67,null,null,null,null,null,4,72,{"$f":"_xlfn.IFS(AJ$1=M$2, M215, AJ$1=N$2, N215,AJ$1=O$2, O215,AJ$1=P$2, P215)","v":123}]
[null,null,"University Wide","La Jolla Campus","West Campus","North Campus","Surface Lot","P351","P351","Reserved","Rady School",null,null,3,3,null,null,null,0,0,0,0,0,0,0,0,0,0,null,null,null,null,null,0,0,{"$f":"_xlfn.IFS(AJ$1=M$2, M216, AJ$1=N$2, N216,AJ$1=O$2, O216,AJ$1=P$2, P216)","v":3}]
[null,null,"University Wide","La Jolla Campus","West Campus","North Campus","Surface Lot","P351","P351","Reserved",null,null,null,7,7,null,null,null,0,0,0,0,0,0,0,0,0,0,null,null,null,null,null,0,0,{"$f":"_xlfn.IFS(AJ$1=M$2, M217, AJ$1=N$2, N217,AJ$1=O$2, O217,AJ$1=P$2, P217)","v":7}]
[null,null,"University Wide","La Jolla Campus","West Campus","North Campus","Surface Lot","P352","P352","Accessible",null,null,null,1,1,null,null,null,1,1,1,1,1,1,1,1,1,1,null,null,null,null,null,1,1,{"$f":"_xlfn.IFS(AJ$1=M$2, M218, AJ$1=N$2, N218,AJ$1=O$2, O218,AJ$1=P$2, P218)","v":1}]
[null,null,"University Wide","La Jolla Campus","West Campus","North Campus","Surface Lot","P352","P352","Loading",null,"20 minutes",null,1,1,null,null,null,1,1,1,1,1,1,1,1,1,1,null,null,null,null,null,1,1,{"$f":"_xlfn.IFS(AJ$1=M$2, M219, AJ$1=N$2, N219,AJ$1=O$2, O219,AJ$1=P$2, P219)","v":1}]
[null,null,"University Wide","La Jolla Campus","West Campus","North Campus","Surface Lot","P352","P352","Service Yard",null,null,null,2,2,null,null,null,0,0,0,0,0,0,0,0,0,0,null,null,null,null,null,0,0,{"$f":"_xlfn.IFS(AJ$1=M$2, M220, AJ$1=N$2, N220,AJ$1=O$2, O220,AJ$1=P$2, P220)","v":2}]
[null,null,"University Wide","La Jolla Campus","West Campus","North Campus","Surface Lot","P353","P353","Accessible",null,null,null,4,4,null,null,null,0,0,1,1,0,0,1,0,1,1,null,null,null,null,null,0,1,{"$f":"_xlfn.IFS(AJ$1=M$2, M221, AJ$1=N$2, N221,AJ$1=O$2, O221,AJ$1=P$2, P221)","v":4}]
[null,null,"University Wide","La Jolla Campus","West Campus","North Campus","Surface Lot","P353","P353","Allocated","Fuel-efficient Vehicle",null,null,1,1,null,null,null,1,1,1,1,1,1,1,1,1,1,null,null,null,null,null,1,1,{"$f":"_xlfn.IFS(AJ$1=M$2, M222, AJ$1=N$2, N222,AJ$1=O$2, O222,AJ$1=P$2, P222)","v":1}]
[null,null,"University Wide","La Jolla Campus","West Campus","North Campus","Surface Lot","P353","P353","Loading",null,"20 minutes",null,17,17,null,null,null,6,7,4,6,4,5,4,4,6,5,null,null,null,null,null,4,7,{"$f":"_xlfn.IFS(AJ$1=M$2, M223, AJ$1=N$2, N223,AJ$1=O$2, O223,AJ$1=P$2, P223)","v":17}]
[null,null,"University Wide","La Jolla Campus","West Campus","North Campus","Surface Lot","P353","P353","UC Vehicle",null,null,null,1,3,null,null,null,1,1,0,1,1,1,1,1,1,1,null,null,null,null,null,0,1,{"$f":"_xlfn.IFS(AJ$1=M$2, M224, AJ$1=N$2, N224,AJ$1=O$2, O224,AJ$1=P$2, P224)","v":1}]
[null,null,"University Wide","La Jolla Campus","West Campus","Roosevelt College","Surface Lot","P354","P354","Accessible",null,null,null,4,4,null,null,null,0,1,0,1,0,0,0,0,0,1,null,null,null,null,null,0,1,{"$f":"_xlfn.IFS(AJ$1=M$2, M225, AJ$1=N$2, N225,AJ$1=O$2, O225,AJ$1=P$2, P225)","v":4}]
[null,null,"University Wide","La Jolla Campus","West Campus","Roosevelt College","Surface Lot","P354","P354","Reserved",null,null,null,1,1,null,null,null,0,0,0,0,0,0,0,0,0,0,null,null,null,null,null,0,0,{"$f":"_xlfn.IFS(AJ$1=M$2, M226, AJ$1=N$2, N226,AJ$1=O$2, O226,AJ$1=P$2, P226)","v":1}]
[null,null,"University Wide","La Jolla Campus","West Campus","Roosevelt College","Surface Lot","P354","P354","Service Yard",null,null,null,8,8,null,null,null,5,3,1,0,1,1,3,2,3,3,null,null,null,null,null,0,5,{"$f":"_xlfn.IFS(AJ$1=M$2, M227, AJ$1=N$2, N227,AJ$1=O$2, O227,AJ$1=P$2, P227)","v":8}]
[null,null,"University Wide","La Jolla Campus","West Campus","Roosevelt College","Surface Lot","P354","P354","UC Vehicle",null,null,null,2,2,null,null,null,0,0,0,0,0,0,0,0,0,0,null,null,null,null,null,0,0,{"$f":"_xlfn.IFS(AJ$1=M$2, M228, AJ$1=N$2, N228,AJ$1=O$2, O228,AJ$1=P$2, P228)","v":2}]
[null,null,"University Wide","La Jolla Campus","West Campus","Torrey Pines Center","Surface Lot","P385","P385","Visitor","Sanford Consortium",null,null,207,202,null,null,null,75,63,52,59,65,55,62,102,107,136,null,null,null,null,null,52,136,{"$f":"_xlfn.IFS(AJ$1=M$2, M229, AJ$1=N$2, N229,AJ$1=O$2, O229,AJ$1=P$2, P229)","v":207}]
[null,null,"University Wide","La Jolla Campus","West Campus","Torrey Pines Center","Surface Lot","P386 (Gliderport)","P386 (Gliderport)","SS ($3.50)",null,null,null,335,335,null,null,null,264,245,185,178,167,171,181,215,232,259,null,null,null,null,null,167,264,{"$f":"_xlfn.IFS(AJ$1=M$2, M230, AJ$1=N$2, N230,AJ$1=O$2, O230,AJ$1=P$2, P230)","v":335}]
[null,null,"University Wide","La Jolla Campus","West Campus","Torrey Pines Center","Torrey Pines Center North","P391","Torrey Pines Center North","B","Oversized",null,null,5,5,null,null,null,5,4,3,3,3,3,2,4,3,3,null,null,null,null,null,2,5,{"$f":"_xlfn.IFS(AJ$1=M$2, M231, AJ$1=N$2, N231,AJ$1=O$2, O231,AJ$1=P$2, P231)","v":5}]
[null,null,"University Wide","La Jolla Campus","West Campus","North Campus","Surface Lot","P357","P357","Accessible",null,null,null,5,5,null,null,null,4,3,2,1,0,0,1,2,4,3,null,null,null,null,null,0,4,{"$f":"_xlfn.IFS(AJ$1=M$2, M232, AJ$1=N$2, N232,AJ$1=O$2, O232,AJ$1=P$2, P232)","v":5}]
[null,null,"University Wide","La Jolla Campus","West Campus","North Campus","Surface Lot","P357","P357","Motorcycle Section",null,null,null,12,12,null,null,null,1,1,1,1,1,0,1,1,0,0,null,null,null,null,null,0,1,{"$f":"_xlfn.IFS(AJ$1=M$2, M233, AJ$1=N$2, N233,AJ$1=O$2, O233,AJ$1=P$2, P233)","v":12}]
[null,null,"University Wide","La Jolla Campus","West Campus","North Campus","Surface Lot","P357","P357","Reserved",null,null,null,2,4,null,null,null,0,0,0,0,0,0,0,0,0,0,null,null,null,null,null,0,0,{"$f":"_xlfn.IFS(AJ$1=M$2, M234, AJ$1=N$2, N234,AJ$1=O$2, O234,AJ$1=P$2, P234)","v":2}]
[null,null,"University Wide","La Jolla Campus","West Campus","North Campus","Surface Lot","P357","P357","Service Yard",null,null,null,2,2,null,null,null,2,2,1,1,2,2,0,0,1,1,null,null,null,null,null,0,2,{"$f":"_xlfn.IFS(AJ$1=M$2, M235, AJ$1=N$2, N235,AJ$1=O$2, O235,AJ$1=P$2, P235)","v":2}]
[null,null,"University Wide","La Jolla Campus","West Campus","North Campus","Surface Lot","P358","P358","UC Vehicle",null,null,null,1,1,null,null,null,0,0,0,0,0,0,0,0,0,0,null,null,null,null,null,0,0,{"$f":"_xlfn.IFS(AJ$1=M$2, M236, AJ$1=N$2, N236,AJ$1=O$2, O236,AJ$1=P$2, P236)","v":1}]
[null,null,"University Wide","La Jolla Campus","West Campus","Torrey Pines Center","Torrey Pines Center North","P391","Torrey Pines Center North","B",null,null,null,183,183,null,null,null,154,131,123,109,140,132,131,166,168,181,null,null,null,null,null,109,181,{"$f":"_xlfn.IFS(AJ$1=M$2, M237, AJ$1=N$2, N237,AJ$1=O$2, O237,AJ$1=P$2, P237)","v":183}]
[null,null,"University Wide","La Jolla Campus","West Campus","North Campus","Surface Lot","P359","P359","UC Vehicle",null,null,null,7,7,null,null,null,3,3,3,4,2,2,3,3,2,3,null,null,null,null,null,2,4,{"$f":"_xlfn.IFS(AJ$1=M$2, M238, AJ$1=N$2, N238,AJ$1=O$2, O238,AJ$1=P$2, P238)","v":7}]
[null,null,"University Wide","La Jolla Campus","West Campus","Torrey Pines Center","Torrey Pines Center North","P392","Torrey Pines Center North","Carpool","A 3-Person",null,null,1,1,null,null,null,1,1,0,0,1,0,1,1,1,1,null,null,null,null,null,0,1,{"$f":"_xlfn.IFS(AJ$1=M$2, M239, AJ$1=N$2, N239,AJ$1=O$2, O239,AJ$1=P$2, P239)","v":1}]
[null,null,"University Wide","La Jolla Campus","West Campus","Torrey Pines Center","Surface Lot","P384","P384","Allocated","SCRM",null,null,52,0,null,null,null,11,2,0,0,0,0,1,0,3,13,null,null,null,null,null,0,13,{"$f":"_xlfn.IFS(AJ$1=M$2, M240, AJ$1=N$2, N240,AJ$1=O$2, O240,AJ$1=P$2, P240)","v":52}]
[null,null,"University Wide","La Jolla Campus","West Campus","Torrey Pines Center","Surface Lot","P384","P384","Motorcycle Section",null,null,null,4,4,null,null,null,2,2,2,2,2,2,2,2,2,2,null,null,null,null,null,2,2,{"$f":"_xlfn.IFS(AJ$1=M$2, M241, AJ$1=N$2, N241,AJ$1=O$2, O241,AJ$1=P$2, P241)","v":4}]
[null,null,"University Wide","La Jolla Campus","West Campus","Torrey Pines Center","Torrey Pines Center North","P393","Torrey Pines Center North","S",null,null,null,5,5,null,null,null,3,3,3,2,3,3,3,3,3,4,null,null,null,null,null,2,4,{"$f":"_xlfn.IFS(AJ$1=M$2, M242, AJ$1=N$2, N242,AJ$1=O$2, O242,AJ$1=P$2, P242)","v":5}]
[null,null,"University Wide","La Jolla Campus","West Campus","Torrey Pines Center","Surface Lot","P385","P385","Accessible",null,null,null,10,10,null,null,null,8,8,7,6,5,5,5,5,6,6,null,null,null,null,null,5,8,{"$f":"_xlfn.IFS(AJ$1=M$2, M243, AJ$1=N$2, N243,AJ$1=O$2, O243,AJ$1=P$2, P243)","v":10}]
[null,null,"University Wide","La Jolla Campus","West Campus","Torrey Pines Center","Surface Lot","P385","P385","Reserved",null,null,null,11,11,null,null,null,0,0,0,0,0,0,0,0,0,0,null,null,null,null,null,0,0,{"$f":"_xlfn.IFS(AJ$1=M$2, M244, AJ$1=N$2, N244,AJ$1=O$2, O244,AJ$1=P$2, P244)","v":11}]
[null,null,"University Wide","La Jolla Campus","West Campus","Torrey Pines Center","Torrey Pines Center North","P395","Torrey Pines Center North","Visitor",null,null,null,10,10,null,null,null,7,7,6,4,4,5,6,9,9,10,null,null,null,null,null,4,10,{"$f":"_xlfn.IFS(AJ$1=M$2, M245, AJ$1=N$2, N245,AJ$1=O$2, O245,AJ$1=P$2, P245)","v":10}]
[null,null,"University Wide","La Jolla Campus","West Campus","Pepper Canyon","Surface Lot","P401","P401","SR",null,null,null,96,96,null,null,null,4,13,10,13,15,16,20,22,23,26,null,null,null,null,null,4,26,{"$f":"_xlfn.IFS(AJ$1=M$2, M246, AJ$1=N$2, N246,AJ$1=O$2, O246,AJ$1=P$2, P246)","v":96}]
[null,null,"University Wide","La Jolla Campus","West Campus","Pepper Canyon","Surface Lot","P401","P401","Accessible",null,null,null,1,1,null,null,null,1,0,0,0,0,0,0,0,0,0,null,null,null,null,null,0,1,{"$f":"_xlfn.IFS(AJ$1=M$2, M247, AJ$1=N$2, N247,AJ$1=O$2, O247,AJ$1=P$2, P247)","v":1}]
[null,null,"University Wide","La Jolla Campus","West Campus","Pepper Canyon","Surface Lot","P401","P401","Loading",null,20,null,2,2,null,null,null,2,1,1,2,1,0,0,0,0,1,null,null,null,null,null,0,2,{"$f":"_xlfn.IFS(AJ$1=M$2, M248, AJ$1=N$2, N248,AJ$1=O$2, O248,AJ$1=P$2, P248)","v":2}]
[null,null,"University Wide","La Jolla Campus","West Campus","Pepper Canyon","Surface Lot","P402","P402","A","24/7 Enforced",null,null,4,4,null,null,null,3,3,2,1,3,2,0,0,0,0,null,null,null,null,null,0,3,{"$f":"_xlfn.IFS(AJ$1=M$2, M249, AJ$1=N$2, N249,AJ$1=O$2, O249,AJ$1=P$2, P249)","v":4}]
[null,null,"University Wide","La Jolla Campus","West Campus","Pepper Canyon","Surface Lot","P402","P402","Visitor",null,null,null,3,3,null,null,null,2,2,2,1,2,1,0,2,1,0,null,null,null,null,null,0,2,{"$f":"_xlfn.IFS(AJ$1=M$2, M250, AJ$1=N$2, N250,AJ$1=O$2, O250,AJ$1=P$2, P250)","v":3}]
[null,null,"University Wide","La Jolla Campus","West Campus","Pepper Canyon","Surface Lot","P402","P402","Accessible",null,null,null,3,3,null,null,null,0,0,0,0,0,0,0,0,0,0,null,null,null,null,null,0,0,{"$f":"_xlfn.IFS(AJ$1=M$2, M251, AJ$1=N$2, N251,AJ$1=O$2, O251,AJ$1=P$2, P251)","v":3}]
[null,null,"University Wide","La Jolla Campus","West Campus","Pepper Canyon","Surface Lot","P402","P402","Loading",null,"20 minutes",null,8,7,null,null,null,3,3,5,6,0,1,0,2,0,0,null,null,null,null,null,0,6,{"$f":"_xlfn.IFS(AJ$1=M$2, M252, AJ$1=N$2, N252,AJ$1=O$2, O252,AJ$1=P$2, P252)","v":8}]
[null,null,"University Wide","La Jolla Campus","West Campus","Pepper Canyon","Surface Lot","P402","P402","Motorcycle Section",null,null,null,2,2,null,null,null,0,0,0,0,0,0,0,0,1,1,null,null,null,null,null,0,1,{"$f":"_xlfn.IFS(AJ$1=M$2, M253, AJ$1=N$2, N253,AJ$1=O$2, O253,AJ$1=P$2, P253)","v":2}]
[null,null,"University Wide","La Jolla Campus","West Campus","Pepper Canyon","Surface Lot","P402","P402","Reserved",null,null,null,4,4,null,null,null,0,0,0,0,0,0,0,0,0,0,null,null,null,null,null,0,0,{"$f":"_xlfn.IFS(AJ$1=M$2, M254, AJ$1=N$2, N254,AJ$1=O$2, O254,AJ$1=P$2, P254)","v":4}]
[null,null,"University Wide","La Jolla Campus","West Campus","Pepper Canyon","Surface Lot","P402","P402","Service Yard",null,null,null,2,2,null,null,null,2,2,1,1,2,1,1,0,2,2,null,null,null,null,null,0,2,{"$f":"_xlfn.IFS(AJ$1=M$2, M255, AJ$1=N$2, N255,AJ$1=O$2, O255,AJ$1=P$2, P255)","v":2}]
[null,null,"University Wide","La Jolla Campus","West Campus","Pepper Canyon","Surface Lot","P402","P402","UC Vehicle",null,null,null,2,2,null,null,null,0,0,1,1,0,0,0,0,0,0,null,null,null,null,null,0,1,{"$f":"_xlfn.IFS(AJ$1=M$2, M256, AJ$1=N$2, N256,AJ$1=O$2, O256,AJ$1=P$2, P256)","v":2}]
[null,null,"University Wide","La Jolla Campus","West Campus","University Center","Surface Lot","P405","P405","Loading","Commercial",30,null,6,6,null,null,null,6,6,3,6,5,4,5,4,5,6,null,null,null,null,null,3,6,{"$f":"_xlfn.IFS(AJ$1=M$2, M257, AJ$1=N$2, N257,AJ$1=O$2, O257,AJ$1=P$2, P257)","v":6}]
[null,null,"University Wide","La Jolla Campus","West Campus","University Center","Surface Lot","P405","P405","Loading",null,20,null,6,6,null,null,null,4,5,5,3,1,3,4,4,3,5,null,null,null,null,null,1,5,{"$f":"_xlfn.IFS(AJ$1=M$2, M258, AJ$1=N$2, N258,AJ$1=O$2, O258,AJ$1=P$2, P258)","v":6}]
[null,null,"University Wide","La Jolla Campus","West Campus","University Center","Surface Lot","P405","P405","Reserved",null,null,null,1,1,null,null,null,0,0,0,0,0,0,0,0,0,0,null,null,null,null,null,0,0,{"$f":"_xlfn.IFS(AJ$1=M$2, M259, AJ$1=N$2, N259,AJ$1=O$2, O259,AJ$1=P$2, P259)","v":1}]
[null,null,"University Wide","La Jolla Campus","West Campus","University Center","Surface Lot","P405",{"$f":"IF(G260=\"Surface Lot\", H260, G260)","v":"P405"},"Service Yard",null,null,null,10,10,null,null,null,3,3,3,3,3,5,4,4,5,5,null,null,null,null,null,{"$f":"MIN($Q260:$AG260)","v":3},{"$f":"MAX($Q260:$AG260)","v":5},{"$f":"_xlfn.IFS(AJ$1=M$2, M260, AJ$1=N$2, N260,AJ$1=O$2, O260,AJ$1=P$2, P260)","v":10}]
[null,null,"University Wide","La Jolla Campus","West Campus","Pepper Canyon","Surface Lot","P406","P406","B",null,null,null,18,18,null,null,null,0,1,1,0,1,2,0,0,0,4,null,null,null,null,null,0,4,{"$f":"_xlfn.IFS(AJ$1=M$2, M261, AJ$1=N$2, N261,AJ$1=O$2, O261,AJ$1=P$2, P261)","v":18}]
[null,null,"University Wide","La Jolla Campus","West Campus","Pepper Canyon","Surface Lot","P406","P406","Accessible",null,null,null,2,2,null,null,null,1,1,1,1,0,1,1,1,0,0,null,null,null,null,null,0,1,{"$f":"_xlfn.IFS(AJ$1=M$2, M262, AJ$1=N$2, N262,AJ$1=O$2, O262,AJ$1=P$2, P262)","v":2}]
[null,null,"University Wide","La Jolla Campus","West Campus","Pepper Canyon","Surface Lot","P406","P406","Loading",null,null,null,2,2,null,null,null,0,0,0,0,0,1,1,1,0,0,null,null,null,null,null,0,1,{"$f":"_xlfn.IFS(AJ$1=M$2, M263, AJ$1=N$2, N263,AJ$1=O$2, O263,AJ$1=P$2, P263)","v":2}]
[null,null,"University Wide","La Jolla Campus","West Campus","Pepper Canyon","Surface Lot","P406","P406","Motorcycle Section",null,null,null,3,3,null,null,null,0,1,1,1,0,1,1,1,0,1,null,null,null,null,null,0,1,{"$f":"_xlfn.IFS(AJ$1=M$2, M264, AJ$1=N$2, N264,AJ$1=O$2, O264,AJ$1=P$2, P264)","v":3}]
[null,null,"University Wide","La Jolla Campus","West Campus","University Center","Surface Lot","P407","P407","Loading","Dock",null,null,1,1,null,null,null,0,0,0,0,0,0,0,0,0,0,null,null,null,null,null,0,0,{"$f":"_xlfn.IFS(AJ$1=M$2, M265, AJ$1=N$2, N265,AJ$1=O$2, O265,AJ$1=P$2, P265)","v":1}]
[null,null,"University Wide","La Jolla Campus","West Campus","University Center","Surface Lot","P407","P407","Service Yard",null,null,null,3,3,null,null,null,3,3,3,2,2,3,2,0,3,3,null,null,null,null,null,0,3,{"$f":"_xlfn.IFS(AJ$1=M$2, M266, AJ$1=N$2, N266,AJ$1=O$2, O266,AJ$1=P$2, P266)","v":3}]
[null,null,"University Wide","La Jolla Campus","West Campus","Muir College","Surface Lot","P414","P414","A",null,null,null,3,3,null,null,null,0,0,0,0,0,0,0,0,2,3,null,null,null,null,null,0,3,{"$f":"_xlfn.IFS(AJ$1=M$2, M267, AJ$1=N$2, N267,AJ$1=O$2, O267,AJ$1=P$2, P267)","v":3}]
[null,null,"University Wide","La Jolla Campus","West Campus","Muir College","Surface Lot","P414","P414","Loading",null,null,null,7,7,null,null,null,3,6,4,3,2,2,1,1,2,1,null,null,null,null,null,1,6,{"$f":"_xlfn.IFS(AJ$1=M$2, M268, AJ$1=N$2, N268,AJ$1=O$2, O268,AJ$1=P$2, P268)","v":7}]
[null,null,"University Wide","La Jolla Campus","West Campus","Muir College","Surface Lot","P414","P414","Reserved",null,null,null,3,2,null,null,null,0,0,0,0,0,0,0,0,0,0,null,null,null,null,null,0,0,{"$f":"_xlfn.IFS(AJ$1=M$2, M269, AJ$1=N$2, N269,AJ$1=O$2, O269,AJ$1=P$2, P269)","v":3}]
[null,null,"University Wide","La Jolla Campus","West Campus","Muir College","Surface Lot","P414","P414","Service Yard",null,null,null,3,4,null,null,null,3,1,3,3,2,1,2,2,3,3,null,null,null,null,null,1,3,{"$f":"_xlfn.IFS(AJ$1=M$2, M270, AJ$1=N$2, N270,AJ$1=O$2, O270,AJ$1=P$2, P270)","v":3}]
[null,null,"University Wide","La Jolla Campus","West Campus","Muir College","Surface Lot","P415","P415","Accessible",null,null,null,1,1,null,null,null,0,0,0,0,0,0,0,0,1,1,null,null,null,null,null,0,1,{"$f":"_xlfn.IFS(AJ$1=M$2, M271, AJ$1=N$2, N271,AJ$1=O$2, O271,AJ$1=P$2, P271)","v":1}]
[null,null,"University Wide","La Jolla Campus","West Campus","Muir College","Surface Lot","P415","P415","Reserved","Student Health Patient",null,null,5,5,null,null,null,0,0,0,0,0,0,0,0,0,0,null,null,null,null,null,0,0,{"$f":"_xlfn.IFS(AJ$1=M$2, M272, AJ$1=N$2, N272,AJ$1=O$2, O272,AJ$1=P$2, P272)","v":5}]
[null,null,"University Wide","La Jolla Campus","West Campus","Muir College","Surface Lot","P415","P415","Reserved",null,null,null,3,3,null,null,null,0,0,0,0,0,0,0,0,0,0,null,null,null,null,null,0,0,{"$f":"_xlfn.IFS(AJ$1=M$2, M273, AJ$1=N$2, N273,AJ$1=O$2, O273,AJ$1=P$2, P273)","v":3}]
[null,null,"University Wide","La Jolla Campus","West Campus","Muir College","Surface Lot","P416","P416","Accessible",null,null,null,23,23,null,null,null,5,0,0,0,3,3,4,4,12,14,null,null,null,null,null,0,14,{"$f":"_xlfn.IFS(AJ$1=M$2, M274, AJ$1=N$2, N274,AJ$1=O$2, O274,AJ$1=P$2, P274)","v":23}]
[null,null,"University Wide","La Jolla Campus","West Campus","Muir College","Surface Lot","P416","P416","Loading","Curb",null,null,1,1,null,null,null,0,0,0,1,0,0,0,0,1,1,null,null,null,null,null,0,1,{"$f":"_xlfn.IFS(AJ$1=M$2, M275, AJ$1=N$2, N275,AJ$1=O$2, O275,AJ$1=P$2, P275)","v":1}]
[null,null,"University Wide","La Jolla Campus","West Campus","Muir College","Surface Lot","P416","P416","Reserved","Blue Reserved",null,null,21,21,null,null,null,0,0,0,0,0,0,0,0,0,0,null,null,null,null,null,0,0,{"$f":"_xlfn.IFS(AJ$1=M$2, M276, AJ$1=N$2, N276,AJ$1=O$2, O276,AJ$1=P$2, P276)","v":21}]
[null,null,"University Wide","La Jolla Campus","West Campus","Muir College","Surface Lot","P416","P416","Reserved","Gold Reserved",null,null,22,22,null,null,null,0,0,0,0,0,0,0,0,0,0,null,null,null,null,null,0,0,{"$f":"_xlfn.IFS(AJ$1=M$2, M277, AJ$1=N$2, N277,AJ$1=O$2, O277,AJ$1=P$2, P277)","v":22}]
[null,null,"University Wide","La Jolla Campus","West Campus","Muir College","Surface Lot","P416","P416","Reserved","Target",null,null,1,1,null,null,null,0,0,0,0,0,0,0,0,0,0,null,null,null,null,null,0,0,{"$f":"_xlfn.IFS(AJ$1=M$2, M278, AJ$1=N$2, N278,AJ$1=O$2, O278,AJ$1=P$2, P278)","v":1}]
[null,null,"University Wide","La Jolla Campus","West Campus","Warren College","Surface Lot","P418","P418","Accessible",null,null,null,6,6,null,null,null,2,3,1,2,1,1,2,0,0,3,null,null,null,null,null,0,3,{"$f":"_xlfn.IFS(AJ$1=M$2, M279, AJ$1=N$2, N279,AJ$1=O$2, O279,AJ$1=P$2, P279)","v":6}]
[null,null,"University Wide","La Jolla Campus","West Campus","Warren College","Surface Lot","P418","P418","Loading",null,"20 minutes",null,1,1,null,null,null,0,0,0,0,0,0,1,0,0,1,null,null,null,null,null,0,1,{"$f":"_xlfn.IFS(AJ$1=M$2, M280, AJ$1=N$2, N280,AJ$1=O$2, O280,AJ$1=P$2, P280)","v":1}]
[null,null,"University Wide","La Jolla Campus","West Campus","University Center","Surface Lot","P501","P501","Accessible",null,null,null,5,5,null,null,null,0,1,0,0,4,5,5,5,5,5,null,null,null,null,null,0,5,{"$f":"_xlfn.IFS(AJ$1=M$2, M281, AJ$1=N$2, N281,AJ$1=O$2, O281,AJ$1=P$2, P281)","v":5}]
[null,null,"University Wide","La Jolla Campus","West Campus","University Center","Surface Lot","P501","P501","Loading","Dock",null,null,1,1,null,null,null,1,1,1,1,1,1,1,1,1,1,null,null,null,null,null,1,1,{"$f":"_xlfn.IFS(AJ$1=M$2, M282, AJ$1=N$2, N282,AJ$1=O$2, O282,AJ$1=P$2, P282)","v":1}]
[null,null,"University Wide","La Jolla Campus","West Campus","University Center","Surface Lot","P501","P501","Service Yard",null,null,null,6,6,null,null,null,2,1,2,2,2,2,2,2,2,2,null,null,null,null,null,1,2,{"$f":"_xlfn.IFS(AJ$1=M$2, M283, AJ$1=N$2, N283,AJ$1=O$2, O283,AJ$1=P$2, P283)","v":6}]
[null,null,"University Wide","La Jolla Campus","West Campus","Warren College","Surface Lot","P502","P502","Loading",null,"20 minutes",null,3,4,null,null,null,0,0,0,0,0,1,1,0,1,0,null,null,null,null,null,0,1,{"$f":"_xlfn.IFS(AJ$1=M$2, M284, AJ$1=N$2, N284,AJ$1=O$2, O284,AJ$1=P$2, P284)","v":3}]
[null,null,"University Wide","La Jolla Campus","West Campus","Warren College","Surface Lot","P502","P502","Reserved",null,null,null,7,6,null,null,null,0,0,0,0,0,0,0,0,0,0,null,null,null,null,null,0,0,{"$f":"_xlfn.IFS(AJ$1=M$2, M285, AJ$1=N$2, N285,AJ$1=O$2, O285,AJ$1=P$2, P285)","v":7}]
[null,null,"University Wide","La Jolla Campus","West Campus","University Center","Gilman","P451","Gilman","Visitor","2 hour","2 hour",null,145,145,null,null,null,1,50,55,16,10,6,6,8,28,35,null,null,null,null,null,1,55,{"$f":"_xlfn.IFS(AJ$1=M$2, M286, AJ$1=N$2, N286,AJ$1=O$2, O286,AJ$1=P$2, P286)","v":145}]
[null,null,"University Wide","La Jolla Campus","West Campus","University Center","Gilman","P451","Gilman","Visitor",null,null,null,31,31,null,null,null,13,10,10,1,18,11,4,5,5,15,null,null,null,null,null,1,18,{"$f":"_xlfn.IFS(AJ$1=M$2, M287, AJ$1=N$2, N287,AJ$1=O$2, O287,AJ$1=P$2, P287)","v":31}]
[null,null,"University Wide","La Jolla Campus","West Campus","University Center","Gilman","P452","Gilman","Electric Vehicle",null,null,null,32,32,null,null,null,12,8,0,1,1,0,2,5,11,12,null,null,null,null,null,0,12,{"$f":"_xlfn.IFS(AJ$1=M$2, M288, AJ$1=N$2, N288,AJ$1=O$2, O288,AJ$1=P$2, P288)","v":32}]
[null,null,"University Wide","La Jolla Campus","West Campus","Warren College","Surface Lot","P503","P503","Accessible",null,null,null,6,6,null,null,null,3,2,2,1,0,0,0,1,2,3,null,null,null,null,null,0,3,{"$f":"_xlfn.IFS(AJ$1=M$2, M289, AJ$1=N$2, N289,AJ$1=O$2, O289,AJ$1=P$2, P289)","v":6}]
[null,null,"University Wide","La Jolla Campus","West Campus","Warren College","Surface Lot","P503","P503","Motorcycle Section",null,null,null,5,5,null,null,null,2,2,2,1,3,3,3,3,3,3,null,null,null,null,null,1,3,{"$f":"_xlfn.IFS(AJ$1=M$2, M290, AJ$1=N$2, N290,AJ$1=O$2, O290,AJ$1=P$2, P290)","v":5}]
[null,null,"University Wide","La Jolla Campus","West Campus","Warren College","Surface Lot","P503","P503","Reserved",null,null,null,23,23,null,null,null,0,0,0,0,0,0,0,0,0,0,null,null,null,null,null,0,0,{"$f":"_xlfn.IFS(AJ$1=M$2, M291, AJ$1=N$2, N291,AJ$1=O$2, O291,AJ$1=P$2, P291)","v":23}]
[null,null,"University Wide","La Jolla Campus","West Campus","University Center","Gilman","P453","Gilman","A",null,null,null,401,401,null,null,null,260,110,96,99,87,73,88,98,144,170,null,null,null,null,null,73,260,{"$f":"_xlfn.IFS(AJ$1=M$2, M292, AJ$1=N$2, N292,AJ$1=O$2, O292,AJ$1=P$2, P292)","v":401}]
[null,null,"University Wide","La Jolla Campus","West Campus","University Center","Gilman","P456","Gilman","B",null,null,null,123,123,null,null,null,0,0,0,0,8,2,2,4,8,12,null,null,null,null,null,0,12,{"$f":"_xlfn.IFS(AJ$1=M$2, M293, AJ$1=N$2, N293,AJ$1=O$2, O293,AJ$1=P$2, P293)","v":123}]
[null,null,"University Wide","La Jolla Campus","West Campus","Warren College","Surface Lot","P504","P504","Accessible",null,null,null,6,6,null,null,null,1,1,0,0,1,1,0,0,1,2,null,null,null,null,null,0,2,{"$f":"_xlfn.IFS(AJ$1=M$2, M294, AJ$1=N$2, N294,AJ$1=O$2, O294,AJ$1=P$2, P294)","v":6}]
[null,null,"University Wide","La Jolla Campus","West Campus","Warren College","Surface Lot","P504","P504","Loading",null,null,null,9,8,null,null,null,2,4,2,4,2,3,1,0,2,0,null,null,null,null,null,0,4,{"$f":"_xlfn.IFS(AJ$1=M$2, M295, AJ$1=N$2, N295,AJ$1=O$2, O295,AJ$1=P$2, P295)","v":9}]
[null,null,"University Wide","La Jolla Campus","West Campus","Warren College","Surface Lot","P504","P504","Motorcycle Section",null,null,null,3,1,null,null,null,1,0,0,1,1,1,1,1,1,1,null,null,null,null,null,0,1,{"$f":"_xlfn.IFS(AJ$1=M$2, M296, AJ$1=N$2, N296,AJ$1=O$2, O296,AJ$1=P$2, P296)","v":3}]
[null,null,"University Wide","La Jolla Campus","West Campus","Warren College","Surface Lot","P504","P504","Reserved",null,null,null,7,6,null,null,null,0,0,0,0,0,0,0,0,0,0,null,null,null,null,null,0,0,{"$f":"_xlfn.IFS(AJ$1=M$2, M297, AJ$1=N$2, N297,AJ$1=O$2, O297,AJ$1=P$2, P297)","v":7}]
[null,null,"University Wide","La Jolla Campus","West Campus","Warren College","Surface Lot","P505","P505","Loading","Dock",null,null,1,1,null,null,null,1,1,1,1,1,1,1,1,1,1,null,null,null,null,null,1,1,{"$f":"_xlfn.IFS(AJ$1=M$2, M298, AJ$1=N$2, N298,AJ$1=O$2, O298,AJ$1=P$2, P298)","v":1}]
[null,null,"University Wide","La Jolla Campus","West Campus","Warren College","Surface Lot","P505","P505","Reserved",null,null,null,4,4,null,null,null,0,0,0,0,0,0,0,0,0,0,null,null,null,null,null,0,0,{"$f":"_xlfn.IFS(AJ$1=M$2, M299, AJ$1=N$2, N299,AJ$1=O$2, O299,AJ$1=P$2, P299)","v":4}]
[null,null,"University Wide","La Jolla Campus","West Campus","Warren College","Surface Lot","P505","P505","Service Yard",null,null,null,1,2,null,null,null,1,1,1,1,1,1,1,1,1,1,null,null,null,null,null,1,1,{"$f":"_xlfn.IFS(AJ$1=M$2, M300, AJ$1=N$2, N300,AJ$1=O$2, O300,AJ$1=P$2, P300)","v":1}]
[null,null,"University Wide","La Jolla Campus","West Campus","Warren College","Surface Lot","P503","P503","A",null,"4 hours",null,8,8,null,null,null,0,0,0,0,0,0,2,0,0,3,null,null,null,null,null,0,3,{"$f":"_xlfn.IFS(AJ$1=M$2, M301, AJ$1=N$2, N301,AJ$1=O$2, O301,AJ$1=P$2, P301)","v":8}]
[null,null,"University Wide","La Jolla Campus","West Campus","Warren College","Surface Lot","P503","P503","B",null,"1 hour",null,2,2,null,null,null,0,0,0,0,0,0,0,0,0,0,null,null,null,null,null,0,0,{"$f":"_xlfn.IFS(AJ$1=M$2, M302, AJ$1=N$2, N302,AJ$1=O$2, O302,AJ$1=P$2, P302)","v":2}]
[null,null,"University Wide","La Jolla Campus","West Campus","Pepper Canyon","Surface Lot","P506","P506","Accessible",null,null,null,2,2,null,null,null,2,2,0,0,2,2,2,2,2,2,null,null,null,null,null,0,2,{"$f":"_xlfn.IFS(AJ$1=M$2, M303, AJ$1=N$2, N303,AJ$1=O$2, O303,AJ$1=P$2, P303)","v":2}]
[null,null,"University Wide","La Jolla Campus","West Campus","Pepper Canyon","Surface Lot","P506","P506","Motorcycle Section",null,null,null,1,1,null,null,null,1,1,0,0,1,1,1,0,0,0,null,null,null,null,null,0,1,{"$f":"_xlfn.IFS(AJ$1=M$2, M304, AJ$1=N$2, N304,AJ$1=O$2, O304,AJ$1=P$2, P304)","v":1}]
[null,null,"University Wide","La Jolla Campus","West Campus","Pepper Canyon","Surface Lot","P506","P506","Service Yard",null,null,null,1,1,null,null,null,0,0,0,0,1,1,0,0,0,0,null,null,null,null,null,0,1,{"$f":"_xlfn.IFS(AJ$1=M$2, M305, AJ$1=N$2, N305,AJ$1=O$2, O305,AJ$1=P$2, P305)","v":1}]
[null,null,"University Wide","La Jolla Campus","West Campus","Pepper Canyon","Surface Lot","P506","P506","UC Vehicle",null,null,null,2,2,null,null,null,1,1,1,0,1,0,0,1,1,1,null,null,null,null,null,0,1,{"$f":"_xlfn.IFS(AJ$1=M$2, M306, AJ$1=N$2, N306,AJ$1=O$2, O306,AJ$1=P$2, P306)","v":2}]
[null,null,"University Wide","La Jolla Campus","West Campus","Warren College","Surface Lot","P503","P503","Visitor",null,"3 hours",null,10,10,null,null,null,5,3,4,3,2,3,2,4,3,2,null,null,null,null,null,2,5,{"$f":"_xlfn.IFS(AJ$1=M$2, M307, AJ$1=N$2, N307,AJ$1=O$2, O307,AJ$1=P$2, P307)","v":10}]
[null,null,"University Wide","La Jolla Campus","West Campus","Warren College","Surface Lot","P504","P504","SR",null,null,null,27,27,null,null,null,3,7,2,2,1,0,2,0,1,0,null,null,null,null,null,0,7,{"$f":"_xlfn.IFS(AJ$1=M$2, M308, AJ$1=N$2, N308,AJ$1=O$2, O308,AJ$1=P$2, P308)","v":27}]
[null,null,"University Wide","La Jolla Campus","West Campus","Warren College","Surface Lot","P504","P504","Visitor",null,null,null,6,6,null,null,null,2,1,0,1,0,2,1,2,1,0,null,null,null,null,null,0,2,{"$f":"_xlfn.IFS(AJ$1=M$2, M309, AJ$1=N$2, N309,AJ$1=O$2, O309,AJ$1=P$2, P309)","v":6}]
[null,null,"University Wide","La Jolla Campus","West Campus","Pepper Canyon","Surface Lot","P506","P506","A",null,"3 hours",null,3,3,null,null,null,0,0,1,0,1,0,0,2,2,2,null,null,null,null,null,0,2,{"$f":"_xlfn.IFS(AJ$1=M$2, M310, AJ$1=N$2, N310,AJ$1=O$2, O310,AJ$1=P$2, P310)","v":3}]
[null,null,"University Wide","La Jolla Campus","West Campus","Campus Services","Surface Lot","P507","P507","Accessible",null,null,null,9,9,null,null,null,0,0,0,0,2,2,2,5,7,7,null,null,null,null,null,0,7,{"$f":"_xlfn.IFS(AJ$1=M$2, M311, AJ$1=N$2, N311,AJ$1=O$2, O311,AJ$1=P$2, P311)","v":9}]
[null,null,"University Wide","La Jolla Campus","West Campus","Campus Services","Surface Lot","P507","P507","Allocated","Key Pick Up",null,null,1,1,null,null,null,1,1,1,1,1,1,1,1,1,1,null,null,null,null,null,1,1,{"$f":"_xlfn.IFS(AJ$1=M$2, M312, AJ$1=N$2, N312,AJ$1=O$2, O312,AJ$1=P$2, P312)","v":1}]
[null,null,"University Wide","La Jolla Campus","West Campus","Campus Services","Surface Lot","P507","P507","Loading",null,null,null,3,3,null,null,null,2,0,3,1,1,0,0,0,0,0,null,null,null,null,null,0,3,{"$f":"_xlfn.IFS(AJ$1=M$2, M313, AJ$1=N$2, N313,AJ$1=O$2, O313,AJ$1=P$2, P313)","v":3}]
[null,null,"University Wide","La Jolla Campus","West Campus","Campus Services","Surface Lot","P507","P507","Motorcycle Section",null,null,null,5,5,null,null,null,1,1,1,1,1,1,1,1,1,1,null,null,null,null,null,1,1,{"$f":"_xlfn.IFS(AJ$1=M$2, M314, AJ$1=N$2, N314,AJ$1=O$2, O314,AJ$1=P$2, P314)","v":5}]
[null,null,"University Wide","La Jolla Campus","West Campus","Campus Services","Surface Lot","P507","P507","Service Yard",null,null,null,12,12,null,null,null,1,1,1,2,2,2,1,1,0,0,null,null,null,null,null,0,2,{"$f":"_xlfn.IFS(AJ$1=M$2, M315, AJ$1=N$2, N315,AJ$1=O$2, O315,AJ$1=P$2, P315)","v":12}]
[null,null,"University Wide","La Jolla Campus","West Campus","Campus Services","Surface Lot","P507","P507","UC Vehicle","Reserved",null,null,2,2,null,null,null,2,2,2,1,2,2,2,1,1,2,null,null,null,null,null,1,2,{"$f":"_xlfn.IFS(AJ$1=M$2, M316, AJ$1=N$2, N316,AJ$1=O$2, O316,AJ$1=P$2, P316)","v":2}]
[null,null,"University Wide","La Jolla Campus","West Campus","Campus Services","Surface Lot","P507","P507","UC Vehicle",null,null,null,133,133,null,null,null,4,3,3,3,2,2,2,2,2,2,null,null,null,null,null,2,4,{"$f":"_xlfn.IFS(AJ$1=M$2, M317, AJ$1=N$2, N317,AJ$1=O$2, O317,AJ$1=P$2, P317)","v":133}]
[null,null,"University Wide","La Jolla Campus","West Campus","Pepper Canyon","Surface Lot","P506","P506","Visitor",null,"3 hours",null,12,12,null,null,null,6,6,3,1,0,1,1,2,3,3,null,null,null,null,null,0,6,{"$f":"_xlfn.IFS(AJ$1=M$2, M318, AJ$1=N$2, N318,AJ$1=O$2, O318,AJ$1=P$2, P318)","v":12}]
[null,null,"University Wide","La Jolla Campus","West Campus","Campus Services","Surface Lot","P507","P507","B",null,null,null,63,63,null,null,null,5,3,1,3,18,20,24,39,54,56,null,null,null,null,null,1,56,{"$f":"_xlfn.IFS(AJ$1=M$2, M319, AJ$1=N$2, N319,AJ$1=O$2, O319,AJ$1=P$2, P319)","v":63}]
[null,null,"University Wide","La Jolla Campus","West Campus","Warren College","Surface Lot","P508","P508","Accessible",null,null,null,10,10,null,null,null,0,0,0,0,0,0,0,0,0,0,null,null,null,null,null,0,0,{"$f":"_xlfn.IFS(AJ$1=M$2, M320, AJ$1=N$2, N320,AJ$1=O$2, O320,AJ$1=P$2, P320)","v":10}]
[null,null,"University Wide","La Jolla Campus","West Campus","Warren College","Surface Lot","P508","P508","Loading",null,"20 minutes",null,3,0,null,null,null,0,0,0,0,0,0,0,0,0,0,null,null,null,null,null,0,0,{"$f":"_xlfn.IFS(AJ$1=M$2, M321, AJ$1=N$2, N321,AJ$1=O$2, O321,AJ$1=P$2, P321)","v":3}]
[null,null,"University Wide","La Jolla Campus","West Campus","Warren College","Surface Lot","P508","P508","Reserved",null,null,null,16,25,null,null,null,0,0,0,0,0,0,0,0,0,0,null,null,null,null,null,0,0,{"$f":"_xlfn.IFS(AJ$1=M$2, M322, AJ$1=N$2, N322,AJ$1=O$2, O322,AJ$1=P$2, P322)","v":16}]
[null,null,"University Wide","La Jolla Campus","West Campus","Warren College","Surface Lot","P509","P509","Loading","Dock",null,null,1,1,null,null,null,1,1,1,1,1,1,1,1,1,1,null,null,null,null,null,1,1,{"$f":"_xlfn.IFS(AJ$1=M$2, M323, AJ$1=N$2, N323,AJ$1=O$2, O323,AJ$1=P$2, P323)","v":1}]
[null,null,"University Wide","La Jolla Campus","West Campus","Warren College","Surface Lot","P509",{"$f":"IF(G324=\"Surface Lot\", H324, G324)","v":"P509"},"Reserved",null,null,null,1,1,null,null,null,0,0,0,0,0,0,0,0,0,0,null,null,null,null,null,{"$f":"MIN($Q324:$AG324)","v":0},{"$f":"MAX($Q324:$AG324)","v":0},{"$f":"_xlfn.IFS(AJ$1=M$2, M324, AJ$1=N$2, N324,AJ$1=O$2, O324,AJ$1=P$2, P324)","v":1}]
[null,null,"University Wide","La Jolla Campus","West Campus","Warren College","Surface Lot","P509","P509","Service Yard",null,null,null,4,4,null,null,null,1,1,4,3,1,2,2,1,2,2,null,null,null,null,null,1,4,{"$f":"_xlfn.IFS(AJ$1=M$2, M325, AJ$1=N$2, N325,AJ$1=O$2, O325,AJ$1=P$2, P325)","v":4}]
[null,null,"University Wide","La Jolla Campus","West Campus","Warren College","Surface Lot","P509","P509","UC Vehicle","UC Cart",null,null,1,1,null,null,null,0,0,0,0,0,0,0,0,0,0,null,null,null,null,null,0,0,{"$f":"_xlfn.IFS(AJ$1=M$2, M326, AJ$1=N$2, N326,AJ$1=O$2, O326,AJ$1=P$2, P326)","v":1}]
[null,null,"University Wide","La Jolla Campus","West Campus","Campus Services","Surface Lot","P507","P507","Electric Vehicle",null,null,null,2,2,null,null,null,2,2,1,2,2,2,2,2,2,2,null,null,null,null,null,1,2,{"$f":"_xlfn.IFS(AJ$1=M$2, M327, AJ$1=N$2, N327,AJ$1=O$2, O327,AJ$1=P$2, P327)","v":2}]
[null,null,"University Wide","La Jolla Campus","West Campus","Campus Services","Surface Lot","P507","P507","Visitor","Police Visitor",null,null,4,4,null,null,null,4,4,2,2,2,2,3,3,4,4,null,null,null,null,null,2,4,{"$f":"_xlfn.IFS(AJ$1=M$2, M328, AJ$1=N$2, N328,AJ$1=O$2, O328,AJ$1=P$2, P328)","v":4}]
[null,null,"University Wide","La Jolla Campus","West Campus","Campus Services","Surface Lot","P507","P507","Visitor",null,null,null,16,16,null,null,null,1,1,0,1,3,3,5,9,12,13,null,null,null,null,null,0,13,{"$f":"_xlfn.IFS(AJ$1=M$2, M329, AJ$1=N$2, N329,AJ$1=O$2, O329,AJ$1=P$2, P329)","v":16}]
[null,null,"University Wide","La Jolla Campus","West Campus","Campus Services","Surface Lot","P510","P510","Motorcycle Section",null,null,null,3,3,null,null,null,1,1,1,1,1,1,1,1,1,1,null,null,null,null,null,1,1,{"$f":"_xlfn.IFS(AJ$1=M$2, M330, AJ$1=N$2, N330,AJ$1=O$2, O330,AJ$1=P$2, P330)","v":3}]
[null,null,"University Wide","La Jolla Campus","West Campus","Campus Services","Surface Lot","P510","P510","Reserved",null,null,null,3,3,null,null,null,0,0,0,0,0,0,0,0,0,0,null,null,null,null,null,0,0,{"$f":"_xlfn.IFS(AJ$1=M$2, M331, AJ$1=N$2, N331,AJ$1=O$2, O331,AJ$1=P$2, P331)","v":3}]
[null,null,"University Wide","La Jolla Campus","West Campus","Campus Services","Surface Lot","P510","P510","Service Yard",null,null,null,1,1,null,null,null,1,0,0,0,0,0,0,0,0,0,null,null,null,null,null,0,1,{"$f":"_xlfn.IFS(AJ$1=M$2, M332, AJ$1=N$2, N332,AJ$1=O$2, O332,AJ$1=P$2, P332)","v":1}]
[null,null,"University Wide","La Jolla Campus","West Campus","Health Sciences West","Surface Lot","P601","P601","Accessible",null,null,null,10,10,null,null,null,2,0,0,1,0,0,0,1,3,0,null,null,null,null,null,0,3,{"$f":"_xlfn.IFS(AJ$1=M$2, M333, AJ$1=N$2, N333,AJ$1=O$2, O333,AJ$1=P$2, P333)","v":10}]
[null,null,"University Wide","La Jolla Campus","West Campus","Health Sciences West","Surface Lot","P601","P601","Loading","Dock",null,null,1,1,null,null,null,0,1,1,1,1,1,1,1,1,0,null,null,null,null,null,0,1,{"$f":"_xlfn.IFS(AJ$1=M$2, M334, AJ$1=N$2, N334,AJ$1=O$2, O334,AJ$1=P$2, P334)","v":1}]
[null,null,"University Wide","La Jolla Campus","West Campus","Warren College","Surface Lot","P508","P508","A","24/7 Enforced",null,null,1,1,null,null,null,0,0,0,0,0,0,0,0,0,0,null,null,null,null,null,0,0,{"$f":"_xlfn.IFS(AJ$1=M$2, M335, AJ$1=N$2, N335,AJ$1=O$2, O335,AJ$1=P$2, P335)","v":1}]
[null,null,"University Wide","La Jolla Campus","West Campus","Warren College","Surface Lot","P508","P508","Visitor",null,null,null,5,0,null,null,null,0,0,0,0,0,0,0,0,0,0,null,null,null,null,null,0,0,{"$f":"_xlfn.IFS(AJ$1=M$2, M336, AJ$1=N$2, N336,AJ$1=O$2, O336,AJ$1=P$2, P336)","v":5}]
[null,null,"University Wide","La Jolla Campus","West Campus","Campus Services","Surface Lot","P510","P510","A",null,null,null,26,26,null,null,null,5,0,0,0,0,1,4,5,0,8,null,null,null,null,null,0,8,{"$f":"_xlfn.IFS(AJ$1=M$2, M337, AJ$1=N$2, N337,AJ$1=O$2, O337,AJ$1=P$2, P337)","v":26}]
[null,null,"University Wide","La Jolla Campus","West Campus","Campus Services","Surface Lot","P510","P510","B",null,null,null,157,157,null,null,null,5,0,0,0,0,1,14,29,51,66,null,null,null,null,null,0,66,{"$f":"_xlfn.IFS(AJ$1=M$2, M338, AJ$1=N$2, N338,AJ$1=O$2, O338,AJ$1=P$2, P338)","v":157}]
[null,null,"University Wide","La Jolla Campus","West Campus","Campus Services","Surface Lot","P510","P510","Visitor",null,null,null,9,9,null,null,null,0,0,0,0,0,0,1,2,6,6,null,null,null,null,null,0,6,{"$f":"_xlfn.IFS(AJ$1=M$2, M339, AJ$1=N$2, N339,AJ$1=O$2, O339,AJ$1=P$2, P339)","v":9}]
[null,null,"University Wide","La Jolla Campus","West Campus","Health Sciences West","Surface Lot","P602","P602","Accessible",null,null,null,4,4,null,null,null,0,0,0,0,0,0,0,3,3,0,null,null,null,null,null,0,3,{"$f":"_xlfn.IFS(AJ$1=M$2, M340, AJ$1=N$2, N340,AJ$1=O$2, O340,AJ$1=P$2, P340)","v":4}]
[null,null,"University Wide","La Jolla Campus","West Campus","Health Sciences West","Surface Lot","P602","P602","Reserved",null,null,null,90,90,null,null,null,0,0,0,0,0,0,0,0,0,0,null,null,null,null,null,0,0,{"$f":"_xlfn.IFS(AJ$1=M$2, M341, AJ$1=N$2, N341,AJ$1=O$2, O341,AJ$1=P$2, P341)","v":90}]
[null,null,"University Wide","La Jolla Campus","West Campus","Health Sciences West","Surface Lot","P602","P602","UC Vehicle",null,null,null,2,2,null,null,null,1,0,1,1,1,0,0,0,1,0,null,null,null,null,null,0,1,{"$f":"_xlfn.IFS(AJ$1=M$2, M342, AJ$1=N$2, N342,AJ$1=O$2, O342,AJ$1=P$2, P342)","v":2}]
[null,null,"University Wide","La Jolla Campus","West Campus","Health Sciences West","Surface Lot","P602","P602","A","2hr",120,null,36,36,null,null,null,24,1,0,3,0,3,0,6,7,0,null,null,null,null,null,0,24,{"$f":"_xlfn.IFS(AJ$1=M$2, M343, AJ$1=N$2, N343,AJ$1=O$2, O343,AJ$1=P$2, P343)","v":36}]
[null,null,"University Wide","La Jolla Campus","West Campus","Health Sciences West","Surface Lot","P602","P602","A",null,null,null,73,73,null,null,null,2,0,0,0,4,3,1,16,22,0,null,null,null,null,null,0,22,{"$f":"_xlfn.IFS(AJ$1=M$2, M344, AJ$1=N$2, N344,AJ$1=O$2, O344,AJ$1=P$2, P344)","v":73}]
[null,null,"University Wide","La Jolla Campus","West Campus","Health Sciences West","Surface Lot","P603","P603","Accessible",null,null,null,18,15,null,null,null,0,0,0,0,0,0,0,1,5,0,null,null,null,null,null,0,5,{"$f":"_xlfn.IFS(AJ$1=M$2, M345, AJ$1=N$2, N345,AJ$1=O$2, O345,AJ$1=P$2, P345)","v":18}]
[null,null,"University Wide","La Jolla Campus","West Campus","Health Sciences West","Surface Lot","P603","P603","Loading",null,null,null,7,4,null,null,null,1,1,0,1,0,0,1,0,1,0,null,null,null,null,null,0,1,{"$f":"_xlfn.IFS(AJ$1=M$2, M346, AJ$1=N$2, N346,AJ$1=O$2, O346,AJ$1=P$2, P346)","v":7}]
[null,null,"University Wide","La Jolla Campus","West Campus","Health Sciences West","Surface Lot","P603","P603","Motorcycle Section",null,null,null,0,0,null,null,null,0,0,0,0,0,0,0,0,0,0,null,null,null,null,null,0,0,{"$f":"_xlfn.IFS(AJ$1=M$2, M347, AJ$1=N$2, N347,AJ$1=O$2, O347,AJ$1=P$2, P347)","v":0}]
[null,null,"University Wide","La Jolla Campus","West Campus","Health Sciences West","Surface Lot","P603","P603","Reserved","Enterprise",null,null,1,0,null,null,null,0,0,0,0,0,0,0,0,0,0,null,null,null,null,null,0,0,{"$f":"_xlfn.IFS(AJ$1=M$2, M348, AJ$1=N$2, N348,AJ$1=O$2, O348,AJ$1=P$2, P348)","v":1}]
[null,null,"University Wide","La Jolla Campus","West Campus","Health Sciences West","Surface Lot","P603","P603","Reserved",null,null,null,43,0,null,null,null,0,0,0,0,0,0,0,0,0,0,null,null,null,null,null,0,0,{"$f":"_xlfn.IFS(AJ$1=M$2, M349, AJ$1=N$2, N349,AJ$1=O$2, O349,AJ$1=P$2, P349)","v":43}]
[null,null,"University Wide","La Jolla Campus","West Campus","Health Sciences West","Surface Lot","P603","P603","Service Yard",null,null,null,2,2,null,null,null,0,0,0,0,0,0,0,0,0,0,null,null,null,null,null,0,0,{"$f":"_xlfn.IFS(AJ$1=M$2, M350, AJ$1=N$2, N350,AJ$1=O$2, O350,AJ$1=P$2, P350)","v":2}]
[null,null,"University Wide","La Jolla Campus","West Campus","Health Sciences West","Surface Lot","P602","P602","Carpool","B 3-Person",null,null,9,9,null,null,null,9,2,5,4,4,4,4,8,7,0,null,null,null,null,null,0,9,{"$f":"_xlfn.IFS(AJ$1=M$2, M351, AJ$1=N$2, N351,AJ$1=O$2, O351,AJ$1=P$2, P351)","v":9}]
[null,null,"University Wide","La Jolla Campus","West Campus","Health Sciences West","Surface Lot","P604","P604","Accessible",null,null,null,4,0,null,null,null,0,0,0,0,0,0,0,0,0,0,null,null,null,null,null,0,0,{"$f":"_xlfn.IFS(AJ$1=M$2, M352, AJ$1=N$2, N352,AJ$1=O$2, O352,AJ$1=P$2, P352)","v":4}]
[null,null,"University Wide","La Jolla Campus","West Campus","Health Sciences West","Surface Lot","P605","P605","Accessible",null,null,null,1,1,null,null,null,0,0,0,0,0,0,1,1,1,0,null,null,null,null,null,0,1,{"$f":"_xlfn.IFS(AJ$1=M$2, M353, AJ$1=N$2, N353,AJ$1=O$2, O353,AJ$1=P$2, P353)","v":1}]
[null,null,"University Wide","La Jolla Campus","West Campus","Health Sciences West","Surface Lot","P605","P605","Reserved",null,null,null,8,8,null,null,null,0,0,0,0,0,0,0,0,0,0,null,null,null,null,null,0,0,{"$f":"_xlfn.IFS(AJ$1=M$2, M354, AJ$1=N$2, N354,AJ$1=O$2, O354,AJ$1=P$2, P354)","v":8}]
[null,null,"University Wide","La Jolla Campus","West Campus","Health Sciences West","Surface Lot","P605","P605","UC Vehicle",null,null,null,7,7,null,null,null,0,0,1,0,3,3,0,1,0,0,null,null,null,null,null,0,3,{"$f":"_xlfn.IFS(AJ$1=M$2, M355, AJ$1=N$2, N355,AJ$1=O$2, O355,AJ$1=P$2, P355)","v":7}]
[null,null,"University Wide","La Jolla Campus","West Campus","Health Sciences West","Surface Lot","P606","P606","Accessible",null,null,null,2,2,null,null,null,0,0,0,0,1,0,1,2,1,0,null,null,null,null,null,0,2,{"$f":"_xlfn.IFS(AJ$1=M$2, M356, AJ$1=N$2, N356,AJ$1=O$2, O356,AJ$1=P$2, P356)","v":2}]
[null,null,"University Wide","La Jolla Campus","West Campus","Health Sciences West","Surface Lot","P606","P606","Loading","Dock",null,null,2,2,null,null,null,1,1,1,1,0,2,2,2,0,0,null,null,null,null,null,0,2,{"$f":"_xlfn.IFS(AJ$1=M$2, M357, AJ$1=N$2, N357,AJ$1=O$2, O357,AJ$1=P$2, P357)","v":2}]
[null,null,"University Wide","La Jolla Campus","West Campus","Health Sciences West","Surface Lot","P606","P606","Reserved",null,null,null,6,6,null,null,null,0,0,0,0,0,0,0,0,0,0,null,null,null,null,null,0,0,{"$f":"_xlfn.IFS(AJ$1=M$2, M358, AJ$1=N$2, N358,AJ$1=O$2, O358,AJ$1=P$2, P358)","v":6}]
[null,null,"University Wide","La Jolla Campus","West Campus","Health Sciences West","Surface Lot","P607","P607","Service Yard","Dock",null,null,5,5,null,null,null,4,4,5,4,4,4,5,4,4,0,null,null,null,null,null,0,5,{"$f":"_xlfn.IFS(AJ$1=M$2, M359, AJ$1=N$2, N359,AJ$1=O$2, O359,AJ$1=P$2, P359)","v":5}]
[null,null,"University Wide","La Jolla Campus","West Campus","Health Sciences West","Surface Lot","P608","P608","Accessible",null,null,null,2,2,null,null,null,0,0,0,0,0,0,0,0,0,0,null,null,null,null,null,0,0,{"$f":"_xlfn.IFS(AJ$1=M$2, M360, AJ$1=N$2, N360,AJ$1=O$2, O360,AJ$1=P$2, P360)","v":2}]
[null,null,"University Wide","La Jolla Campus","West Campus","Health Sciences West","Surface Lot","P608","P608","Loading",null,null,null,8,8,null,null,null,1,0,3,2,3,3,4,3,1,0,null,null,null,null,null,0,4,{"$f":"_xlfn.IFS(AJ$1=M$2, M361, AJ$1=N$2, N361,AJ$1=O$2, O361,AJ$1=P$2, P361)","v":8}]
[null,null,"University Wide","La Jolla Campus","West Campus","Health Sciences West","Surface Lot","P608","P608","Reserved",null,null,null,1,1,null,null,null,0,0,0,0,0,0,0,0,0,0,null,null,null,null,null,0,0,{"$f":"_xlfn.IFS(AJ$1=M$2, M362, AJ$1=N$2, N362,AJ$1=O$2, O362,AJ$1=P$2, P362)","v":1}]
[null,null,"University Wide","La Jolla Campus","West Campus","Health Sciences West","Surface Lot","P602","P602","Electric Vehicle",null,null,null,4,4,null,null,null,1,0,1,0,0,0,0,0,1,0,null,null,null,null,null,0,1,{"$f":"_xlfn.IFS(AJ$1=M$2, M363, AJ$1=N$2, N363,AJ$1=O$2, O363,AJ$1=P$2, P363)","v":4}]
[null,null,"University Wide","La Jolla Campus","West Campus","Health Sciences West","Surface Lot","P602","P602","Visitor",null,null,null,12,12,null,null,null,6,4,0,0,1,1,1,2,4,0,null,null,null,null,null,0,6,{"$f":"_xlfn.IFS(AJ$1=M$2, M364, AJ$1=N$2, N364,AJ$1=O$2, O364,AJ$1=P$2, P364)","v":12}]
[null,null,"University Wide","La Jolla Campus","West Campus","Health Sciences West","Surface Lot","P603","P603","A",null,null,null,23,0,null,null,null,0,0,0,0,0,0,0,0,0,0,null,null,null,null,null,0,0,{"$f":"_xlfn.IFS(AJ$1=M$2, M365, AJ$1=N$2, N365,AJ$1=O$2, O365,AJ$1=P$2, P365)","v":23}]
[null,null,"University Wide","La Jolla Campus","West Campus","Health Sciences West","Surface Lot","P610","P610","Accessible",null,null,null,5,5,null,null,null,0,0,0,0,0,0,0,2,1,0,null,null,null,null,null,0,2,{"$f":"_xlfn.IFS(AJ$1=M$2, M366, AJ$1=N$2, N366,AJ$1=O$2, O366,AJ$1=P$2, P366)","v":5}]
[null,null,"University Wide","La Jolla Campus","West Campus","Health Sciences West","Surface Lot","P610","P610","Reserved","Enterprise",null,null,4,4,null,null,null,0,0,0,0,0,0,0,0,0,0,null,null,null,null,null,0,0,{"$f":"_xlfn.IFS(AJ$1=M$2, M367, AJ$1=N$2, N367,AJ$1=O$2, O367,AJ$1=P$2, P367)","v":4}]
[null,null,"University Wide","La Jolla Campus","West Campus","Health Sciences West","Surface Lot","P610","P610","Reserved","EXCITE LAB",null,null,10,10,null,null,null,0,0,0,0,0,0,0,0,0,0,null,null,null,null,null,0,0,{"$f":"_xlfn.IFS(AJ$1=M$2, M368, AJ$1=N$2, N368,AJ$1=O$2, O368,AJ$1=P$2, P368)","v":10}]
[null,null,"University Wide","La Jolla Campus","West Campus","Health Sciences West","Surface Lot","P610","P610","Reserved",null,null,null,8,9,null,null,null,0,0,0,0,0,0,0,0,0,0,null,null,null,null,null,0,0,{"$f":"_xlfn.IFS(AJ$1=M$2, M369, AJ$1=N$2, N369,AJ$1=O$2, O369,AJ$1=P$2, P369)","v":8}]
[null,null,"University Wide","La Jolla Campus","West Campus","Health Sciences West","Surface Lot","P603","P603","Visitor",null,null,null,34,36,null,null,null,8,1,0,0,6,3,1,6,19,0,null,null,null,null,null,0,19,{"$f":"_xlfn.IFS(AJ$1=M$2, M370, AJ$1=N$2, N370,AJ$1=O$2, O370,AJ$1=P$2, P370)","v":34}]
[null,null,"University Wide","La Jolla Campus","West Campus","Health Sciences West","Surface Lot","P604","P604","B",null,null,null,34,0,null,null,null,0,0,0,0,0,0,0,0,0,0,null,null,null,null,null,0,0,{"$f":"_xlfn.IFS(AJ$1=M$2, M371, AJ$1=N$2, N371,AJ$1=O$2, O371,AJ$1=P$2, P371)","v":34}]
[null,null,"University Wide","La Jolla Campus","East Campus","Health Sciences East","Surface Lot","P702","P702","Accessible",null,null,null,6,6,null,null,null,0,5,0,0,0,4,3,4,4,0,null,null,null,null,null,0,5,{"$f":"_xlfn.IFS(AJ$1=M$2, M372, AJ$1=N$2, N372,AJ$1=O$2, O372,AJ$1=P$2, P372)","v":6}]
[null,null,"University Wide","La Jolla Campus","West Campus","Health Sciences West","Surface Lot","P610","P610","A",null,null,null,116,113,null,null,null,42,0,0,1,0,0,0,3,5,0,null,null,null,null,null,0,42,{"$f":"_xlfn.IFS(AJ$1=M$2, M373, AJ$1=N$2, N373,AJ$1=O$2, O373,AJ$1=P$2, P373)","v":116}]
[null,null,"University Wide","La Jolla Campus","West Campus","Health Sciences West","Surface Lot","P610","P610","Carpool","A 3-Person",null,null,2,2,null,null,null,2,1,0,0,0,0,0,1,1,0,null,null,null,null,null,0,2,{"$f":"_xlfn.IFS(AJ$1=M$2, M374, AJ$1=N$2, N374,AJ$1=O$2, O374,AJ$1=P$2, P374)","v":2}]
[null,null,"University Wide","La Jolla Campus","West Campus","Health Sciences West","Surface Lot","P610","P610","Electric Vehicle",null,null,null,6,6,null,null,null,5,0,0,0,1,0,1,2,2,0,null,null,null,null,null,0,5,{"$f":"_xlfn.IFS(AJ$1=M$2, M375, AJ$1=N$2, N375,AJ$1=O$2, O375,AJ$1=P$2, P375)","v":6}]
[null,null,"University Wide","La Jolla Campus","East Campus","Health Sciences East","Surface Lot","P703","P703","Accessible",null,null,null,11,11,null,null,null,8,0,0,0,5,0,6,6,6,0,null,null,null,null,null,0,8,{"$f":"_xlfn.IFS(AJ$1=M$2, M376, AJ$1=N$2, N376,AJ$1=O$2, O376,AJ$1=P$2, P376)","v":11}]
[null,null,"University Wide","La Jolla Campus","East Campus","Health Sciences East","Surface Lot","P703","P703","Allocated","Ambulance",null,null,2,2,null,null,null,1,0,0,0,1,0,1,1,1,0,null,null,null,null,null,0,1,{"$f":"_xlfn.IFS(AJ$1=M$2, M377, AJ$1=N$2, N377,AJ$1=O$2, O377,AJ$1=P$2, P377)","v":2}]
[null,null,"University Wide","La Jolla Campus","East Campus","Health Sciences East","Surface Lot","P703","P703","Loading",null,null,null,2,2,null,null,null,1,0,0,0,0,0,1,1,1,0,null,null,null,null,null,0,1,{"$f":"_xlfn.IFS(AJ$1=M$2, M378, AJ$1=N$2, N378,AJ$1=O$2, O378,AJ$1=P$2, P378)","v":2}]
[null,null,"University Wide","La Jolla Campus","East Campus","Health Sciences East","Surface Lot","P703","P703","Reserved","V2G",null,null,1,1,null,null,null,0,0,0,0,0,0,0,0,0,0,null,null,null,null,null,0,0,{"$f":"_xlfn.IFS(AJ$1=M$2, M379, AJ$1=N$2, N379,AJ$1=O$2, O379,AJ$1=P$2, P379)","v":1}]
[null,null,"University Wide","La Jolla Campus","East Campus","Health Sciences East","Surface Lot","P703","P703","Reserved",null,null,null,1,1,null,null,null,0,0,0,0,0,0,0,0,0,0,null,null,null,null,null,0,0,{"$f":"_xlfn.IFS(AJ$1=M$2, M380, AJ$1=N$2, N380,AJ$1=O$2, O380,AJ$1=P$2, P380)","v":1}]
[null,null,"University Wide","La Jolla Campus","East Campus","Health Sciences East","Surface Lot","P703","P703","UC Vehicle","UC Cart",null,null,2,2,null,null,null,2,0,0,0,0,0,0,0,0,0,null,null,null,null,null,0,2,{"$f":"_xlfn.IFS(AJ$1=M$2, M381, AJ$1=N$2, N381,AJ$1=O$2, O381,AJ$1=P$2, P381)","v":2}]
[null,null,"University Wide","La Jolla Campus","East Campus","Health Sciences East","Surface Lot","P703","P703","UC Vehicle",null,null,null,19,19,null,null,null,6,0,0,0,4,6,5,6,6,0,null,null,null,null,null,0,6,{"$f":"_xlfn.IFS(AJ$1=M$2, M382, AJ$1=N$2, N382,AJ$1=O$2, O382,AJ$1=P$2, P382)","v":19}]
[null,null,"University Wide","La Jolla Campus","West Campus","Health Sciences West","South","P651","South","A",null,null,null,362,362,null,null,null,206,110,53,1,4,10,12,69,141,156,null,null,null,null,null,1,206,{"$f":"_xlfn.IFS(AJ$1=M$2, M383, AJ$1=N$2, N383,AJ$1=O$2, O383,AJ$1=P$2, P383)","v":362}]
[null,null,"University Wide","La Jolla Campus","West Campus","Health Sciences West","South","P651","South","Electric Vehicle",null,null,null,32,32,null,null,null,11,5,3,0,2,2,3,3,10,9,null,null,null,null,null,0,11,{"$f":"_xlfn.IFS(AJ$1=M$2, M384, AJ$1=N$2, N384,AJ$1=O$2, O384,AJ$1=P$2, P384)","v":32}]
[null,null,"University Wide","La Jolla Campus","West Campus","Health Sciences West","South","P651","South","S",null,null,null,1,1,null,null,null,0,0,0,0,0,0,0,0,0,0,null,null,null,null,null,0,0,{"$f":"_xlfn.IFS(AJ$1=M$2, M385, AJ$1=N$2, N385,AJ$1=O$2, O385,AJ$1=P$2, P385)","v":1}]
[null,null,"University Wide","La Jolla Campus","West Campus","Health Sciences West","South","P651","South","SR",null,null,null,68,68,null,null,null,20,4,0,0,1,0,1,8,15,13,null,null,null,null,null,0,20,{"$f":"_xlfn.IFS(AJ$1=M$2, M386, AJ$1=N$2, N386,AJ$1=O$2, O386,AJ$1=P$2, P386)","v":68}]
[null,null,"University Wide","La Jolla Campus","East Campus","Preuss School","Surface Lot","P706","P706","Accessible",null,null,null,4,4,null,null,null,0,2,0,0,1,2,1,2,2,0,null,null,null,null,null,0,2,{"$f":"_xlfn.IFS(AJ$1=M$2, M387, AJ$1=N$2, N387,AJ$1=O$2, O387,AJ$1=P$2, P387)","v":4}]
[null,null,"University Wide","La Jolla Campus","East Campus","Preuss School","Surface Lot","P706",{"$f":"IF(G388=\"Surface Lot\", H388, G388)","v":"P706"},"Loading",null,"30 minutes",null,3,3,null,null,null,0,1,0,0,0,0,1,1,1,0,null,null,null,null,null,{"$f":"MIN($Q388:$AG388)","v":0},{"$f":"MAX($Q388:$AG388)","v":1},{"$f":"_xlfn.IFS(AJ$1=M$2, M388, AJ$1=N$2, N388,AJ$1=O$2, O388,AJ$1=P$2, P388)","v":3}]
[null,null,"University Wide","La Jolla Campus","West Campus","Health Sciences West","South","P652","South","B",null,null,null,622,622,null,null,null,3,0,0,0,0,1,6,24,27,28,null,null,null,null,null,0,28,{"$f":"_xlfn.IFS(AJ$1=M$2, M389, AJ$1=N$2, N389,AJ$1=O$2, O389,AJ$1=P$2, P389)","v":622}]
[null,null,"University Wide","La Jolla Campus","West Campus","Health Sciences West","South","P652","South","Carpool","2 Person Carpool",null,null,63,63,null,null,null,41,1,0,0,0,0,0,10,18,18,null,null,null,null,null,0,41,{"$f":"_xlfn.IFS(AJ$1=M$2, M390, AJ$1=N$2, N390,AJ$1=O$2, O390,AJ$1=P$2, P390)","v":63}]
[null,null,"University Wide","La Jolla Campus","East Campus","Health Sciences East","Surface Lot","P707","P707","Accessible",null,null,null,7,7,null,null,null,0,0,6,0,4,3,4,5,5,0,null,null,null,null,null,0,6,{"$f":"_xlfn.IFS(AJ$1=M$2, M391, AJ$1=N$2, N391,AJ$1=O$2, O391,AJ$1=P$2, P391)","v":7}]
[null,null,"University Wide","La Jolla Campus","East Campus","Health Sciences East","Surface Lot","P707","P707","Reserved",null,null,null,6,6,null,null,null,0,0,0,0,0,0,0,0,0,0,null,null,null,null,null,0,0,{"$f":"_xlfn.IFS(AJ$1=M$2, M392, AJ$1=N$2, N392,AJ$1=O$2, O392,AJ$1=P$2, P392)","v":6}]
[null,null,"University Wide","La Jolla Campus","West Campus","Health Sciences West","South","P653","South","Carpool","B 3-Person",null,null,3,3,null,null,null,0,0,0,0,0,0,0,0,0,0,null,null,null,null,null,0,0,{"$f":"_xlfn.IFS(AJ$1=M$2, M393, AJ$1=N$2, N393,AJ$1=O$2, O393,AJ$1=P$2, P393)","v":3}]
[null,null,"University Wide","La Jolla Campus","West Campus","Health Sciences West","South","P653","South","Visitor",null,null,null,113,113,null,null,null,31,0,0,0,1,2,16,42,70,65,null,null,null,null,null,0,70,{"$f":"_xlfn.IFS(AJ$1=M$2, M394, AJ$1=N$2, N394,AJ$1=O$2, O394,AJ$1=P$2, P394)","v":113}]
[null,null,"University Wide","La Jolla Campus","East Campus","Health Sciences East","Surface Lot","P751","P751","Accessible",null,null,null,4,4,null,null,null,0,0,0,0,0,0,0,0,0,0,null,null,null,null,null,0,0,{"$f":"_xlfn.IFS(AJ$1=M$2, M395, AJ$1=N$2, N395,AJ$1=O$2, O395,AJ$1=P$2, P395)","v":4}]
[null,null,"University Wide","La Jolla Campus","East Campus","Health Sciences East","Surface Lot","P751","P751","Reserved","Valet",null,null,0,0,null,null,null,0,0,0,0,0,0,0,0,0,0,null,null,null,null,null,0,0,{"$f":"_xlfn.IFS(AJ$1=M$2, M396, AJ$1=N$2, N396,AJ$1=O$2, O396,AJ$1=P$2, P396)","v":0}]
[null,null,"University Wide","La Jolla Campus","East Campus","Health Sciences East","Surface Lot","P751","P751","Reserved",null,null,null,0,0,null,null,null,0,0,0,0,0,0,0,0,0,0,null,null,null,null,null,0,0,{"$f":"_xlfn.IFS(AJ$1=M$2, M397, AJ$1=N$2, N397,AJ$1=O$2, O397,AJ$1=P$2, P397)","v":0}]
[null,null,"University Wide","La Jolla Campus","East Campus","Health Sciences East","Surface Lot","P752","P752","Accessible",null,null,null,2,2,null,null,null,2,2,2,1,2,2,2,0,1,1,null,null,null,null,null,0,2,{"$f":"_xlfn.IFS(AJ$1=M$2, M398, AJ$1=N$2, N398,AJ$1=O$2, O398,AJ$1=P$2, P398)","v":2}]
[null,null,"University Wide","La Jolla Campus","East Campus","Health Sciences East","Surface Lot","P752","P752","Allocated","Physician On Call",null,null,4,4,null,null,null,2,1,1,0,1,0,1,1,2,2,null,null,null,null,null,0,2,{"$f":"_xlfn.IFS(AJ$1=M$2, M399, AJ$1=N$2, N399,AJ$1=O$2, O399,AJ$1=P$2, P399)","v":4}]
[null,null,"University Wide","La Jolla Campus","East Campus","Health Sciences East","Surface Lot","P752","P752","Reserved","Valet",null,null,23,23,null,null,null,0,0,0,0,0,0,0,0,0,0,null,null,null,null,null,0,0,{"$f":"_xlfn.IFS(AJ$1=M$2, M400, AJ$1=N$2, N400,AJ$1=O$2, O400,AJ$1=P$2, P400)","v":23}]
[null,null,"University Wide","La Jolla Campus","East Campus","Health Sciences East","Surface Lot","P752","P752","Reserved",null,null,null,1,1,null,null,null,0,0,0,0,0,0,0,0,0,0,null,null,null,null,null,0,0,{"$f":"_xlfn.IFS(AJ$1=M$2, M401, AJ$1=N$2, N401,AJ$1=O$2, O401,AJ$1=P$2, P401)","v":1}]
[null,null,"University Wide","La Jolla Campus","East Campus","Health Sciences East","Surface Lot","P753","P753","Accessible",null,null,null,2,2,null,null,null,2,1,1,1,1,2,2,0,0,0,null,null,null,null,null,0,2,{"$f":"_xlfn.IFS(AJ$1=M$2, M402, AJ$1=N$2, N402,AJ$1=O$2, O402,AJ$1=P$2, P402)","v":2}]
[null,null,"University Wide","La Jolla Campus","East Campus","Health Sciences East","Surface Lot","P753","P753","Reserved",null,null,null,32,32,null,null,null,0,0,0,0,0,0,0,0,0,0,null,null,null,null,null,0,0,{"$f":"_xlfn.IFS(AJ$1=M$2, M403, AJ$1=N$2, N403,AJ$1=O$2, O403,AJ$1=P$2, P403)","v":32}]
[null,null,"University Wide","La Jolla Campus","East Campus","Health Sciences East","Surface Lot","P757","P757","Loading","Shiley Surgery",20,null,0,0,null,null,null,0,0,0,0,0,0,0,0,0,0,null,null,null,null,null,0,0,{"$f":"_xlfn.IFS(AJ$1=M$2, M404, AJ$1=N$2, N404,AJ$1=O$2, O404,AJ$1=P$2, P404)","v":0}]
[null,null,"University Wide","La Jolla Campus","East Campus","Health Sciences East","Surface Lot","P757","P757","Reserved",null,null,null,0,0,null,null,null,0,0,0,0,0,0,0,0,0,0,null,null,null,null,null,0,0,{"$f":"_xlfn.IFS(AJ$1=M$2, M405, AJ$1=N$2, N405,AJ$1=O$2, O405,AJ$1=P$2, P405)","v":0}]
[null,null,"University Wide","La Jolla Campus","East Campus","Health Sciences East","Surface Lot","P757","P757","UC Vehicle",null,null,null,0,0,null,null,null,0,0,0,0,0,0,0,0,0,0,null,null,null,null,null,0,0,{"$f":"_xlfn.IFS(AJ$1=M$2, M406, AJ$1=N$2, N406,AJ$1=O$2, O406,AJ$1=P$2, P406)","v":0}]
[null,null,"University Wide","La Jolla Campus","East Campus","Health Sciences East","Surface Lot","P758","P758","Accessible",null,null,null,2,2,null,null,null,2,2,0,2,2,0,2,1,0,0,null,null,null,null,null,0,2,{"$f":"_xlfn.IFS(AJ$1=M$2, M407, AJ$1=N$2, N407,AJ$1=O$2, O407,AJ$1=P$2, P407)","v":2}]
[null,null,"University Wide","La Jolla Campus","East Campus","Health Sciences East","Surface Lot","P758","P758","Motorcycle Section",null,null,null,0,0,null,null,null,0,0,0,0,0,0,0,0,0,0,null,null,null,null,null,0,0,{"$f":"_xlfn.IFS(AJ$1=M$2, M408, AJ$1=N$2, N408,AJ$1=O$2, O408,AJ$1=P$2, P408)","v":0}]
[null,null,"University Wide","La Jolla Campus","East Campus","Health Sciences East","Surface Lot","P758","P758","Reserved",null,null,null,5,5,null,null,null,0,0,0,0,0,0,0,0,0,0,null,null,null,null,null,0,0,{"$f":"_xlfn.IFS(AJ$1=M$2, M409, AJ$1=N$2, N409,AJ$1=O$2, O409,AJ$1=P$2, P409)","v":5}]
[null,null,"University Wide","La Jolla Campus","East Campus","East Recreation","Surface Lot","P701","P701","S",null,null,null,378,378,null,null,null,0,270,0,0,0,200,214,237,253,0,null,null,null,null,null,0,270,{"$f":"_xlfn.IFS(AJ$1=M$2, M410, AJ$1=N$2, N410,AJ$1=O$2, O410,AJ$1=P$2, P410)","v":378}]
[null,null,"University Wide","La Jolla Campus","East Campus","Health Sciences East","Surface Lot","P759","P759","Accessible",null,null,null,9,9,null,null,null,1,0,1,1,1,0,1,1,3,3,null,null,null,null,null,0,3,{"$f":"_xlfn.IFS(AJ$1=M$2, M411, AJ$1=N$2, N411,AJ$1=O$2, O411,AJ$1=P$2, P411)","v":9}]
[null,null,"University Wide","La Jolla Campus","East Campus","Health Sciences East","Surface Lot","P759","P759","Motorcycle Section",null,null,null,0,1,null,null,null,0,0,0,0,0,0,0,0,0,0,null,null,null,null,null,0,0,{"$f":"_xlfn.IFS(AJ$1=M$2, M412, AJ$1=N$2, N412,AJ$1=O$2, O412,AJ$1=P$2, P412)","v":0}]
[null,null,"University Wide","La Jolla Campus","East Campus","Health Sciences East","Surface Lot","P759","P759","Reserved","Alzheimers Disease Research Center Patient",null,null,10,10,null,null,null,0,0,0,0,0,0,0,0,0,0,null,null,null,null,null,0,0,{"$f":"_xlfn.IFS(AJ$1=M$2, M413, AJ$1=N$2, N413,AJ$1=O$2, O413,AJ$1=P$2, P413)","v":10}]
[null,null,"University Wide","La Jolla Campus","East Campus","Health Sciences East","Surface Lot","P759","P759","Reserved","Brain Health and Memory Disorders",null,null,5,5,null,null,null,0,0,0,0,0,0,0,0,0,0,null,null,null,null,null,0,0,{"$f":"_xlfn.IFS(AJ$1=M$2, M414, AJ$1=N$2, N414,AJ$1=O$2, O414,AJ$1=P$2, P414)","v":5}]
[null,null,"University Wide","La Jolla Campus","East Campus","Health Sciences East","Surface Lot","P759","P759","Reserved","Huntington's Disease Clinical Research Center",null,null,2,2,null,null,null,0,0,0,0,0,0,0,0,0,0,null,null,null,null,null,0,0,{"$f":"_xlfn.IFS(AJ$1=M$2, M415, AJ$1=N$2, N415,AJ$1=O$2, O415,AJ$1=P$2, P415)","v":2}]
[null,null,"University Wide","La Jolla Campus","East Campus","Health Sciences East","Surface Lot","P702","P702","S",null,null,null,183,183,null,null,null,0,78,0,0,0,60,67,70,73,0,null,null,null,null,null,0,78,{"$f":"_xlfn.IFS(AJ$1=M$2, M416, AJ$1=N$2, N416,AJ$1=O$2, O416,AJ$1=P$2, P416)","v":183}]
[null,null,"University Wide","La Jolla Campus","East Campus","Health Sciences East","Surface Lot","P703","P703","D ($5.00)",null,null,null,295,295,null,null,null,7,0,0,0,7,5,5,6,6,0,null,null,null,null,null,0,7,{"$f":"_xlfn.IFS(AJ$1=M$2, M417, AJ$1=N$2, N417,AJ$1=O$2, O417,AJ$1=P$2, P417)","v":295}]
[null,null,"University Wide","La Jolla Campus","East Campus","Health Sciences East","Surface Lot","P703","P703","Electric Vehicle",null,null,null,12,12,null,null,null,9,0,0,0,6,3,4,5,7,0,null,null,null,null,null,0,9,{"$f":"_xlfn.IFS(AJ$1=M$2, M418, AJ$1=N$2, N418,AJ$1=O$2, O418,AJ$1=P$2, P418)","v":12}]
[null,null,"University Wide","La Jolla Campus","East Campus","Health Sciences East","Surface Lot","P703","P703","Visitor","Radiation Oncology Center Patient",null,null,17,17,null,null,null,0,0,0,0,0,0,0,0,0,0,null,null,null,null,null,0,0,{"$f":"_xlfn.IFS(AJ$1=M$2, M419, AJ$1=N$2, N419,AJ$1=O$2, O419,AJ$1=P$2, P419)","v":17}]
[null,null,"University Wide","La Jolla Campus","East Campus","Health Sciences East","Surface Lot","P760","P760","Accessible",null,null,null,11,11,null,null,null,2,3,1,0,1,2,1,3,5,5,null,null,null,null,null,0,5,{"$f":"_xlfn.IFS(AJ$1=M$2, M420, AJ$1=N$2, N420,AJ$1=O$2, O420,AJ$1=P$2, P420)","v":11}]
[null,null,"University Wide","La Jolla Campus","East Campus","Health Sciences East","Surface Lot","P760","P760","Loading",null,null,null,4,0,null,null,null,2,1,2,1,2,2,1,1,3,2,null,null,null,null,null,1,3,{"$f":"_xlfn.IFS(AJ$1=M$2, M421, AJ$1=N$2, N421,AJ$1=O$2, O421,AJ$1=P$2, P421)","v":4}]
[null,null,"University Wide","La Jolla Campus","East Campus","Health Sciences East","Surface Lot","P760","P760","Motorcycle Section",null,null,null,0,0,null,null,null,0,0,0,0,0,0,0,0,0,0,null,null,null,null,null,0,0,{"$f":"_xlfn.IFS(AJ$1=M$2, M422, AJ$1=N$2, N422,AJ$1=O$2, O422,AJ$1=P$2, P422)","v":0}]
[null,null,"University Wide","La Jolla Campus","East Campus","Health Sciences East","Surface Lot","P760","P760","Reserved",null,null,null,1,1,null,null,null,0,0,0,0,0,0,0,0,0,0,null,null,null,null,null,0,0,{"$f":"_xlfn.IFS(AJ$1=M$2, M423, AJ$1=N$2, N423,AJ$1=O$2, O423,AJ$1=P$2, P423)","v":1}]
[null,null,"University Wide","La Jolla Campus","East Campus","Health Sciences East","Surface Lot","P760","P760","UC Vehicle",null,null,null,1,0,null,null,null,1,1,0,1,0,0,1,0,0,0,null,null,null,null,null,0,1,{"$f":"_xlfn.IFS(AJ$1=M$2, M424, AJ$1=N$2, N424,AJ$1=O$2, O424,AJ$1=P$2, P424)","v":1}]
[null,null,"University Wide","La Jolla Campus","East Campus","Health Sciences East","Surface Lot","P761","P761","UC Vehicle",null,null,null,3,3,null,null,null,2,2,1,1,0,0,0,2,2,2,null,null,null,null,null,0,2,{"$f":"_xlfn.IFS(AJ$1=M$2, M425, AJ$1=N$2, N425,AJ$1=O$2, O425,AJ$1=P$2, P425)","v":3}]
[null,null,"University Wide","La Jolla Campus","East Campus","Health Sciences East","Surface Lot","P762","P762","Loading",null,null,null,1,1,null,null,null,1,1,1,0,0,1,0,0,0,1,null,null,null,null,null,0,1,{"$f":"_xlfn.IFS(AJ$1=M$2, M426, AJ$1=N$2, N426,AJ$1=O$2, O426,AJ$1=P$2, P426)","v":1}]
[null,null,"University Wide","La Jolla Campus","East Campus","Health Sciences East","Surface Lot","P762","P762","Service Yard",null,null,null,3,3,null,null,null,0,0,0,0,0,0,0,0,0,0,null,null,null,null,null,0,0,{"$f":"_xlfn.IFS(AJ$1=M$2, M427, AJ$1=N$2, N427,AJ$1=O$2, O427,AJ$1=P$2, P427)","v":3}]
[null,null,"University Wide","La Jolla Campus","East Campus","Health Sciences East","Surface Lot","P704","P704","D ($5.00)",null,null,null,326,326,null,null,null,0,0,277,0,83,80,89,132,170,0,null,null,null,null,null,0,277,{"$f":"_xlfn.IFS(AJ$1=M$2, M428, AJ$1=N$2, N428,AJ$1=O$2, O428,AJ$1=P$2, P428)","v":326}]
[null,null,"University Wide","La Jolla Campus","East Campus","Health Sciences East","Surface Lot","P705","P705","D ($5.00)",null,null,null,266,266,null,null,null,0,0,0,130,57,72,78,84,101,0,null,null,null,null,null,0,130,{"$f":"_xlfn.IFS(AJ$1=M$2, M429, AJ$1=N$2, N429,AJ$1=O$2, O429,AJ$1=P$2, P429)","v":266}]
[null,null,"University Wide","La Jolla Campus","East Campus","Health Sciences East","Surface Lot","P784","P784","Accessible",null,null,null,18,18,null,null,null,7,3,3,0,2,1,3,1,8,5,null,null,null,null,null,0,8,{"$f":"_xlfn.IFS(AJ$1=M$2, M430, AJ$1=N$2, N430,AJ$1=O$2, O430,AJ$1=P$2, P430)","v":18}]
[null,null,"University Wide","La Jolla Campus","East Campus","Health Sciences East","Surface Lot","P784","P784","Reserved","Valet",null,null,9,9,null,null,null,0,0,0,0,0,0,0,0,0,0,null,null,null,null,null,0,0,{"$f":"_xlfn.IFS(AJ$1=M$2, M431, AJ$1=N$2, N431,AJ$1=O$2, O431,AJ$1=P$2, P431)","v":9}]
[null,null,"University Wide","La Jolla Campus","East Campus","Preuss School","Surface Lot","P706","P706","A","Preuss",null,null,4,6,null,null,null,0,0,0,0,0,0,0,0,0,0,null,null,null,null,null,0,0,{"$f":"_xlfn.IFS(AJ$1=M$2, M432, AJ$1=N$2, N432,AJ$1=O$2, O432,AJ$1=P$2, P432)","v":4}]
[null,null,"University Wide","La Jolla Campus","East Campus","Health Sciences East","Surface Lot","P785","P785","Accessible",null,null,null,8,8,null,null,null,3,2,2,0,0,0,0,4,4,4,null,null,null,null,null,0,4,{"$f":"_xlfn.IFS(AJ$1=M$2, M433, AJ$1=N$2, N433,AJ$1=O$2, O433,AJ$1=P$2, P433)","v":8}]
[null,null,"University Wide","Medical Center Hillcrest","Medical Center Hillcrest","Medical Center Hillcrest","Surface Lot","P952","P952","Allocated","Law Enforcement Transport Vehicle",null,null,4,4,null,null,null,2,2,2,2,3,3,3,3,3,3,null,null,null,null,null,2,3,{"$f":"_xlfn.IFS(AJ$1=M$2, M434, AJ$1=N$2, N434,AJ$1=O$2, O434,AJ$1=P$2, P434)","v":4}]
[null,null,"University Wide","Medical Center Hillcrest","Medical Center Hillcrest","Medical Center Hillcrest","Surface Lot","P952","P952","Allocated","Mortuary Vehicle",null,null,1,1,null,null,null,1,1,1,1,1,1,1,1,1,1,null,null,null,null,null,1,1,{"$f":"_xlfn.IFS(AJ$1=M$2, M435, AJ$1=N$2, N435,AJ$1=O$2, O435,AJ$1=P$2, P435)","v":1}]
[null,null,"University Wide","Medical Center Hillcrest","Medical Center Hillcrest","Medical Center Hillcrest","Surface Lot","P952","P952","Loading",null,20,null,2,2,null,null,null,0,0,0,0,0,0,0,0,0,0,null,null,null,null,null,0,0,{"$f":"_xlfn.IFS(AJ$1=M$2, M436, AJ$1=N$2, N436,AJ$1=O$2, O436,AJ$1=P$2, P436)","v":2}]
[null,null,"University Wide","Medical Center Hillcrest","Medical Center Hillcrest","Medical Center Hillcrest","Surface Lot","P952","P952","Service Yard",null,null,null,2,2,null,null,null,0,0,0,0,1,1,2,0,1,1,null,null,null,null,null,0,2,{"$f":"_xlfn.IFS(AJ$1=M$2, M437, AJ$1=N$2, N437,AJ$1=O$2, O437,AJ$1=P$2, P437)","v":2}]
[null,null,"University Wide","Medical Center Hillcrest","Medical Center Hillcrest","Medical Center Hillcrest","Surface Lot","P952","P952","UC Vehicle",null,null,null,2,2,null,null,null,0,0,0,0,0,0,0,0,0,0,null,null,null,null,null,0,0,{"$f":"_xlfn.IFS(AJ$1=M$2, M438, AJ$1=N$2, N438,AJ$1=O$2, O438,AJ$1=P$2, P438)","v":2}]
[null,null,"University Wide","La Jolla Campus","East Campus","Preuss School","Surface Lot","P706","P706","B","Preuss",null,null,59,59,null,null,null,0,0,0,0,0,1,0,1,2,0,null,null,null,null,null,0,2,{"$f":"_xlfn.IFS(AJ$1=M$2, M439, AJ$1=N$2, N439,AJ$1=O$2, O439,AJ$1=P$2, P439)","v":59}]
[null,null,"University Wide","Medical Center Hillcrest","Medical Center Hillcrest","Medical Center Hillcrest","Surface Lot","P953","P953","Accessible",null,null,null,3,3,null,null,null,0,0,0,0,0,2,0,0,0,0,null,null,null,null,null,0,2,{"$f":"_xlfn.IFS(AJ$1=M$2, M440, AJ$1=N$2, N440,AJ$1=O$2, O440,AJ$1=P$2, P440)","v":3}]
[null,null,"University Wide","Medical Center Hillcrest","Medical Center Hillcrest","Medical Center Hillcrest","Surface Lot","P953","P953","Reserved",null,null,null,7,7,null,null,null,0,0,0,0,0,0,0,0,0,0,null,null,null,null,null,0,0,{"$f":"_xlfn.IFS(AJ$1=M$2, M441, AJ$1=N$2, N441,AJ$1=O$2, O441,AJ$1=P$2, P441)","v":7}]
[null,null,"University Wide","Medical Center Hillcrest","Medical Center Hillcrest","Medical Center Hillcrest","Surface Lot","P954","P954","Accessible",null,null,null,3,3,null,null,null,0,0,0,0,0,0,0,1,1,2,null,null,null,null,null,0,2,{"$f":"_xlfn.IFS(AJ$1=M$2, M442, AJ$1=N$2, N442,AJ$1=O$2, O442,AJ$1=P$2, P442)","v":3}]
[null,null,"University Wide","Medical Center Hillcrest","Medical Center Hillcrest","Medical Center Hillcrest","Surface Lot","P954","P954","Allocated","Banister Family House",null,null,12,12,null,null,null,0,5,5,5,1,1,1,1,1,1,null,null,null,null,null,0,5,{"$f":"_xlfn.IFS(AJ$1=M$2, M443, AJ$1=N$2, N443,AJ$1=O$2, O443,AJ$1=P$2, P443)","v":12}]
[null,null,"University Wide","Medical Center Hillcrest","Medical Center Hillcrest","Medical Center Hillcrest","Surface Lot","P954","P954","Reserved",null,null,null,25,25,null,null,null,0,0,0,0,0,0,0,0,0,0,null,null,null,null,null,0,0,{"$f":"_xlfn.IFS(AJ$1=M$2, M444, AJ$1=N$2, N444,AJ$1=O$2, O444,AJ$1=P$2, P444)","v":25}]
[null,null,"University Wide","La Jolla Campus","East Campus","Health Sciences East","Surface Lot","P707","P707","Electric Vehicle",null,null,null,2,2,null,null,null,0,0,0,0,2,2,2,2,2,0,null,null,null,null,null,0,2,{"$f":"_xlfn.IFS(AJ$1=M$2, M445, AJ$1=N$2, N445,AJ$1=O$2, O445,AJ$1=P$2, P445)","v":2}]
[null,null,"University Wide","Medical Center Hillcrest","Medical Center Hillcrest","Medical Center Hillcrest","Surface Lot","P955","P955","Accessible",null,null,null,1,1,null,null,null,1,0,0,0,0,0,0,0,1,1,null,null,null,null,null,0,1,{"$f":"_xlfn.IFS(AJ$1=M$2, M446, AJ$1=N$2, N446,AJ$1=O$2, O446,AJ$1=P$2, P446)","v":1}]
[null,null,"University Wide","Medical Center Hillcrest","Medical Center Hillcrest","Medical Center Hillcrest","Surface Lot","P955","P955","Loading",null,null,null,2,2,null,null,null,2,2,2,2,2,1,1,2,1,2,null,null,null,null,null,1,2,{"$f":"_xlfn.IFS(AJ$1=M$2, M447, AJ$1=N$2, N447,AJ$1=O$2, O447,AJ$1=P$2, P447)","v":2}]
[null,null,"University Wide","Medical Center Hillcrest","Medical Center Hillcrest","Medical Center Hillcrest","Surface Lot","P955","P955","Motorcycle Section",null,null,null,3,3,null,null,null,3,3,3,3,2,1,1,3,1,2,null,null,null,null,null,1,3,{"$f":"_xlfn.IFS(AJ$1=M$2, M448, AJ$1=N$2, N448,AJ$1=O$2, O448,AJ$1=P$2, P448)","v":3}]
[null,null,"University Wide","Medical Center Hillcrest","Medical Center Hillcrest","Medical Center Hillcrest","Surface Lot","P955","P955","Reserved",null,null,null,21,21,null,null,null,0,0,0,0,0,0,0,0,0,0,null,null,null,null,null,0,0,{"$f":"_xlfn.IFS(AJ$1=M$2, M449, AJ$1=N$2, N449,AJ$1=O$2, O449,AJ$1=P$2, P449)","v":21}]
[null,null,"University Wide","Medical Center Hillcrest","Medical Center Hillcrest","Medical Center Hillcrest","Surface Lot","P955","P955","Service Yard",null,null,null,3,3,null,null,null,1,0,0,0,2,2,3,2,2,3,null,null,null,null,null,0,3,{"$f":"_xlfn.IFS(AJ$1=M$2, M450, AJ$1=N$2, N450,AJ$1=O$2, O450,AJ$1=P$2, P450)","v":3}]
[null,null,"University Wide","Medical Center Hillcrest","Medical Center Hillcrest","Medical Center Hillcrest","Surface Lot","P955","P955","UC Vehicle","UC Cart",null,null,1,1,null,null,null,1,0,0,0,1,1,0,0,0,0,null,null,null,null,null,0,1,{"$f":"_xlfn.IFS(AJ$1=M$2, M451, AJ$1=N$2, N451,AJ$1=O$2, O451,AJ$1=P$2, P451)","v":1}]
[null,null,"University Wide","Medical Center Hillcrest","Medical Center Hillcrest","Medical Center Hillcrest","Surface Lot","P955",{"$f":"IF(G452=\"Surface Lot\", H452, G452)","v":"P955"},"UC Vehicle",null,null,null,6,6,null,null,null,0,2,0,0,1,1,1,2,1,1,null,null,null,null,null,{"$f":"MIN($Q452:$AG452)","v":0},{"$f":"MAX($Q452:$AG452)","v":2},{"$f":"_xlfn.IFS(AJ$1=M$2, M452, AJ$1=N$2, N452,AJ$1=O$2, O452,AJ$1=P$2, P452)","v":6}]
[null,null,"University Wide","La Jolla Campus","East Campus","Health Sciences East","Surface Lot","P707","P707","S",null,null,null,194,194,null,null,null,0,0,34,0,27,23,24,28,32,0,null,null,null,null,null,0,34,{"$f":"_xlfn.IFS(AJ$1=M$2, M453, AJ$1=N$2, N453,AJ$1=O$2, O453,AJ$1=P$2, P453)","v":194}]
[null,null,"University Wide","Medical Center Hillcrest","Medical Center Hillcrest","Medical Center Hillcrest","Surface Lot","P956","P956","Service Yard",null,null,null,6,6,null,null,null,0,4,2,2,3,3,3,0,0,0,null,null,null,null,null,0,4,{"$f":"_xlfn.IFS(AJ$1=M$2, M454, AJ$1=N$2, N454,AJ$1=O$2, O454,AJ$1=P$2, P454)","v":6}]
[null,null,"University Wide","Medical Center Hillcrest","Medical Center Hillcrest","Medical Center Hillcrest","Surface Lot","P957","P957","Accessible",null,null,null,7,7,null,null,null,0,0,0,0,1,1,0,0,2,2,null,null,null,null,null,0,2,{"$f":"_xlfn.IFS(AJ$1=M$2, M455, AJ$1=N$2, N455,AJ$1=O$2, O455,AJ$1=P$2, P455)","v":7}]
[null,null,"University Wide","Medical Center Hillcrest","Medical Center Hillcrest","Medical Center Hillcrest","Surface Lot","P957","P957","Allocated","Mail Vehicle",null,null,1,1,null,null,null,1,1,1,1,1,0,0,0,0,0,null,null,null,null,null,0,1,{"$f":"_xlfn.IFS(AJ$1=M$2, M456, AJ$1=N$2, N456,AJ$1=O$2, O456,AJ$1=P$2, P456)","v":1}]
[null,null,"University Wide","Medical Center Hillcrest","Medical Center Hillcrest","Medical Center Hillcrest","Surface Lot","P957","P957","Reserved","AVRC",null,null,16,16,null,null,null,0,0,0,0,0,0,0,0,0,0,null,null,null,null,null,0,0,{"$f":"_xlfn.IFS(AJ$1=M$2, M457, AJ$1=N$2, N457,AJ$1=O$2, O457,AJ$1=P$2, P457)","v":16}]
[null,null,"University Wide","Medical Center Hillcrest","Medical Center Hillcrest","Medical Center Hillcrest","Surface Lot","P957","P957","Reserved","Emergency Room",null,null,20,20,null,null,null,0,0,0,0,0,0,0,0,0,0,null,null,null,null,null,0,0,{"$f":"_xlfn.IFS(AJ$1=M$2, M458, AJ$1=N$2, N458,AJ$1=O$2, O458,AJ$1=P$2, P458)","v":20}]
[null,null,"University Wide","Medical Center Hillcrest","Medical Center Hillcrest","Medical Center Hillcrest","Surface Lot","P957","P957","Reserved","Valet",null,null,10,10,null,null,null,0,0,0,0,0,0,0,0,0,0,null,null,null,null,null,0,0,{"$f":"_xlfn.IFS(AJ$1=M$2, M459, AJ$1=N$2, N459,AJ$1=O$2, O459,AJ$1=P$2, P459)","v":10}]
[null,null,"University Wide","Medical Center Hillcrest","Medical Center Hillcrest","Medical Center Hillcrest","Surface Lot","P957","P957","Reserved",null,null,null,21,21,null,null,null,0,0,0,0,0,0,0,0,0,0,null,null,null,null,null,0,0,{"$f":"_xlfn.IFS(AJ$1=M$2, M460, AJ$1=N$2, N460,AJ$1=O$2, O460,AJ$1=P$2, P460)","v":21}]
[null,null,"University Wide","Medical Center Hillcrest","Medical Center Hillcrest","Medical Center Hillcrest","Surface Lot","P957","P957","UC Vehicle",null,null,null,2,2,null,null,null,2,2,1,1,0,1,1,0,0,0,null,null,null,null,null,0,2,{"$f":"_xlfn.IFS(AJ$1=M$2, M461, AJ$1=N$2, N461,AJ$1=O$2, O461,AJ$1=P$2, P461)","v":2}]
[null,null,"University Wide","La Jolla Campus","East Campus","Health Sciences East","Campus Point East","P721","Campus Point East","A","24/7 Enforced",null,null,371,371,null,null,null,21,19,15,9,7,5,3,40,110,120,null,null,null,null,null,3,120,{"$f":"_xlfn.IFS(AJ$1=M$2, M462, AJ$1=N$2, N462,AJ$1=O$2, O462,AJ$1=P$2, P462)","v":371}]
[null,null,"University Wide","La Jolla Campus","East Campus","Health Sciences East","Campus Point East","P722","Campus Point East","Electric Vehicle",null,null,null,3,3,null,null,null,0,1,1,0,0,0,1,0,1,2,null,null,null,null,null,0,2,{"$f":"_xlfn.IFS(AJ$1=M$2, M463, AJ$1=N$2, N463,AJ$1=O$2, O463,AJ$1=P$2, P463)","v":3}]
[null,null,"University Wide","La Jolla Campus","East Campus","Health Sciences East","Campus Point East","P723","Campus Point East","Visitor",null,null,null,138,138,null,null,null,65,53,43,46,40,0,39,35,30,25,null,null,null,null,null,0,65,{"$f":"_xlfn.IFS(AJ$1=M$2, M464, AJ$1=N$2, N464,AJ$1=O$2, O464,AJ$1=P$2, P464)","v":138}]
[null,null,"University Wide","Medical Center Hillcrest","Medical Center Hillcrest","Medical Center Hillcrest","Surface Lot","P964","P964","Accessible",null,null,null,11,11,null,null,null,0,0,0,0,0,1,1,3,5,5,null,null,null,null,null,0,5,{"$f":"_xlfn.IFS(AJ$1=M$2, M465, AJ$1=N$2, N465,AJ$1=O$2, O465,AJ$1=P$2, P465)","v":11}]
[null,null,"University Wide","Medical Center Hillcrest","Medical Center Hillcrest","Medical Center Hillcrest","Surface Lot","P964","P964","Allocated","Pulmonary Specialist",null,null,12,12,null,null,null,1,0,0,0,0,0,0,0,0,0,null,null,null,null,null,0,1,{"$f":"_xlfn.IFS(AJ$1=M$2, M466, AJ$1=N$2, N466,AJ$1=O$2, O466,AJ$1=P$2, P466)","v":12}]
[null,null,"University Wide","Medical Center Hillcrest","Medical Center Hillcrest","Medical Center Hillcrest","Surface Lot","P964","P964","Allocated","Security",null,null,3,3,null,null,null,2,2,2,2,0,0,0,0,0,0,null,null,null,null,null,0,2,{"$f":"_xlfn.IFS(AJ$1=M$2, M467, AJ$1=N$2, N467,AJ$1=O$2, O467,AJ$1=P$2, P467)","v":3}]
[null,null,"University Wide","Medical Center Hillcrest","Medical Center Hillcrest","Medical Center Hillcrest","Surface Lot","P964","P964","Reserved","Valet",null,null,37,37,null,null,null,0,0,0,0,0,0,0,0,0,0,null,null,null,null,null,0,0,{"$f":"_xlfn.IFS(AJ$1=M$2, M468, AJ$1=N$2, N468,AJ$1=O$2, O468,AJ$1=P$2, P468)","v":37}]
[null,null,"University Wide","La Jolla Campus","East Campus","Health Sciences East","Campus Point West","P731","Campus Point West","Visitor",null,null,null,611,611,null,null,null,110,108,4,0,2,1,3,200,246,266,null,null,null,null,null,0,266,{"$f":"_xlfn.IFS(AJ$1=M$2, M469, AJ$1=N$2, N469,AJ$1=O$2, O469,AJ$1=P$2, P469)","v":611}]
[null,null,"University Wide","La Jolla Campus","East Campus","Health Sciences East","Campus Point West","P733","Campus Point West","Electric Vehicle",null,null,null,6,6,null,null,null,0,0,1,0,0,0,1,0,2,1,null,null,null,null,null,0,2,{"$f":"_xlfn.IFS(AJ$1=M$2, M470, AJ$1=N$2, N470,AJ$1=O$2, O470,AJ$1=P$2, P470)","v":6}]
[null,null,"University Wide","La Jolla Campus","East Campus","Health Sciences East","Campus Point West","P734","Campus Point West","A","24/7 Enforced",null,null,7,7,null,null,null,2,1,3,2,4,4,3,3,5,6,null,null,null,null,null,1,6,{"$f":"_xlfn.IFS(AJ$1=M$2, M471, AJ$1=N$2, N471,AJ$1=O$2, O471,AJ$1=P$2, P471)","v":7}]
[null,null,"University Wide","La Jolla Campus","East Campus","Health Sciences East","Campus Point West","P734","Campus Point West","Visitor","Patient/Visitor Reserved",null,null,1,1,null,null,null,0,0,0,0,0,0,1,0,0,0,null,null,null,null,null,0,1,{"$f":"_xlfn.IFS(AJ$1=M$2, M472, AJ$1=N$2, N472,AJ$1=O$2, O472,AJ$1=P$2, P472)","v":1}]
[null,null,"University Wide","La Jolla Campus","East Campus","Health Sciences East","Athena","P741","Athena","A",null,null,null,187,{"$f":"187+93","v":280},null,null,null,92,36,27,27,60,51,62,73,81,80,null,null,null,null,null,27,92,{"$f":"_xlfn.IFS(AJ$1=M$2, M473, AJ$1=N$2, N473,AJ$1=O$2, O473,AJ$1=P$2, P473)","v":187}]
[null,null,"University Wide","La Jolla Campus","East Campus","Health Sciences East","Athena","P741","Athena","Electric Vehicle",null,null,null,16,16,null,null,null,16,16,15,13,9,8,9,11,13,15,null,null,null,null,null,8,16,{"$f":"_xlfn.IFS(AJ$1=M$2, M474, AJ$1=N$2, N474,AJ$1=O$2, O474,AJ$1=P$2, P474)","v":16}]
[null,null,"University Wide","La Jolla Campus","West Campus","Roosevelt College","Pangea","P372","Pangea","UC Vehicle",null,null,null,3,3,null,null,null,2,2,1,3,1,2,2,3,3,3,null,null,null,null,null,1,3,{"$f":"_xlfn.IFS(AJ$1=M$2, M475, AJ$1=N$2, N475,AJ$1=O$2, O475,AJ$1=P$2, P475)","v":3}]
[null,null,"University Wide","La Jolla Campus","West Campus","Roosevelt College","Pangea","P373","Pangea","Motorcycle Section",null,null,null,30,30,null,null,null,1,1,1,1,1,1,1,1,1,1,null,null,null,null,null,1,1,{"$f":"_xlfn.IFS(AJ$1=M$2, M476, AJ$1=N$2, N476,AJ$1=O$2, O476,AJ$1=P$2, P476)","v":30}]
[null,null,"University Wide","La Jolla Campus","West Campus","Roosevelt College","Pangea","P375","Pangea","Accessible",null,null,null,17,17,null,null,null,7,9,9,9,6,6,5,8,8,8,null,null,null,null,null,5,9,{"$f":"_xlfn.IFS(AJ$1=M$2, M477, AJ$1=N$2, N477,AJ$1=O$2, O477,AJ$1=P$2, P477)","v":17}]
[null,null,"University Wide","La Jolla Campus","West Campus","Roosevelt College","Pangea","P375","Pangea","Reserved",null,null,null,3,3,null,null,null,0,0,0,0,0,0,0,0,0,0,null,null,null,null,null,0,0,{"$f":"_xlfn.IFS(AJ$1=M$2, M478, AJ$1=N$2, N478,AJ$1=O$2, O478,AJ$1=P$2, P478)","v":3}]
[null,null,"University Wide","La Jolla Campus","West Campus","Roosevelt College","Pangea","P376","Pangea","Reserved","Enterprise",null,null,4,4,null,null,null,0,0,0,0,0,0,0,0,0,0,null,null,null,null,null,0,0,{"$f":"_xlfn.IFS(AJ$1=M$2, M479, AJ$1=N$2, N479,AJ$1=O$2, O479,AJ$1=P$2, P479)","v":4}]
[null,null,"University Wide","La Jolla Campus","East Campus","Health Sciences East","Athena","P741","Athena","Visitor","Patient/Visitor Reserved","30 minutes",null,9,9,null,null,null,9,8,8,7,7,6,8,8,8,7,null,null,null,null,null,6,9,{"$f":"_xlfn.IFS(AJ$1=M$2, M480, AJ$1=N$2, N480,AJ$1=O$2, O480,AJ$1=P$2, P480)","v":9}]
[null,null,"University Wide","La Jolla Campus","East Campus","Health Sciences East","Athena","P741","Athena","Visitor",null,null,null,218,{"$f":"218+41","v":259},null,null,null,0,0,0,0,0,0,0,0,0,0,null,null,null,null,null,0,0,{"$f":"_xlfn.IFS(AJ$1=M$2, M481, AJ$1=N$2, N481,AJ$1=O$2, O481,AJ$1=P$2, P481)","v":218}]
[null,null,"University Wide","La Jolla Campus","East Campus","Health Sciences East","Athena","P742","Athena","Visitor","Infusion",null,null,30,30,null,null,null,22,19,19,18,17,15,19,21,21,20,null,null,null,null,null,15,22,{"$f":"_xlfn.IFS(AJ$1=M$2, M482, AJ$1=N$2, N482,AJ$1=O$2, O482,AJ$1=P$2, P482)","v":30}]
[null,null,"University Wide","La Jolla Campus","East Campus","Health Sciences East","Athena","P742","Athena","Visitor","Radiation",null,null,10,10,null,null,null,7,6,6,4,4,5,6,6,5,7,null,null,null,null,null,4,7,{"$f":"_xlfn.IFS(AJ$1=M$2, M483, AJ$1=N$2, N483,AJ$1=O$2, O483,AJ$1=P$2, P483)","v":10}]
[null,null,"University Wide","La Jolla Campus","East Campus","Health Sciences East","Athena","P743","Athena","B",null,null,null,655,{"$f":"655-124","v":531},null,null,null,228,200,191,185,178,163,185,207,210,182,null,null,null,null,null,163,228,{"$f":"_xlfn.IFS(AJ$1=M$2, M484, AJ$1=N$2, N484,AJ$1=O$2, O484,AJ$1=P$2, P484)","v":655}]
[null,null,"University Wide","La Jolla Campus","East Campus","Health Sciences East","Athena","P745","Athena","Electric Vehicle",null,"12-Hour",null,27,27,null,null,null,5,4,4,4,3,2,4,5,5,3,null,null,null,null,null,2,5,{"$f":"_xlfn.IFS(AJ$1=M$2, M485, AJ$1=N$2, N485,AJ$1=O$2, O485,AJ$1=P$2, P485)","v":27}]
[null,null,"University Wide","La Jolla Campus","East Campus","Health Sciences East","Surface Lot","P751","P751","Electric Vehicle",null,null,null,0,0,null,null,null,0,0,0,0,0,0,0,0,0,0,null,null,null,null,null,0,0,{"$f":"_xlfn.IFS(AJ$1=M$2, M486, AJ$1=N$2, N486,AJ$1=O$2, O486,AJ$1=P$2, P486)","v":0}]
[null,null,"University Wide","La Jolla Campus","West Campus","North Torrey Pines Living and Learning","Scholars","P211","Scholars","Accessible",null,null,null,60,60,null,null,null,11,25,22,20,17,4,6,11,11,21,null,null,null,null,null,4,25,{"$f":"_xlfn.IFS(AJ$1=M$2, M487, AJ$1=N$2, N487,AJ$1=O$2, O487,AJ$1=P$2, P487)","v":60}]
[null,null,"University Wide","La Jolla Campus","West Campus","North Torrey Pines Living and Learning","Scholars","P211","Scholars","Motorcycle Section",null,null,null,30,30,null,null,null,1,3,4,3,4,5,3,6,5,7,null,null,null,null,null,1,7,{"$f":"_xlfn.IFS(AJ$1=M$2, M488, AJ$1=N$2, N488,AJ$1=O$2, O488,AJ$1=P$2, P488)","v":30}]
[null,null,"University Wide","La Jolla Campus","West Campus","North Torrey Pines Living and Learning","Scholars","P211","Scholars","Reserved",null,null,null,26,26,null,null,null,0,0,0,0,0,0,0,0,0,0,null,null,null,null,null,0,0,{"$f":"_xlfn.IFS(AJ$1=M$2, M489, AJ$1=N$2, N489,AJ$1=O$2, O489,AJ$1=P$2, P489)","v":26}]
[null,null,"University Wide","La Jolla Campus","West Campus","North Torrey Pines Living and Learning","Scholars","P212","Scholars","Service Yard",null,null,null,4,4,null,null,null,2,1,2,0,1,0,0,1,1,1,null,null,null,null,null,0,2,{"$f":"_xlfn.IFS(AJ$1=M$2, M490, AJ$1=N$2, N490,AJ$1=O$2, O490,AJ$1=P$2, P490)","v":4}]
[null,null,"University Wide","La Jolla Campus","West Campus","North Torrey Pines Living and Learning","Scholars","P213","Scholars","Accessible","Electric Vehicle","4-Hours",null,5,5,null,null,null,3,4,2,3,2,3,1,1,1,2,null,null,null,null,null,1,4,{"$f":"_xlfn.IFS(AJ$1=M$2, M491, AJ$1=N$2, N491,AJ$1=O$2, O491,AJ$1=P$2, P491)","v":5}]
[null,null,"University Wide","La Jolla Campus","West Campus","North Torrey Pines Living and Learning","Scholars","P213","Scholars","Reserved","Food Pickup",15,null,3,3,null,null,null,0,0,0,0,0,0,0,0,0,0,null,null,null,null,null,0,0,{"$f":"_xlfn.IFS(AJ$1=M$2, M492, AJ$1=N$2, N492,AJ$1=O$2, O492,AJ$1=P$2, P492)","v":3}]
[null,null,"University Wide","La Jolla Campus","East Campus","Health Sciences East","Surface Lot","P751","P751","Visitor",null,"30 minutes",null,3,3,null,null,null,0,0,0,0,0,0,0,0,0,0,null,null,null,null,null,0,0,{"$f":"_xlfn.IFS(AJ$1=M$2, M493, AJ$1=N$2, N493,AJ$1=O$2, O493,AJ$1=P$2, P493)","v":3}]
[null,null,"University Wide","La Jolla Campus","East Campus","Health Sciences East","Surface Lot","P759","P759","A","Physician A",null,null,87,87,null,null,null,15,0,2,0,0,0,1,8,25,27,null,null,null,null,null,0,27,{"$f":"_xlfn.IFS(AJ$1=M$2, M494, AJ$1=N$2, N494,AJ$1=O$2, O494,AJ$1=P$2, P494)","v":87}]
[null,null,"University Wide","La Jolla Campus","East Campus","Health Sciences East","Surface Lot","P760","P760","A","24/7 Enforced",null,null,22,22,null,null,null,3,3,1,2,2,4,5,4,7,6,null,null,null,null,null,1,7,{"$f":"_xlfn.IFS(AJ$1=M$2, M495, AJ$1=N$2, N495,AJ$1=O$2, O495,AJ$1=P$2, P495)","v":22}]
[null,null,"University Wide","La Jolla Campus","East Campus","Health Sciences East","Surface Lot","P760","P760","A",null,null,null,52,52,null,null,null,8,3,3,4,0,5,3,8,15,15,null,null,null,null,null,0,15,{"$f":"_xlfn.IFS(AJ$1=M$2, M496, AJ$1=N$2, N496,AJ$1=O$2, O496,AJ$1=P$2, P496)","v":52}]
[null,null,"University Wide","La Jolla Campus","East Campus","Health Sciences East","Surface Lot","P760","P760","B",null,null,null,111,111,null,null,null,10,4,0,0,0,0,0,9,22,23,null,null,null,null,null,0,23,{"$f":"_xlfn.IFS(AJ$1=M$2, M497, AJ$1=N$2, N497,AJ$1=O$2, O497,AJ$1=P$2, P497)","v":111}]
[null,null,"University Wide","La Jolla Campus","East Campus","Health Sciences East","Surface Lot","P760","P760","Visitor",null,null,null,50,50,null,null,null,26,18,12,10,11,9,7,21,46,47,null,null,null,null,null,7,47,{"$f":"_xlfn.IFS(AJ$1=M$2, M498, AJ$1=N$2, N498,AJ$1=O$2, O498,AJ$1=P$2, P498)","v":50}]
[null,null,"University Wide","La Jolla Campus","East Campus","Science Research Park","Surface Lot","P782","P782","SS ($3.50)",null,null,null,216,216,null,null,null,156,141,110,85,79,74,69,122,155,166,null,null,null,null,null,69,166,{"$f":"_xlfn.IFS(AJ$1=M$2, M499, AJ$1=N$2, N499,AJ$1=O$2, O499,AJ$1=P$2, P499)","v":216}]
[null,null,"University Wide","La Jolla Campus","East Campus","Health Sciences East","Surface Lot","P784","P784","B",null,null,null,81,81,null,null,null,6,6,3,0,0,0,4,8,8,8,null,null,null,null,null,0,8,{"$f":"_xlfn.IFS(AJ$1=M$2, M500, AJ$1=N$2, N500,AJ$1=O$2, O500,AJ$1=P$2, P500)","v":81}]
[null,null,"University Wide","La Jolla Campus","West Campus","Health Sciences West","South","P651","South","Accessible",null,null,null,24,24,null,null,null,4,6,4,0,0,0,0,2,8,8,null,null,null,null,null,0,8,{"$f":"_xlfn.IFS(AJ$1=M$2, M501, AJ$1=N$2, N501,AJ$1=O$2, O501,AJ$1=P$2, P501)","v":24}]
[null,null,"University Wide","La Jolla Campus","West Campus","Health Sciences West","South","P651","South","Motorcycle Section",null,null,null,10,10,null,null,null,7,4,4,4,2,4,4,5,5,5,null,null,null,null,null,2,7,{"$f":"_xlfn.IFS(AJ$1=M$2, M502, AJ$1=N$2, N502,AJ$1=O$2, O502,AJ$1=P$2, P502)","v":10}]
[null,null,"University Wide","La Jolla Campus","West Campus","Health Sciences West","South","P651","South","Service Yard",null,null,null,2,2,null,null,null,2,2,2,2,2,2,2,1,1,1,null,null,null,null,null,1,2,{"$f":"_xlfn.IFS(AJ$1=M$2, M503, AJ$1=N$2, N503,AJ$1=O$2, O503,AJ$1=P$2, P503)","v":2}]
[null,null,"University Wide","La Jolla Campus","West Campus","Health Sciences West","South","P651","South","UC Vehicle","UC Cart",null,null,10,10,null,null,null,5,5,4,4,4,4,5,5,5,4,null,null,null,null,null,4,5,{"$f":"_xlfn.IFS(AJ$1=M$2, M504, AJ$1=N$2, N504,AJ$1=O$2, O504,AJ$1=P$2, P504)","v":10}]
[null,null,"University Wide","La Jolla Campus","West Campus","Health Sciences West","South","P651","South","UC Vehicle",null,null,null,4,4,null,null,null,3,2,2,2,2,3,3,3,3,3,null,null,null,null,null,2,3,{"$f":"_xlfn.IFS(AJ$1=M$2, M505, AJ$1=N$2, N505,AJ$1=O$2, O505,AJ$1=P$2, P505)","v":4}]
[null,null,"University Wide","La Jolla Campus","West Campus","Health Sciences West","South","P653","South","Reserved",null,null,null,5,5,null,null,null,0,0,0,0,0,0,0,0,0,0,null,null,null,null,null,0,0,{"$f":"_xlfn.IFS(AJ$1=M$2, M506, AJ$1=N$2, N506,AJ$1=O$2, O506,AJ$1=P$2, P506)","v":5}]
[null,null,"University Wide","La Jolla Campus","East Campus","Health Sciences East","Surface Lot","P785","P785","B",null,null,null,384,384,null,null,null,20,11,6,2,0,0,2,36,96,100,null,null,null,null,null,0,100,{"$f":"_xlfn.IFS(AJ$1=M$2, M507, AJ$1=N$2, N507,AJ$1=O$2, O507,AJ$1=P$2, P507)","v":384}]
[null,null,"University Wide","La Jolla Campus","East Campus","Science Research Park","Nuevo West/Vela","P791","Nuevo West/Vela","B",null,null,null,454,454,null,null,null,111,72,12,3,2,1,2,2,2,1,null,null,null,null,null,1,111,{"$f":"_xlfn.IFS(AJ$1=M$2, M508, AJ$1=N$2, N508,AJ$1=O$2, O508,AJ$1=P$2, P508)","v":454}]
[null,null,"University Wide","La Jolla Campus","East Campus","Science Research Park","Nuevo West/Vela","P791","Nuevo West/Vela","Carpool","2 Person",null,null,15,15,null,null,null,15,14,12,3,1,0,1,1,1,2,null,null,null,null,null,0,15,{"$f":"_xlfn.IFS(AJ$1=M$2, M509, AJ$1=N$2, N509,AJ$1=O$2, O509,AJ$1=P$2, P509)","v":15}]
[null,null,"University Wide","La Jolla Campus","East Campus","Science Research Park","Nuevo West/Vela","P791","Nuevo West/Vela","Electric Vehicle",null,null,null,34,34,null,null,null,13,6,6,6,4,5,5,6,6,7,null,null,null,null,null,4,13,{"$f":"_xlfn.IFS(AJ$1=M$2, M510, AJ$1=N$2, N510,AJ$1=O$2, O510,AJ$1=P$2, P510)","v":34}]
[null,null,"University Wide","Medical Center Hillcrest","Medical Center Hillcrest","Medical Center Hillcrest","Surface Lot","P953","P953","B",null,null,null,7,7,null,null,null,0,0,0,0,0,0,0,0,2,2,null,null,null,null,null,0,2,{"$f":"_xlfn.IFS(AJ$1=M$2, M511, AJ$1=N$2, N511,AJ$1=O$2, O511,AJ$1=P$2, P511)","v":7}]
[null,null,"University Wide","Medical Center Hillcrest","Medical Center Hillcrest","Medical Center Hillcrest","Surface Lot","P955","P955","A",null,null,null,7,7,null,null,null,2,0,0,0,0,1,2,2,2,2,null,null,null,null,null,0,2,{"$f":"_xlfn.IFS(AJ$1=M$2, M512, AJ$1=N$2, N512,AJ$1=O$2, O512,AJ$1=P$2, P512)","v":7}]
[null,null,"University Wide","Medical Center Hillcrest","Medical Center Hillcrest","Medical Center Hillcrest","Surface Lot","P956","P956","A",null,null,null,2,2,null,null,null,0,0,0,0,0,0,0,0,0,0,null,null,null,null,null,0,0,{"$f":"_xlfn.IFS(AJ$1=M$2, M513, AJ$1=N$2, N513,AJ$1=O$2, O513,AJ$1=P$2, P513)","v":2}]
[null,null,"University Wide","La Jolla Campus","West Campus","TDLLN","TDLLN",null,"TDLLN","Accessible",null,null,null,22,22,null,null,null,10,4,8,15,6,13,13,3,4,3,null,null,null,null,null,3,15,{"$f":"_xlfn.IFS(AJ$1=M$2, M514, AJ$1=N$2, N514,AJ$1=O$2, O514,AJ$1=P$2, P514)","v":22}]
[null,null,"University Wide","La Jolla Campus","West Campus","TDLLN","TDLLN",null,"TDLLN","Motorcycle Section",null,null,null,1,1,null,null,null,1,1,1,1,1,1,1,1,1,1,null,null,null,null,null,1,1,{"$f":"_xlfn.IFS(AJ$1=M$2, M515, AJ$1=N$2, N515,AJ$1=O$2, O515,AJ$1=P$2, P515)","v":1}]
[null,null,"University Wide","La Jolla Campus","West Campus","TDLLN","TDLLN",null,{"$f":"IF(G516=\"Surface Lot\", H516, G516)","v":"TDLLN"},"Reserved",null,null,null,0,0,null,null,null,0,0,0,0,0,0,0,0,0,0,null,null,null,null,null,{"$f":"MIN($Q516:$AG516)","v":0},{"$f":"MAX($Q516:$AG516)","v":0},{"$f":"_xlfn.IFS(AJ$1=M$2, M516, AJ$1=N$2, N516,AJ$1=O$2, O516,AJ$1=P$2, P516)","v":0}]
[null,null,"University Wide","La Jolla Campus","West Campus","TDLLN","TDLLN",null,"TDLLN","Service Yard",null,null,null,5,5,null,null,null,4,2,2,5,0,5,5,5,5,5,null,null,null,null,null,0,5,{"$f":"_xlfn.IFS(AJ$1=M$2, M517, AJ$1=N$2, N517,AJ$1=O$2, O517,AJ$1=P$2, P517)","v":5}]
[null,null,"University Wide","La Jolla Campus","West Campus","TDLLN","TDLLN",null,"TDLLN","UC Cart",null,null,null,15,15,null,null,null,11,9,12,11,0,11,11,11,11,11,null,null,null,null,null,0,12,{"$f":"_xlfn.IFS(AJ$1=M$2, M518, AJ$1=N$2, N518,AJ$1=O$2, O518,AJ$1=P$2, P518)","v":15}]
[null,null,"University Wide","La Jolla Campus","West Campus","TDLLN","TDLLN",null,"TDLLN","UC Vehicle",null,null,null,0,0,null,null,null,0,0,0,0,0,0,0,0,0,0,null,null,null,null,null,0,0,{"$f":"_xlfn.IFS(AJ$1=M$2, M519, AJ$1=N$2, N519,AJ$1=O$2, O519,AJ$1=P$2, P519)","v":0}]
[null,null,"University Wide","Medical Center Hillcrest","Medical Center Hillcrest","Medical Center Hillcrest","Surface Lot","P963","P963","D ($5.00)",null,null,null,0,0,null,null,null,0,0,0,0,0,0,0,0,0,0,null,null,null,null,null,0,0,{"$f":"_xlfn.IFS(AJ$1=M$2, M520, AJ$1=N$2, N520,AJ$1=O$2, O520,AJ$1=P$2, P520)","v":0}]
[null,null,"University Wide","Medical Center Hillcrest","Medical Center Hillcrest","Medical Center Hillcrest","Surface Lot","P964","P964","Visitor","Patient/Visitor",null,null,41,41,null,null,null,30,17,6,6,20,7,10,11,31,35,null,null,null,null,null,6,35,{"$f":"_xlfn.IFS(AJ$1=M$2, M521, AJ$1=N$2, N521,AJ$1=O$2, O521,AJ$1=P$2, P521)","v":41}]
[null,null,"University Wide","Medical Center Hillcrest","Medical Center Hillcrest","Medical Center Hillcrest","Surface Lot","P964","P964","Visitor","Patient/Visitor Reserved",30,null,1,1,null,null,null,1,1,1,1,1,1,1,1,0,0,null,null,null,null,null,0,1,{"$f":"_xlfn.IFS(AJ$1=M$2, M522, AJ$1=N$2, N522,AJ$1=O$2, O522,AJ$1=P$2, P522)","v":1}]
[null,null,"University Wide","La Jolla Campus","West Campus","TDLLN","TDLLN",null,"TDLLN","A",null,null,null,222,222,null,null,null,283,253,266,221,272,205,198,225,204,206,null,null,null,null,null,198,283,{"$f":"_xlfn.IFS(AJ$1=M$2, M523, AJ$1=N$2, N523,AJ$1=O$2, O523,AJ$1=P$2, P523)","v":222}]
[null,null,"University Wide","La Jolla Campus","West Campus","TDLLN","TDLLN",null,"TDLLN","B",null,null,null,344,{"$f":"344-12","v":332},null,null,null,123,74,125,38,83,40,40,56,80,72,null,null,null,null,null,38,125,{"$f":"_xlfn.IFS(AJ$1=M$2, M524, AJ$1=N$2, N524,AJ$1=O$2, O524,AJ$1=P$2, P524)","v":344}]
[null,null,"University Wide","La Jolla Campus","West Campus","Torrey Pines Center","Torrey Pines Center North","P391","Torrey Pines Center North","Accessible",null,null,null,5,5,null,null,null,2,2,3,3,2,2,2,2,2,3,null,null,null,null,null,2,3,{"$f":"_xlfn.IFS(AJ$1=M$2, M525, AJ$1=N$2, N525,AJ$1=O$2, O525,AJ$1=P$2, P525)","v":5}]
[null,null,"University Wide","La Jolla Campus","West Campus","Torrey Pines Center","Torrey Pines Center North","P391","Torrey Pines Center North","Loading",null,null,null,1,1,null,null,null,1,1,1,1,1,1,1,1,1,1,null,null,null,null,null,1,1,{"$f":"_xlfn.IFS(AJ$1=M$2, M526, AJ$1=N$2, N526,AJ$1=O$2, O526,AJ$1=P$2, P526)","v":1}]
[null,null,"University Wide","La Jolla Campus","West Campus","Torrey Pines Center","Torrey Pines Center North","P391","Torrey Pines Center North","Reserved",null,null,null,10,10,null,null,null,0,0,0,0,0,0,0,0,0,0,null,null,null,null,null,0,0,{"$f":"_xlfn.IFS(AJ$1=M$2, M527, AJ$1=N$2, N527,AJ$1=O$2, O527,AJ$1=P$2, P527)","v":10}]
[null,null,"University Wide","La Jolla Campus","West Campus","Torrey Pines Center","Torrey Pines Center North","P391","Torrey Pines Center North","Service Yard",null,null,null,1,1,null,null,null,1,1,1,1,1,1,1,0,1,1,null,null,null,null,null,0,1,{"$f":"_xlfn.IFS(AJ$1=M$2, M528, AJ$1=N$2, N528,AJ$1=O$2, O528,AJ$1=P$2, P528)","v":1}]
[null,null,"University Wide","La Jolla Campus","West Campus","Torrey Pines Center","Torrey Pines Center North","P392","Torrey Pines Center North","Motorcycle Section",null,null,null,2,2,null,null,null,2,1,1,1,1,2,2,2,2,2,null,null,null,null,null,1,2,{"$f":"_xlfn.IFS(AJ$1=M$2, M529, AJ$1=N$2, N529,AJ$1=O$2, O529,AJ$1=P$2, P529)","v":2}]
[null,null,"University Wide","La Jolla Campus","West Campus","Torrey Pines Center","Torrey Pines Center North","P395","Torrey Pines Center North","Allocated","Vanpool",null,null,1,1,null,null,null,0,0,0,0,0,0,0,0,0,0,null,null,null,null,null,0,0,{"$f":"_xlfn.IFS(AJ$1=M$2, M530, AJ$1=N$2, N530,AJ$1=O$2, O530,AJ$1=P$2, P530)","v":1}]
[null,null,"University Wide","La Jolla Campus","West Campus","TDLLN","TDLLN",null,"TDLLN","Carpool",null,null,null,81,81,null,null,null,48,40,55,43,35,50,50,39,42,41,null,null,null,null,null,35,55,{"$f":"_xlfn.IFS(AJ$1=M$2, M531, AJ$1=N$2, N531,AJ$1=O$2, O531,AJ$1=P$2, P531)","v":81}]
[null,null,"University Wide","La Jolla Campus","West Campus","TDLLN","TDLLN",null,"TDLLN","Electric Vehicle","ADA",null,null,5,5,null,null,null,4,5,2,2,5,3,3,5,5,5,null,null,null,null,null,2,5,{"$f":"_xlfn.IFS(AJ$1=M$2, M532, AJ$1=N$2, N532,AJ$1=O$2, O532,AJ$1=P$2, P532)","v":5}]
[null,null,"University Wide","La Jolla Campus","West Campus","TDLLN","TDLLN",null,"TDLLN","Electric Vehicle",null,null,null,92,92,null,null,null,91,67,84,81,0,83,83,85,62,60,null,null,null,null,null,0,91,{"$f":"_xlfn.IFS(AJ$1=M$2, M533, AJ$1=N$2, N533,AJ$1=O$2, O533,AJ$1=P$2, P533)","v":92}]
[null,null,"University Wide","La Jolla Campus","West Campus","TDLLN","TDLLN",null,"TDLLN","SR",null,null,null,50,{"$f":"50+12","v":62},null,null,null,13,2,5,5,0,10,10,5,4,4,null,null,null,null,null,0,13,{"$f":"_xlfn.IFS(AJ$1=M$2, M534, AJ$1=N$2, N534,AJ$1=O$2, O534,AJ$1=P$2, P534)","v":50}]
[null,null,"University Wide","La Jolla Campus","West Campus","TDLLN","TDLLN",null,"TDLLN","Visitor",null,null,null,212,212,null,null,null,165,98,126,156,0,149,149,140,170,171,null,null,null,null,null,0,171,{"$f":"_xlfn.IFS(AJ$1=M$2, M535, AJ$1=N$2, N535,AJ$1=O$2, O535,AJ$1=P$2, P535)","v":212}]
[null,null,"University Wide","La Jolla Campus","West Campus","Torrey Pines Center","Torrey Pines Center South","P381","Torrey Pines Center South","Accessible",null,null,null,16,16,null,null,null,8,6,6,5,5,5,6,7,8,10,null,null,null,null,null,5,10,{"$f":"_xlfn.IFS(AJ$1=M$2, M536, AJ$1=N$2, N536,AJ$1=O$2, O536,AJ$1=P$2, P536)","v":16}]
[null,null,"University Wide","La Jolla Campus","West Campus","Torrey Pines Center","Torrey Pines Center South","P381","Torrey Pines Center South","Allocated","EH&S",null,null,3,3,null,null,null,2,2,2,2,2,2,2,2,2,2,null,null,null,null,null,2,2,{"$f":"_xlfn.IFS(AJ$1=M$2, M537, AJ$1=N$2, N537,AJ$1=O$2, O537,AJ$1=P$2, P537)","v":3}]
[null,null,"University Wide","La Jolla Campus","West Campus","Torrey Pines Center","Torrey Pines Center South","P381","Torrey Pines Center South","Allocated","Office",null,null,2,2,null,null,null,1,1,1,1,0,0,0,0,0,0,null,null,null,null,null,0,1,{"$f":"_xlfn.IFS(AJ$1=M$2, M538, AJ$1=N$2, N538,AJ$1=O$2, O538,AJ$1=P$2, P538)","v":2}]
[null,null,"University Wide","La Jolla Campus","West Campus","Torrey Pines Center","Torrey Pines Center South","P381","Torrey Pines Center South","Allocated","Property Manager",null,null,3,3,null,null,null,1,1,1,1,0,0,0,0,0,0,null,null,null,null,null,0,1,{"$f":"_xlfn.IFS(AJ$1=M$2, M539, AJ$1=N$2, N539,AJ$1=O$2, O539,AJ$1=P$2, P539)","v":3}]
[null,null,"University Wide","La Jolla Campus","West Campus","Torrey Pines Center","Torrey Pines Center South","P381","Torrey Pines Center South","Loading",null,null,null,3,3,null,null,null,1,0,0,1,0,0,0,0,0,0,null,null,null,null,null,0,1,{"$f":"_xlfn.IFS(AJ$1=M$2, M540, AJ$1=N$2, N540,AJ$1=O$2, O540,AJ$1=P$2, P540)","v":3}]
[null,null,"University Wide","La Jolla Campus","West Campus","Torrey Pines Center","Torrey Pines Center South","P381","Torrey Pines Center South","Motorcycle Section",null,null,null,7,7,null,null,null,1,3,2,2,2,3,2,3,3,3,null,null,null,null,null,1,3,{"$f":"_xlfn.IFS(AJ$1=M$2, M541, AJ$1=N$2, N541,AJ$1=O$2, O541,AJ$1=P$2, P541)","v":7}]
[null,null,"University Wide","La Jolla Campus","West Campus","Torrey Pines Center","Torrey Pines Center South","P381","Torrey Pines Center South","Reserved","Emergency Response Veh",null,null,2,2,null,null,null,0,0,0,0,0,0,0,0,0,0,null,null,null,null,null,0,0,{"$f":"_xlfn.IFS(AJ$1=M$2, M542, AJ$1=N$2, N542,AJ$1=O$2, O542,AJ$1=P$2, P542)","v":2}]
[null,null,"University Wide","La Jolla Campus","West Campus","Torrey Pines Center","Torrey Pines Center South","P381","Torrey Pines Center South","UC Vehicle","UC Electric Cart",null,null,11,11,null,null,null,4,0,7,7,6,5,6,5,7,6,null,null,null,null,null,0,7,{"$f":"_xlfn.IFS(AJ$1=M$2, M543, AJ$1=N$2, N543,AJ$1=O$2, O543,AJ$1=P$2, P543)","v":11}]
[null,null,"University Wide","La Jolla Campus","West Campus","Torrey Pines Center","Torrey Pines Center South","P381","Torrey Pines Center South","UC Vehicle",null,null,null,15,15,null,null,null,0,0,2,1,0,0,1,0,0,0,null,null,null,null,null,0,2,{"$f":"_xlfn.IFS(AJ$1=M$2, M544, AJ$1=N$2, N544,AJ$1=O$2, O544,AJ$1=P$2, P544)","v":15}]
[null,null,"University Wide","La Jolla Campus","West Campus","Torrey Pines Center","Torrey Pines Center South","P382","Torrey Pines Center South","Reserved",null,null,null,2,2,null,null,null,0,0,0,0,0,0,0,0,0,0,null,null,null,null,null,0,0,{"$f":"_xlfn.IFS(AJ$1=M$2, M545, AJ$1=N$2, N545,AJ$1=O$2, O545,AJ$1=P$2, P545)","v":2}]
[null,null,"University Wide","La Jolla Campus","West Campus","Torrey Pines Center","Torrey Pines Center South","P383","Torrey Pines Center South","Loading","Bars","20 minutes",null,4,4,null,null,null,0,1,1,1,0,0,0,0,0,0,null,null,null,null,null,0,1,{"$f":"_xlfn.IFS(AJ$1=M$2, M546, AJ$1=N$2, N546,AJ$1=O$2, O546,AJ$1=P$2, P546)","v":4}]
[null,null,null,null,null,null,null,null,null,null,null,null,null,null,null,null,null,null,null,null,null,null,null,null,null,null,null,null,null,null,null,null,null,0,0]
[null,null,null,null,null,null,null,null,null,null,null,null,null,null,null,null,null,null,null,null,null,null,null,null,null,null,null,null,null,null,null,null,null,0,0]
[null,null,null,null,null,null,null,null,null,null,null,null,null,null,null,null,null,null,null,null,null,null,null,null,null,null,null,null,null,null,null,null,null,0,0]
[null,null,null,null,null,null,null,null,null,null,null,null,null,null,null,null,null,null,null,null,null,null,null,null,null,null,null,null,null,null,null,null,null,0,0]
[null,null,null,null,null,null,null,null,null,null,null,null,null,null,null,null,null,null,null,null,null,null,null,null,null,null,null,null,null,null,null,null,null,0,0]
[null,null,null,null,null,null,null,null,null,null,null,null,null,null,null,null,null,null,null,null,null,null,null,null,null,null,null,null,null,null,null,null,null,0,0]
[null,null,null,null,null,null,null,null,null,null,null,null,null,null,null,null,null,null,null,null,null,null,null,null,null,null,null,null,null,null,null,null,null,0,0]
[null,null,null,null,null,null,null,null,null,null,null,null,null,null,null,null,null,null,null,null,null,null,null,null,null,null,null,null,null,null,null,null,null,0,0]
[null,null,null,null,null,null,null,null,null,null,null,null,null,null,null,null,null,null,null,null,null,null,null,null,null,null,null,null,null,null,null,null,null,0,0]
[null,null,null,null,null,null,null,null,null,null,null,null,null,null,null,null,null,null,null,null,null,null,null,null,null,null,null,null,null,null,null,null,null,0,0]
[null,null,null,null,null,null,null,null,null,null,null,null,null,null,null,null,null,null,null,null,null,null,null,null,null,null,null,null,null,null,null,null,null,0,0]
[null,null,null,null,null,null,null,null,null,null,null,null,null,null,null,null,null,null,null,null,null,null,null,null,null,null,null,null,null,null,null,null,null,0,0]
[null,null,null,null,null,null,null,null,null,null,null,null,null,null,null,null,null,null,null,null,null,null,null,null,null,null,null,null,null,null,null,null,null,0,0]
[null,null,null,null,null,null,null,null,null,null,null,null,null,null,null,null,null,null,null,null,null,null,null,null,null,null,null,null,null,null,null,null,null,0,0]
[null,null,null,null,null,null,null,null,null,null,null,null,null,null,null,null,null,null,null,null,null,null,null,null,null,null,null,null,null,null,null,null,null,0,0]
[null,null,null,null,null,null,null,null,null,null,null,null,null,null,null,null,null,null,null,null,null,null,null,null,null,null,null,null,null,null,null,null,null,0,0]
[null,null,null,null,null,null,null,null,null,null,null,null,null,null,null,null,null,null,null,null,null,null,null,null,null,null,null,null,null,null,null,null,null,0,0]
[null,null,null,null,null,null,null,null,null,null,null,null,null,null,null,null,null,null,null,null,null,null,null,null,null,null,null,null,null,null,null,null,null,0,0]
[null,null,null,null,null,null,null,null,null,null,null,null,null,null,null,null,null,null,null,null,null,null,null,null,null,null,null,null,null,null,null,null,null,0,0]
[null,null,null,null,null,null,null,null,null,null,null,null,null,null,null,null,null,null,null,null,null,null,null,null,null,null,null,null,null,null,null,null,null,0,0]
[null,null,null,null,null,null,null,null,null,null,null,null,null,null,null,null,null,null,null,null,null,null,null,null,null,null,null,null,null,null,null,null,null,0,0]
[null,null,null,null,null,null,null,null,null,null,null,null,null,null,null,null,null,null,null,null,null,null,null,null,null,null,null,null,null,null,null,null,null,0,0]
[null,null,null,null,null,null,null,null,null,null,null,null,null,null,null,null,null,null,null,null,null,null,null,null,null,null,null,null,null,null,null,null,null,0,0]
[null,null,null,null,null,null,null,null,null,null,null,null,null,null,null,null,null,null,null,null,null,null,null,null,null,null,null,null,null,null,null,null,null,0,0]
[null,null,null,null,null,null,null,null,null,null,null,null,null,null,null,null,null,null,null,null,null,null,null,null,null,null,null,null,null,null,null,null,null,0,0]
[null,null,null,null,null,null,null,null,null,null,null,null,null,null,null,null,null,null,null,null,null,null,null,null,null,null,null,null,null,null,null,null,null,0,0]
[null,null,null,null,null,null,null,null,null,null,null,null,null,null,null,null,null,null,null,null,null,null,null,null,null,null,null,null,null,null,null,null,null,0,0]
[null,null,null,null,null,null,null,null,null,null,null,null,null,null,null,null,null,null,null,null,null,null,null,null,null,null,null,null,null,null,null,null,null,0,0]
[null,null,null,null,null,null,null,null,null,null,null,null,null,null,null,null,null,null,null,null,null,null,null,null,null,null,null,null,null,null,null,null,null,0,0]
[null,null,null,null,null,null,null,null,null,null,null,null,null,null,null,null,null,null,null,null,null,null,null,null,null,null,null,null,null,null,null,null,null,0,0]
[null,null,null,null,null,null,null,null,null,null,null,null,null,null,null,null,null,null,null,null,null,null,null,null,null,null,null,null,null,null,null,null,null,0,0]
[null,null,null,null,null,null,null,null,null,null,null,null,null,null,null,null,null,null,null,null,null,null,null,null,null,null,null,null,null,null,null,null,null,0,0]
[null,null,null,null,null,null,null,null,null,null,null,null,null,null,null,null,null,null,null,null,null,null,null,null,null,null,null,null,null,null,null,null,null,0,0]
[null,null,null,null,null,null,null,null,null,null,null,null,null,null,null,null,null,null,null,null,null,null,null,null,null,null,null,null,null,null,null,null,null,{"$f":"MIN($Q580:$AG580)","v":0},{"$f":"MAX($Q580:$AG580)","v":0}]
[null,null,null,null,null,null,null,null,null,null,null,null,null,null,null,null,null,null,null,null,null,null,null,null,null,null,null,null,null,null,null,null,null,0,0]
[null,null,null,null,null,null,null,null,null,null,null,null,null,null,null,null,null,null,null,null,null,null,null,null,null,null,null,null,null,null,null,null,null,0,0]
[null,null,null,null,null,null,null,null,null,null,null,null,null,null,null,null,null,null,null,null,null,null,null,null,null,null,null,null,null,null,null,null,null,0,0]
[null,null,null,null,null,null,null,null,null,null,null,null,null,null,null,null,null,null,null,null,null,null,null,null,null,null,null,null,null,null,null,null,null,0,0]
[null,null,null,null,null,null,null,null,null,null,null,null,null,null,null,null,null,null,null,null,null,null,null,null,null,null,null,null,null,null,null,null,null,0,0]
[null,null,null,null,null,null,null,null,null,null,null,null,null,null,null,null,null,null,null,null,null,null,null,null,null,null,null,null,null,null,null,null,null,0,0]
[null,null,null,null,null,null,null,null,null,null,null,null,null,null,null,null,null,null,null,null,null,null,null,null,null,null,null,null,null,null,null,null,null,0,0]
[null,null,null,null,null,null,null,null,null,null,null,null,null,null,null,null,null,null,null,null,null,null,null,null,null,null,null,null,null,null,null,null,null,0,0]
[null,null,null,null,null,null,null,null,null,null,null,null,null,null,null,null,null,null,null,null,null,null,null,null,null,null,null,null,null,null,null,null,null,0,0]
[null,null,null,null,null,null,null,null,null,null,null,null,null,null,null,null,null,null,null,null,null,null,null,null,null,null,null,null,null,null,null,null,null,0,0]
[null,null,null,null,null,null,null,null,null,null,null,null,null,null,null,null,null,null,null,null,null,null,null,null,null,null,null,null,null,null,null,null,null,0,0]
[null,null,null,null,null,null,null,null,null,null,null,null,null,null,null,null,null,null,null,null,null,null,null,null,null,null,null,null,null,null,null,null,null,0,0]
[null,null,null,null,null,null,null,null,null,null,null,null,null,null,null,null,null,null,null,null,null,null,null,null,null,null,null,null,null,null,null,null,null,0,0]
[null,null,null,null,null,null,null,null,null,null,null,null,null,null,null,null,null,null,null,null,null,null,null,null,null,null,null,null,null,null,null,null,null,0,0]
[null,null,null,null,null,null,null,null,null,null,null,null,null,null,null,null,null,null,null,null,null,null,null,null,null,null,null,null,null,null,null,null,null,0,0]
[null,null,null,null,null,null,null,null,null,null,null,null,null,null,null,null,null,null,null,null,null,null,null,null,null,null,null,null,null,null,null,null,null,0,0]
[null,null,null,null,null,null,null,null,null,null,null,null,null,null,null,null,null,null,null,null,null,null,null,null,null,null,null,null,null,null,null,null,null,0,0]
[null,null,null,null,null,null,null,null,null,null,null,null,null,null,null,null,null,null,null,null,null,null,null,null,null,null,null,null,null,null,null,null,null,0,0]
[null,null,null,null,null,null,null,null,null,null,null,null,null,null,null,null,null,null,null,null,null,null,null,null,null,null,null,null,null,null,null,null,null,0,0]
[null,null,null,null,null,null,null,null,null,null,null,null,null,null,null,null,null,null,null,null,null,null,null,null,null,null,null,null,null,null,null,null,null,0,0]
[null,null,null,null,null,null,null,null,null,null,null,null,null,null,null,null,null,null,null,null,null,null,null,null,null,null,null,null,null,null,null,null,null,0,0]
[null,null,null,null,null,null,null,null,null,null,null,null,null,null,null,null,null,null,null,null,null,null,null,null,null,null,null,null,null,null,null,null,null,0,0]
[null,null,null,null,null,null,null,null,null,null,null,null,null,null,null,null,null,null,null,null,null,null,null,null,null,null,null,null,null,null,null,null,null,0,0]
[null,null,null,null,null,null,null,null,null,null,null,null,null,null,null,null,null,null,null,null,null,null,null,null,null,null,null,null,null,null,null,null,null,0,0]
[null,null,null,null,null,null,null,null,null,null,null,null,null,null,null,null,null,null,null,null,null,null,null,null,null,null,null,null,null,null,null,null,null,0,0]
[null,null,null,null,null,null,null,null,null,null,null,null,null,null,null,null,null,null,null,null,null,null,null,null,null,null,null,null,null,null,null,null,null,0,0]
[null,null,null,null,null,null,null,null,null,null,null,null,null,null,null,null,null,null,null,null,null,null,null,null,null,null,null,null,null,null,null,null,null,0,0]
[null,null,null,null,null,null,null,null,null,null,null,null,null,null,null,null,null,null,null,null,null,null,null,null,null,null,null,null,null,null,null,null,null,0,0]
[null,null,null,null,null,null,null,null,null,null,null,null,null,null,null,null,null,null,null,null,null,null,null,null,null,null,null,null,null,null,null,null,null,0,0]
[null,null,null,null,null,null,null,null,null,null,null,null,null,null,null,null,null,null,null,null,null,null,null,null,null,null,null,null,null,null,null,null,null,0,0]
[null,null,null,null,null,null,null,null,null,null,null,null,null,null,null,null,null,null,null,null,null,null,null,null,null,null,null,null,null,null,null,null,null,0,0]
[null,null,null,null,null,null,null,null,null,null,null,null,null,null,null,null,null,null,null,null,null,null,null,null,null,null,null,null,null,null,null,null,null,0,0]
[null,null,null,null,null,null,null,null,null,null,null,null,null,null,null,null,null,null,null,null,null,null,null,null,null,null,null,null,null,null,null,null,null,0,0]
[null,null,null,null,null,null,null,null,null,null,null,null,null,null,null,null,null,null,null,null,null,null,null,null,null,null,null,null,null,null,null,null,null,0,0]
[null,null,null,null,null,null,null,null,null,null,null,null,null,null,null,null,null,null,null,null,null,null,null,null,null,null,null,null,null,null,null,null,null,0,0]
[null,null,null,null,null,null,null,null,null,null,null,null,null,null,null,null,null,null,null,null,null,null,null,null,null,null,null,null,null,null,null,null,null,0,0]
[null,null,null,null,null,null,null,null,null,null,null,null,null,null,null,null,null,null,null,null,null,null,null,null,null,null,null,null,null,null,null,null,null,0,0]
[null,null,null,null,null,null,null,null,null,null,null,null,null,null,null,null,null,null,null,null,null,null,null,null,null,null,null,null,null,null,null,null,null,0,0]
[null,null,null,null,null,null,null,null,null,null,null,null,null,null,null,null,null,null,null,null,null,null,null,null,null,null,null,null,null,null,null,null,null,0,0]
[null,null,null,null,null,null,null,null,null,null,null,null,null,null,null,null,null,null,null,null,null,null,null,null,null,null,null,null,null,null,null,null,null,0,0]
[null,null,null,null,null,null,null,null,null,null,null,null,null,null,null,null,null,null,null,null,null,null,null,null,null,null,null,null,null,null,null,null,null,0,0]
[null,null,null,null,null,null,null,null,null,null,null,null,null,null,null,null,null,null,null,null,null,null,null,null,null,null,null,null,null,null,null,null,null,0,0]
[null,null,null,null,null,null,null,null,null,null,null,null,null,null,null,null,null,null,null,null,null,null,null,null,null,null,null,null,null,null,null,null,null,0,0]
[null,null,null,null,null,null,null,null,null,null,null,null,null,null,null,null,null,null,null,null,null,null,null,null,null,null,null,null,null,null,null,null,null,0,0]
[null,null,null,null,null,null,null,null,null,null,null,null,null,null,null,null,null,null,null,null,null,null,null,null,null,null,null,null,null,null,null,null,null,0,0]
[null,null,null,null,null,null,null,null,null,null,null,null,null,null,null,null,null,null,null,null,null,null,null,null,null,null,null,null,null,null,null,null,null,0,0]
[null,null,null,null,null,null,null,null,null,null,null,null,null,null,null,null,null,null,null,null,null,null,null,null,null,null,null,null,null,null,null,null,null,0,0]
[null,null,null,null,null,null,null,null,null,null,null,null,null,null,null,null,null,null,null,null,null,null,null,null,null,null,null,null,null,null,null,null,null,0,0]
[null,null,null,null,null,null,null,null,null,null,null,null,null,null,null,null,null,null,null,null,null,null,null,null,null,null,null,null,null,null,null,null,null,0,0]
[null,null,null,null,null,null,null,null,null,null,null,null,null,null,null,null,null,null,null,null,null,null,null,null,null,null,null,null,null,null,null,null,null,0,0]
[null,null,null,null,null,null,null,null,null,null,null,null,null,null,null,null,null,null,null,null,null,null,null,null,null,null,null,null,null,null,null,null,null,0,0]
[null,null,null,null,null,null,null,null,null,null,null,null,null,null,null,null,null,null,null,null,null,null,null,null,null,null,null,null,null,null,null,null,null,0,0]
[null,null,null,null,null,null,null,null,null,null,null,null,null,null,null,null,null,null,null,null,null,null,null,null,null,null,null,null,null,null,null,null,null,0,0]
[null,null,null,null,null,null,null,null,null,null,null,null,null,null,null,null,null,null,null,null,null,null,null,null,null,null,null,null,null,null,null,null,null,0,0]
[null,null,null,null,null,null,null,null,null,null,null,null,null,null,null,null,null,null,null,null,null,null,null,null,null,null,null,null,null,null,null,null,null,0,0]
[null,null,null,null,null,null,null,null,null,null,null,null,null,null,null,null,null,null,null,null,null,null,null,null,null,null,null,null,null,null,null,null,null,0,0]
[null,null,null,null,null,null,null,null,null,null,null,null,null,null,null,null,null,null,null,null,null,null,null,null,null,null,null,null,null,null,null,null,null,0,0]
[null,null,null,null,null,null,null,null,null,null,null,null,null,null,null,null,null,null,null,null,null,null,null,null,null,null,null,null,null,null,null,null,null,0,0]
[null,null,null,null,null,null,null,null,null,null,null,null,null,null,null,null,null,null,null,null,null,null,null,null,null,null,null,null,null,null,null,null,null,0,0]
[null,null,null,null,null,null,null,null,null,null,null,null,null,null,null,null,null,null,null,null,null,null,null,null,null,null,null,null,null,null,null,null,null,0,0]
[null,null,null,null,null,null,null,null,null,null,null,null,null,null,null,null,null,null,null,null,null,null,null,null,null,null,null,null,null,null,null,null,null,0,0]
[null,null,null,null,null,null,null,null,null,null,null,null,null,null,null,null,null,null,null,null,null,null,null,null,null,null,null,null,null,null,null,null,null,0,0]
[null,null,null,null,null,null,null,null,null,null,null,null,null,null,null,null,null,null,null,null,null,null,null,null,null,null,null,null,null,null,null,null,null,0,0]
[null,null,null,null,null,null,null,null,null,null,null,null,null,null,null,null,null,null,null,null,null,null,null,null,null,null,null,null,null,null,null,null,null,{"$f":"MIN($Q644:$AG644)","v":0},{"$f":"MAX($Q644:$AG644)","v":0}]
[null,null,null,null,null,null,null,null,null,null,null,null,null,null,null,null,null,null,null,null,null,null,null,null,null,null,null,null,null,null,null,null,null,0,0]
[null,null,null,null,null,null,null,null,null,null,null,null,null,null,null,null,null,null,null,null,null,null,null,null,null,null,null,null,null,null,null,null,null,0,0]
[null,null,null,null,null,null,null,null,null,null,null,null,null,null,null,null,null,null,null,null,null,null,null,null,null,null,null,null,null,null,null,null,null,0,0]
[null,null,null,null,null,null,null,null,null,null,null,null,null,null,null,null,null,null,null,null,null,null,null,null,null,null,null,null,null,null,null,null,null,0,0]
[null,null,null,null,null,null,null,null,null,null,null,null,null,null,null,null,null,null,null,null,null,null,null,null,null,null,null,null,null,null,null,null,null,0,0]
[null,null,null,null,null,null,null,null,null,null,null,null,null,null,null,null,null,null,null,null,null,null,null,null,null,null,null,null,null,null,null,null,null,0,0]
[null,null,null,null,null,null,null,null,null,null,null,null,null,null,null,null,null,null,null,null,null,null,null,null,null,null,null,null,null,null,null,null,null,0,0]
[null,null,null,null,null,null,null,null,null,null,null,null,null,null,null,null,null,null,null,null,null,null,null,null,null,null,null,null,null,null,null,null,null,0,0]
[null,null,null,null,null,null,null,null,null,null,null,null,null,null,null,null,null,null,null,null,null,null,null,null,null,null,null,null,null,null,null,null,null,0,0]
[null,null,null,null,null,null,null,null,null,null,null,null,null,null,null,null,null,null,null,null,null,null,null,null,null,null,null,null,null,null,null,null,null,0,0]
[null,null,null,null,null,null,null,null,null,null,null,null,null,null,null,null,null,null,null,null,null,null,null,null,null,null,null,null,null,null,null,null,null,0,0]
[null,null,null,null,null,null,null,null,null,null,null,null,null,null,null,null,null,null,null,null,null,null,null,null,null,null,null,null,null,null,null,null,null,0,0]
[null,null,null,null,null,null,null,null,null,null,null,null,null,null,null,null,null,null,null,null,null,null,null,null,null,null,null,null,null,null,null,null,null,0,0]
[null,null,null,null,null,null,null,null,null,null,null,null,null,null,null,null,null,null,null,null,null,null,null,null,null,null,null,null,null,null,null,null,null,0,0]
[null,null,null,null,null,null,null,null,null,null,null,null,null,null,null,null,null,null,null,null,null,null,null,null,null,null,null,null,null,null,null,null,null,0,0]
[null,null,null,null,null,null,null,null,null,null,null,null,null,null,null,null,null,null,null,null,null,null,null,null,null,null,null,null,null,null,null,null,null,0,0]
[null,null,null,null,null,null,null,null,null,null,null,null,null,null,null,null,null,null,null,null,null,null,null,null,null,null,null,null,null,null,null,null,null,0,0]
[null,null,null,null,null,null,null,null,null,null,null,null,null,null,null,null,null,null,null,null,null,null,null,null,null,null,null,null,null,null,null,null,null,0,0]
[null,null,null,null,null,null,null,null,null,null,null,null,null,null,null,null,null,null,null,null,null,null,null,null,null,null,null,null,null,null,null,null,null,0,0]
[null,null,null,null,null,null,null,null,null,null,null,null,null,null,null,null,null,null,null,null,null,null,null,null,null,null,null,null,null,null,null,null,null,0,0]
[null,null,null,null,null,null,null,null,null,null,null,null,null,null,null,null,null,null,null,null,null,null,null,null,null,null,null,null,null,null,null,null,null,0,0]
[null,null,null,null,null,null,null,null,null,null,null,null,null,null,null,null,null,null,null,null,null,null,null,null,null,null,null,null,null,null,null,null,null,0,0]
[null,null,null,null,null,null,null,null,null,null,null,null,null,null,null,null,null,null,null,null,null,null,null,null,null,null,null,null,null,null,null,null,null,0,0]
[null,null,null,null,null,null,null,null,null,null,null,null,null,null,null,null,null,null,null,null,null,null,null,null,null,null,null,null,null,null,null,null,null,0,0]
[null,null,null,null,null,null,null,null,null,null,null,null,null,null,null,null,null,null,null,null,null,null,null,null,null,null,null,null,null,null,null,null,null,0,0]
[null,null,null,null,null,null,null,null,null,null,null,null,null,null,null,null,null,null,null,null,null,null,null,null,null,null,null,null,null,null,null,null,null,0,0]
[null,null,null,null,null,null,null,null,null,null,null,null,null,null,null,null,null,null,null,null,null,null,null,null,null,null,null,null,null,null,null,null,null,0,0]
[null,null,null,null,null,null,null,null,null,null,null,null,null,null,null,null,null,null,null,null,null,null,null,null,null,null,null,null,null,null,null,null,null,0,0]
[null,null,null,null,null,null,null,null,null,null,null,null,null,null,null,null,null,null,null,null,null,null,null,null,null,null,null,null,null,null,null,null,null,0,0]
[null,null,null,null,null,null,null,null,null,null,null,null,null,null,null,null,null,null,null,null,null,null,null,null,null,null,null,null,null,null,null,null,null,0,0]
[null,null,null,null,null,null,null,null,null,null,null,null,null,null,null,null,null,null,null,null,null,null,null,null,null,null,null,null,null,null,null,null,null,0,0]
[null,null,null,null,null,null,null,null,null,null,null,null,null,null,null,null,null,null,null,null,null,null,null,null,null,null,null,null,null,null,null,null,null,0,0]
[null,null,null,null,null,null,null,null,null,null,null,null,null,null,null,null,null,null,null,null,null,null,null,null,null,null,null,null,null,null,null,null,null,0,0]
[null,null,null,null,null,null,null,null,null,null,null,null,null,null,null,null,null,null,null,null,null,null,null,null,null,null,null,null,null,null,null,null,null,0,0]
[null,null,null,null,null,null,null,null,null,null,null,null,null,null,null,null,null,null,null,null,null,null,null,null,null,null,null,null,null,null,null,null,null,0,0]
[null,null,null,null,null,null,null,null,null,null,null,null,null,null,null,null,null,null,null,null,null,null,null,null,null,null,null,null,null,null,null,null,null,0,0]
[null,null,null,null,null,null,null,null,null,null,null,null,null,null,null,null,null,null,null,null,null,null,null,null,null,null,null,null,null,null,null,null,null,0,0]
[null,null,null,null,null,null,null,null,null,null,null,null,null,null,null,null,null,null,null,null,null,null,null,null,null,null,null,null,null,null,null,null,null,0,0]
[null,null,null,null,null,null,null,null,null,null,null,null,null,null,null,null,null,null,null,null,null,null,null,null,null,null,null,null,null,null,null,null,null,0,0]
[null,null,null,null,null,null,null,null,null,null,null,null,null,null,null,null,null,null,null,null,null,null,null,null,null,null,null,null,null,null,null,null,null,0,0]
[null,null,null,null,null,null,null,null,null,null,null,null,null,null,null,null,null,null,null,null,null,null,null,null,null,null,null,null,null,null,null,null,null,0,0]
[null,null,null,null,null,null,null,null,null,null,null,null,null,null,null,null,null,null,null,null,null,null,null,null,null,null,null,null,null,null,null,null,null,0,0]
[null,null,null,null,null,null,null,null,null,null,null,null,null,null,null,null,null,null,null,null,null,null,null,null,null,null,null,null,null,null,null,null,null,0,0]
[null,null,null,null,null,null,null,null,null,null,null,null,null,null,null,null,null,null,null,null,null,null,null,null,null,null,null,null,null,null,null,null,null,0,0]
[null,null,null,null,null,null,null,null,null,null,null,null,null,null,null,null,null,null,null,null,null,null,null,null,null,null,null,null,null,null,null,null,null,0,0]
[null,null,null,null,null,null,null,null,null,null,null,null,null,null,null,null,null,null,null,null,null,null,null,null,null,null,null,null,null,null,null,null,null,0,0]
[null,null,null,null,null,null,null,null,null,null,null,null,null,null,null,null,null,null,null,null,null,null,null,null,null,null,null,null,null,null,null,null,null,0,0]
[null,null,null,null,null,null,null,null,null,null,null,null,null,null,null,null,null,null,null,null,null,null,null,null,null,null,null,null,null,null,null,null,null,0,0]
[null,null,null,null,null,null,null,null,null,null,null,null,null,null,null,null,null,null,null,null,null,null,null,null,null,null,null,null,null,null,null,null,null,0,0]
[null,null,null,null,null,null,null,null,null,null,null,null,null,null,null,null,null,null,null,null,null,null,null,null,null,null,null,null,null,null,null,null,null,0,0]
[null,null,null,null,null,null,null,null,null,null,null,null,null,null,null,null,null,null,null,null,null,null,null,null,null,null,null,null,null,null,null,null,null,0,0]
[null,null,null,null,null,null,null,null,null,null,null,null,null,null,null,null,null,null,null,null,null,null,null,null,null,null,null,null,null,null,null,null,null,0,0]
[null,null,null,null,null,null,null,null,null,null,null,null,null,null,null,null,null,null,null,null,null,null,null,null,null,null,null,null,null,null,null,null,null,0,0]
[null,null,null,null,null,null,null,null,null,null,null,null,null,null,null,null,null,null,null,null,null,null,null,null,null,null,null,null,null,null,null,null,null,0,0]
[null,null,null,null,null,null,null,null,null,null,null,null,null,null,null,null,null,null,null,null,null,null,null,null,null,null,null,null,null,null,null,null,null,0,0]
[null,null,null,null,null,null,null,null,null,null,null,null,null,null,null,null,null,null,null,null,null,null,null,null,null,null,null,null,null,null,null,null,null,0,0]

{"sheet":"By Area","index":4,"n_rows":8,"n_cols":17,"rows_kept":8,"cut":false,"hidden":false,"merged":[[1,3,2,6]]}
["Area","Space Type","Stall\nInventory","Min # of Open Stalls","Min % of Open Stalls","Max # of Open Stalls","Max % of Open Stalls","Open Stalls\n@ 8am","Open Stalls\n@ 9am","Open Stalls\n@ 10am","Open Stalls\n@ 11am","Open Stalls\n@ 12pm","Open Stalls\n@ 1pm","Open Stalls\n@ 2pm","Open Stalls\n@ 3pm","Open Stalls\n@ 4pm","Open Stalls\n@ 5pm"]
["% Open Stalls",null,null,"(Min and Max values from varying hours)",null,null,null,{"$f":"H3/$C3","v":0.33217626072702727},{"$f":"I3/$C3","v":0.2606306045704368},0.23011281457911484,0.18787966444894416,0.18440844663002603,0.20046282904252241,0.22360428116864334,0.27986693665027479,0.33911869636486358,0.33530999903577285]
["# Open Stalls",null,{"$f":"SUBTOTAL(9, C5:C9999)","v":20742},null,null,null,null,{"$f":"SUBTOTAL(9, H5:H9999)","v":6890},{"$f":"SUBTOTAL(9, I5:I9999)","v":5406},4773,3897,3825,4158,4638,5805,7034,6955]
["Area","Space Type","Sum of Inventory","Sum of Min #","Sum of Min %","Sum of Max #","Sum of Max %","Sum of 8am","Sum of 9am","Sum of 10am","Sum of 11am","Sum of 12pm","Sum of 1pm","Sum of 2pm","Sum of 3pm","Sum of 4pm","Sum of 5pm"]
["East Campus",null,6462,609,9.4243268337975861E-2,1906,0.29495512225317239,1084,1168,876,609,685,863,1010,1513,1906,1246]
["Medical Center Hillcrest",null,2706,241,8.9061345158906138E-2,1030,0.38063562453806354,608,463,349,241,430,442,619,722,945,1030]
["Scripps Institution of Oceanography",null,810,312,0.38518518518518519,562,0.6938271604938272,562,312,369,340,342,382,401,447,405,463]
["West Campus",null,10764,2368,0.21999256781865478,4636,0.4306949089557785,4636,3463,3179,2707,2368,2471,2608,3123,3778,4216]

{"sheet":"By Neighborhood","index":5,"n_rows":24,"n_cols":17,"rows_kept":24,"cut":false,"hidden":false,"merged":[[1,3,2,6]]}
["Location","Space Type","Stall\nInventory","Min # of Open Stalls","Min % of Open Stalls","Max # of Open Stalls","Max % of Open Stalls","Open Stalls\n@ 8am","Open Stalls\n@ 9am","Open Stalls\n@ 10am","Open Stalls\n@ 11am","Open Stalls\n@ 12pm","Open Stalls\n@ 1pm","Open Stalls\n@ 2pm","Open Stalls\n@ 3pm","Open Stalls\n@ 4pm","Open Stalls\n@ 5pm"]
["% Open Stalls",null,null,"(Min and Max values from varying hours)",null,null,null,{"$f":"H3/$C3","v":0.33217626072702727},{"$f":"I3/$C3","v":0.2606306045704368},0.23011281457911484,0.18787966444894416,0.18440844663002603,0.20046282904252241,0.22360428116864334,0.27986693665027479,0.33911869636486358,0.33530999903577285]
["# Open Stalls",null,{"$f":"SUBTOTAL(9, C5:C9999)","v":20742},null,null,null,null,{"$f":"SUBTOTAL(9, H5:H9999)","v":6890},{"$f":"SUBTOTAL(9, I5:I9999)","v":5406},4773,3897,3825,4158,4638,5805,7034,6955]
["Neighborhood","Space Type","Sum of Inventory","Sum of Min #","Sum of Min %","Sum of Max #","Sum of Max %","Sum of 8am","Sum of 9am","Sum of 10am","Sum of 11am","Sum of 12pm","Sum of 1pm","Sum of 2pm","Sum of 3pm","Sum of 4pm","Sum of 5pm"]
["Campus Services",null,449,16,3.5634743875278395E-2,169,0.37639198218262804,35,19,16,18,37,40,63,101,142,169]
["East Recreation",null,378,0,0,270,0.7142857142857143,0,270,0,0,0,200,214,237,253,0]
["Health Sciences East",null,5263,492,9.3482804484134527E-2,1466,0.27854835645069354,779,648,721,492,582,567,701,1123,1466,1054]
["Health Sciences West",null,1919,32,1.6675351745700884E-2,442,0.23032829598749349,442,155,90,32,47,55,75,237,393,310]
["Marshall College",null,214,39,0.1822429906542056,115,0.53738317757009346,115,66,52,48,44,39,50,62,73,98]
["Medical Center Hillcrest",null,2706,241,8.9061345158906138E-2,1030,0.38063562453806354,608,463,349,241,430,442,619,722,945,1030]
["Muir College",null,223,19,8.520179372197309E-2,57,0.2556053811659193,41,53,38,28,28,19,34,32,53,57]
["North Campus",null,279,21,7.5268817204301078E-2,63,0.22580645161290322,63,45,39,25,21,22,45,44,42,28]
["North Torrey Pines Living and Learning",null,1182,48,4.060913705583756E-2,298,0.25211505922165822,246,298,228,167,79,48,62,120,213,225]
["Pepper Canyon",null,173,28,0.16184971098265896,43,0.24855491329479767,28,37,30,28,30,31,28,36,35,43]
["Preuss School",null,70,0,0,5,7.1428571428571425E-2,0,3,0,0,1,3,2,4,5,0]
["Revelle College ",null,58,4,6.8965517241379309E-2,16,0.27586206896551724,10,9,9,4,5,8,9,8,15,16]
["Roosevelt College",null,2505,726,0.28982035928143712,1677,0.66946107784431141,1677,1197,967,863,751,764,726,826,924,1184]
["Science Research Park",null,751,93,0.12383488681757657,305,0.40612516644474034,305,247,155,117,102,93,93,149,182,192]
["Scripps Institution of Oceanography",null,810,312,0.38518518518518519,562,0.6938271604938272,562,312,369,340,342,382,401,447,405,463]
["Torrey Pines Center",null,1444,622,0.43074792243767313,1024,0.70914127423822715,760,683,692,629,647,622,665,777,887,1024]
["University Center",null,886,121,0.13656884875846501,311,0.3510158013544018,311,201,188,148,149,121,137,155,236,298]
["Warren College",null,177,15,8.4745762711864403E-2,27,0.15254237288135594,25,27,20,21,15,20,21,15,20,23]
["TDLLN",null,1049,402,0.38322211630123926,753,0.71782650142993332,753,555,686,578,402,570,563,575,588,579]
[8980,null,206,112,0.5436893203883495,162,0.78640776699029125,130,118,124,118,113,112,130,135,157,162]

{"sheet":"By Structure","index":6,"n_rows":18,"n_cols":17,"rows_kept":18,"cut":false,"hidden":false,"merged":[[1,3,2,6]]}
["Location","Space Type","Stall\nInventory","Min # of Open Stalls","Min % of Open Stalls","Max # of Open Stalls","Max % of Open Stalls","Open Stalls\n@ 8am","Open Stalls\n@ 9am","Open Stalls\n@ 10am","Open Stalls\n@ 11am","Open Stalls\n@ 12pm","Open Stalls\n@ 1pm","Open Stalls\n@ 2pm","Open Stalls\n@ 3pm","Open Stalls\n@ 4pm","Open Stalls\n@ 5pm"]
["% Open Stalls",null,null,"(Min and Max values from varying hours)",null,null,null,{"$f":"H3/$C3","v":0.36508290579225222},{"$f":"I3/$C3","v":0.27280838724068707},0.24128187969365752,0.20031229087664509,0.18648226633950479,0.18990259498847498,0.21339876570748756,0.26775224923786156,0.32827719533050786,0.36106773737824371]
["# Open Stalls",null,{"$f":"SUBTOTAL(9, C5:C9999)","v":13449},null,null,null,null,{"$f":"SUBTOTAL(9, H5:H9999)","v":4910},3669,3245,2694,2508,2554,2870,3601,4415,4856]
["Structure","Space Type","Sum of Inventory","Sum of Min #","Sum of Min %","Sum of Max #","Sum of Max %","Sum of 8am","Sum of 9am","Sum of 10am","Sum of 11am","Sum of 12pm","Sum of 1pm","Sum of 2pm","Sum of 3pm","Sum of 4pm","Sum of 5pm"]
[8980,null,206,112,0.5436893203883495,162,0.78640776699029125,130,118,124,118,113,112,130,135,157,162]
["Arbor",null,552,112,0.20289855072463769,294,0.53260869565217395,277,167,166,112,160,167,180,206,243,294]
["Athena",null,1489,269,0.180658159838818,421,0.28274009402283412,421,312,288,274,305,269,324,364,380,349]
["Campus Point East",null,699,7,1.0014306151645207E-2,163,0.23319027181688126,92,79,64,60,50,7,43,88,156,163]
["Campus Point West",null,765,2,2.6143790849673201E-3,291,0.38039215686274508,117,110,10,2,6,5,9,213,269,291]
["First Ave",null,1852,103,5.5615550755939526E-2,673,0.36339092872570194,281,254,157,103,230,246,408,484,647,673]
["Gilman",null,847,98,0.11570247933884298,292,0.3447461629279811,292,181,171,131,131,98,114,135,212,271]
["Hopkins",null,1427,435,0.30483531885073584,1108,0.77645409950946043,1108,746,642,522,435,456,455,486,528,726]
["Nuevo West/Vela",null,535,19,3.5514018691588788E-2,149,0.27850467289719627,149,106,45,32,23,19,24,27,27,26]
["Pangea",null,1049,264,0.25166825548141086,559,0.53288846520495714,559,442,320,334,311,303,264,335,391,452]
["Scholars",null,1182,48,4.060913705583756E-2,298,0.25211505922165822,246,298,228,167,79,48,62,120,213,225]
["South",null,1319,13,9.8559514783927212E-3,333,0.25246398786959817,333,139,72,13,18,28,52,172,303,310]
["TDLLN",null,1049,402,0.38322211630123926,753,0.71782650142993332,753,555,686,578,402,570,563,575,588,579]
["Torrey Pines Center South",null,478,152,0.31799163179916318,335,0.70083682008368198,152,162,272,248,245,226,242,261,301,335]

{"sheet":"By Surface Lot","index":7,"n_rows":104,"n_cols":17,"rows_kept":104,"cut":false,"hidden":false,"merged":[[1,3,2,6]]}
["Location","Space Type","Stall\nInventory","Min # of Open Stalls","Min % of Open Stalls","Max # of Open Stalls","Max % of Open Stalls","Open Stalls\n@ 8am","Open Stalls\n@ 9am","Open Stalls\n@ 10am","Open Stalls\n@ 11am","Open Stalls\n@ 12pm","Open Stalls\n@ 1pm","Open Stalls\n@ 2pm","Open Stalls\n@ 3pm","Open Stalls\n@ 4pm","Open Stalls\n@ 5pm"]
["% Open Stalls",null,null,"(Min and Max values from varying hours)",null,null,null,{"$f":"H3/$C3","v":0.27216494845360822},{"$f":"I3/$C3","v":0.23876288659793815},0.21003436426116839,0.16536082474226804,0.18103092783505154,0.2204810996563574,0.24302405498281787,0.30295532646048112,0.36,0.28852233676975947]
["# Open Stalls",null,{"$f":"SUBTOTAL(9, C5:C9999)","v":7275},null,null,null,null,{"$f":"SUBTOTAL(9, H5:H9999)","v":1980},{"$f":"SUBTOTAL(9, I5:I9999)","v":1737},{"$f":"SUBTOTAL(9, J5:J9999)","v":1528},{"$f":"SUBTOTAL(9, K5:K9999)","v":1203},{"$f":"SUBTOTAL(9, L5:L9999)","v":1317},{"$f":"SUBTOTAL(9, M5:M9999)","v":1604},1768,2204,2619,{"$f":"SUBTOTAL(9, Q5:Q9999)","v":2099}]
["Lot / Garage","Space Type","Sum of Inventory","Sum of Min #","Sum of Min %","Sum of Max #","Sum of Max %","Sum of 8am","Sum of 9am","Sum of 10am","Sum of 11am","Sum of 12pm","Sum of 1pm","Sum of 2pm","Sum of 3pm","Sum of 4pm","Sum of 5pm"]
["P001",null,18,6,0.33333333333333331,12,0.66666666666666663,10,10,6,8,8,6,7,9,11,12]
["P002",null,33,1,3.0303030303030304E-2,26,0.78787878787878785,26,21,23,10,1,19,17,11,24,19]
["P003",null,72,7,9.7222222222222224E-2,53,0.73611111111111116,53,40,13,7,8,21,22,24,34,40]
["P004",null,15,0,0,3,0.2,1,2,0,0,0,0,0,2,3,3]
["P005",null,5,1,0.2,4,0.8,3,2,1,2,3,1,1,3,4,4]
["P006",null,7,1,0.14285714285714285,5,0.7142857142857143,5,2,1,1,3,1,3,3,1,3]
["P007",null,40,2,0.05,25,0.625,17,13,2,4,25,5,4,13,19,16]
["P008",null,30,0,0,5,0.16666666666666666,5,0,0,1,2,2,5,3,2,5]
["P009",null,2,0,0,1,0.5,1,0,0,1,1,0,0,0,0,0]
["P010",null,21,1,4.7619047619047616E-2,18,0.8571428571428571,18,11,7,1,1,7,12,15,15,17]
["P011",null,24,7,0.29166666666666669,19,0.79166666666666663,19,8,11,7,7,8,9,9,14,15]
["P012",null,13,0,0,5,0.38461538461538464,4,3,0,0,0,2,2,5,0,5]
["P013",null,15,3,0.2,12,0.8,12,7,4,3,7,6,8,5,4,7]
["P014",null,113,29,0.25663716814159293,73,0.64601769911504425,69,62,29,64,58,49,55,61,64,73]
["P015",null,1,0,0,1,1,1,1,0,0,0,0,1,0,0,0]
["P016",null,61,4,6.5573770491803282E-2,49,0.80327868852459017,49,4,37,36,27,32,32,31,37,39]
["P017",null,265,104,0.39245283018867927,201,0.7584905660377359,201,104,164,120,163,149,149,179,153,188]
["P021",null,75,17,0.22666666666666666,75,1,68,22,71,75,28,74,74,74,20,17]
["P101",null,13,0,0,7,0.53846153846153844,2,0,0,0,0,0,1,0,6,7]
["P106",null,10,0,0,3,0.3,3,2,1,3,0,1,1,1,1,1]
["P110",null,5,0,0,5,1,3,5,5,0,5,4,4,4,5,5]
["P112",null,7,0,0,3,0.42857142857142855,2,2,1,0,0,1,3,3,2,2]
["P113",null,30,0,0,12,0.4,8,12,9,0,3,0,6,4,5,9]
["P116",null,13,0,0,2,0.15384615384615385,0,0,2,1,0,2,0,0,1,1]
["P201",null,25,1,0.04,7,0.28000000000000003,4,7,6,2,1,1,2,4,5,5]
["P202",null,10,0,0,6,0.6,5,4,2,6,5,0,5,4,4,3]
["P203",null,5,0,0,0,0,0,0,0,0,0,0,0,0,0,0]
["P204",null,2,0,0,2,1,0,1,1,0,0,1,1,0,2,2]
["P205",null,4,0,0,2,0.5,0,0,2,2,2,0,2,2,2,2]
["P206",null,54,10,0.18518518518518517,22,0.40740740740740738,13,22,11,11,10,11,11,11,14,13]
["P303",null,127,34,0.26771653543307089,99,0.77952755905511806,99,61,48,45,34,35,44,52,63,67]
["P304",null,83,1,1.2048192771084338E-2,28,0.33734939759036142,12,4,2,2,7,1,2,6,8,28]
["P306",null,14,2,0.14285714285714285,6,0.42857142857142855,5,5,4,6,4,4,4,3,2,2]
["P310",null,4,1,0.25,4,1,4,1,2,1,3,3,4,4,2,3]
["P351",null,32,0,0,7,0.21875,7,4,3,1,0,0,2,3,3,4]
["P352",null,4,2,0.5,2,0.5,2,2,2,2,2,2,2,2,2,2]
["P353",null,23,6,0.2608695652173913,9,0.39130434782608697,8,9,6,9,6,7,7,6,9,8]
["P354",null,15,1,6.6666666666666666E-2,5,0.33333333333333331,5,4,1,1,1,1,3,2,3,4]
["P357",null,163,3,1.8404907975460124E-2,33,0.20245398773006135,33,15,16,4,5,3,19,20,19,6]
["P358",null,1,0,0,0,0,0,0,0,0,0,0,0,0,0,0]
["P359",null,56,8,0.14285714285714285,15,0.26785714285714285,13,15,12,9,8,10,15,13,9,8]
["P384",null,179,6,3.3519553072625698E-2,85,0.47486033519553073,85,54,35,14,9,16,26,6,51,82]
["P385",null,228,59,0.25877192982456143,142,0.6228070175438597,83,71,59,65,70,60,67,107,113,142]
["P386 (Gliderport)",null,335,167,0.49850746268656715,264,0.78805970149253735,264,245,185,178,167,171,181,215,232,259]
["P401",null,99,7,7.0707070707070704E-2,27,0.27272727272727271,7,14,11,15,16,16,20,22,23,27]
["P402",null,28,1,3.5714285714285712E-2,11,0.39285714285714285,10,10,11,10,7,5,1,4,4,3]
["P405",null,23,9,0.39130434782608697,16,0.69565217391304346,13,14,11,12,9,12,13,12,13,16]
["P406",null,25,0,0,5,0.2,1,3,3,2,1,5,3,3,0,5]
["P407",null,4,0,0,3,0.75,3,3,3,2,2,3,2,0,3,3]
["P414",null,16,3,0.1875,7,0.4375,6,7,7,6,4,3,3,3,7,7]
["P415",null,9,0,0,1,0.1111111111111111,0,0,0,0,0,0,0,0,1,1]
["P416",null,68,0,0,15,0.22058823529411764,5,0,0,1,3,3,4,4,13,15]
["P418",null,7,0,0,4,0.5714285714285714,2,3,1,2,1,1,3,0,0,4]
["P501",null,12,3,0.25,8,0.66666666666666663,3,3,3,3,7,8,8,8,8,8]
["P502",null,10,0,0,1,0.1,0,0,0,0,0,1,1,0,1,0]
["P503",null,54,5,9.2592592592592587E-2,11,0.20370370370370369,10,7,8,5,5,6,7,8,8,11]
["P504",null,58,3,5.1724137931034482E-2,13,0.22413793103448276,9,13,4,8,5,7,5,3,6,3]
["P505",null,6,2,0.33333333333333331,2,0.33333333333333331,2,2,2,2,2,2,2,2,2,2]
["P506",null,21,1,4.7619047619047616E-2,10,0.47619047619047616,10,10,5,1,6,5,4,7,8,8]
["P507",null,250,15,0.06,88,0.35199999999999998,23,18,15,17,36,37,43,64,84,88]
["P508",null,35,0,0,0,0,0,0,0,0,0,0,0,0,0,0]
["P509",null,7,2,0.2857142857142857,5,0.7142857142857143,2,2,5,4,2,3,3,2,3,3]
["P510",null,199,1,5.0251256281407036E-3,81,0.40703517587939697,12,1,1,1,1,3,20,37,58,81]
["P601",null,11,0,0,4,0.36363636363636365,2,1,1,2,1,1,1,2,4,0]
["P602",null,230,0,0,45,0.19565217391304349,43,7,7,8,10,11,6,35,45,0]
["P603",null,128,0,0,25,0.1953125,9,2,0,1,6,3,2,7,25,0]
["P604",null,38,0,0,0,0,0,0,0,0,0,0,0,0,0,0]
["P605",null,16,0,0,3,0.1875,0,0,1,0,3,3,1,2,1,0]
["P606",null,10,0,0,4,0.4,1,1,1,1,1,2,3,4,1,0]
["P607",null,5,0,0,5,1,4,4,5,4,4,4,5,4,4,0]
["P608",null,11,0,0,4,0.36363636363636365,1,0,3,2,3,3,4,3,1,0]
["P610",null,151,0,0,49,0.32450331125827814,49,1,0,1,1,0,1,8,9,0]
["P701",null,378,0,0,270,0.7142857142857143,0,270,0,0,0,200,214,237,253,0]
["P702",null,189,0,0,83,0.43915343915343913,0,83,0,0,0,64,70,74,77,0]
["P703",null,362,0,0,34,9.3922651933701654E-2,34,0,0,0,23,14,22,25,27,0]
["P704",null,326,0,0,277,0.84969325153374231,0,0,277,0,83,80,89,132,170,0]
["P705",null,266,0,0,130,0.48872180451127817,0,0,0,130,57,72,78,84,101,0]
["P706",null,70,0,0,5,7.1428571428571425E-2,0,3,0,0,1,3,2,4,5,0]
["P707",null,209,0,0,40,0.19138755980861244,0,0,40,0,33,28,30,35,39,0]
["P751",null,7,0,0,0,0,0,0,0,0,0,0,0,0,0,0]
["P752",null,30,1,3.3333333333333333E-2,4,0.13333333333333333,4,3,3,1,3,2,3,1,3,3]
["P753",null,34,0,0,2,5.8823529411764705E-2,2,1,1,1,1,2,2,0,0,0]
["P757",null,0,0,{"$error":"#DIV/0!"},0,{"$error":"#DIV/0!"},0,0,0,0,0,0,0,0,0,0]
["P758",null,7,0,0,2,0.2857142857142857,2,2,0,2,2,0,2,1,0,0]
["P759",null,113,0,0,30,0.26548672566371684,16,0,3,1,1,0,2,9,28,30]
["P760",null,252,16,6.3492063492063489E-2,98,0.3888888888888889,52,33,19,18,16,22,18,46,98,98]
["P761",null,3,0,0,2,0.66666666666666663,2,2,1,1,0,0,0,2,2,2]
["P762",null,4,0,0,1,0.25,1,1,1,0,0,1,0,0,0,1]
["P782",null,216,69,0.31944444444444442,166,0.76851851851851849,156,141,110,85,79,74,69,122,155,166]
["P784",null,108,0,0,16,0.14814814814814814,13,9,6,0,2,1,7,9,16,13]
["P785",null,392,0,0,104,0.26530612244897961,23,13,8,2,0,0,2,40,100,104]
["P952",null,11,3,0.27272727272727271,6,0.54545454545454541,3,3,3,3,5,5,6,4,5,5]
["P953",null,17,0,0,2,0.11764705882352941,0,0,0,0,0,2,0,0,2,2]
["P954",null,40,0,0,5,0.125,0,5,5,5,1,1,1,2,2,3]
["P955",null,44,5,0.11363636363636363,11,0.25,10,7,5,5,8,7,8,11,8,11]
["P956",null,8,0,0,4,0.5,0,4,2,2,3,3,3,0,0,0]
["P957",null,77,0,0,3,3.896103896103896E-2,3,3,2,2,2,2,1,0,2,2]
["P963",null,0,0,{"$error":"#DIV/0!"},0,{"$error":"#DIV/0!"},0,0,0,0,0,0,0,0,0,0]
["P964",null,105,9,8.5714285714285715E-2,40,0.38095238095238093,34,20,9,9,21,9,12,15,36,40]
["Torrey Pines Center North",null,224,124,0.5535714285714286,206,0.9196428571428571,176,151,141,124,156,149,149,188,190,206]

{"sheet":"By Space Type","index":8,"n_rows":24,"n_cols":16,"rows_kept":24,"cut":false,"hidden":false,"merged":[[1,2,2,5]]}
["Space Type","Stall\nInventory","Min # of Open Stalls","Min % of Open Stalls","Max # of Open Stalls","Max % of Open Stalls","Open Stalls\n@ 8am","Open Stalls\n@ 9am","Open Stalls\n@ 10am","Open Stalls\n@ 11am","Open Stalls\n@ 12pm","Open Stalls\n@ 1pm","Open Stalls\n@ 2pm","Open Stalls\n@ 3pm","Open Stalls\n@ 4pm","Open Stalls\n@ 5pm"]
["% Open Stalls",null,"(Min and Max values from varying hours)",null,null,null,{"$f":"G3/$B3","v":0.33217626072702727},0.2606306045704368,0.23011281457911484,0.18787966444894416,0.18440844663002603,0.20046282904252241,0.22360428116864334,0.27986693665027479,0.33911869636486358,0.33530999903577285]
["# Open Stalls",{"$f":"SUBTOTAL(9, B5:B9999)","v":20742},null,null,null,null,{"$f":"SUBTOTAL(9, G5:G9999)","v":6890},{"$f":"SUBTOTAL(9, H5:H9999)","v":5406},4773,3897,3825,4158,4638,5805,7034,6955]
["Space Type","Sum of Inventory","Sum of Min #","Sum of Min %","Sum of Max #","Sum of Max %","Sum of 8am","Sum of 9am","Sum of 10am","Sum of 11am","Sum of 12pm","Sum of 1pm","Sum of 2pm","Sum of 3pm","Sum of 4pm","Sum of 5pm"]
["A",3136,699,0.22289540816326531,1615,0.51498724489795922,1615,1065,922,747,843,699,732,1013,1275,1323]
["Accessible",830,162,0.19518072289156627,361,0.43493975903614457,251,204,188,162,179,175,205,266,350,361]
["Allocated",126,11,8.7301587301587297E-2,32,0.25396825396825395,32,24,21,18,14,12,14,11,23,31]
["B",7025,1079,0.15359430604982208,2417,0.34405693950177935,2066,1542,1347,1079,1141,1154,1414,1683,2149,2417]
["Carpool",360,107,0.29722222222222222,268,0.74444444444444446,268,195,186,134,116,107,114,125,160,171]
["Electric Vehicle",434,92,0.2119815668202765,271,0.62442396313364057,271,201,180,163,92,158,178,192,212,214]
["Loading",164,45,0.27439024390243905,66,0.40243902439024393,63,66,54,64,46,47,49,45,47,48]
["Motorcycle Section",312,53,0.16987179487179488,81,0.25961538461538464,68,61,56,61,53,59,58,76,75,81]
["Reserved",1147,0,0,0,0,0,0,0,0,0,0,0,0,0,0]
["S",1422,169,0.11884669479606189,577,0.4057665260196906,391,553,267,228,169,485,509,552,577,284]
["Service Yard",114,39,0.34210526315789475,52,0.45614035087719296,50,45,46,39,47,46,52,42,52,49]
["SR",579,88,0.15198618307426598,154,0.26597582037996548,154,144,106,110,88,100,95,103,135,125]
["UC Vehicle",281,42,0.1494661921708185,59,0.20996441281138789,59,42,53,54,46,46,46,52,51,44]
["Visitor",2889,593,0.20526133610245759,1366,0.47282796815507094,1160,865,759,629,593,652,735,1071,1248,1366]
["UC Cart",16,0,0,12,0.75,11,9,12,11,0,11,11,11,12,12]
["SS ($3.50)",551,245,0.44464609800362975,425,0.77132486388384758,420,386,295,263,246,245,250,337,387,425]
["D ($5.00)",887,0,0,277,0.31228861330326946,7,0,277,130,147,157,172,222,277,0]
["Loading Zone",1,1,1,1,1,1,1,1,1,1,1,1,1,1,1]
["Commercial Loading",4,3,0.75,4,1,3,3,3,4,4,4,3,3,3,3]
["Construction Area",464,0,0,0,0,0,0,0,0,0,0,0,0,0,0]

{"sheet":"EV By Location","index":9,"n_rows":33,"n_cols":17,"rows_kept":33,"cut":false,"hidden":false,"merged":[[1,3,2,6]]}
["Space Type","Location","Stall\nInventory","Min # of Open Stalls","Min % of Open Stalls","Max # of Open Stalls","Max % of Open Stalls","Open Stalls\n@ 8am","Open Stalls\n@ 9am","Open Stalls\n@ 10am","Open Stalls\n@ 11am","Open Stalls\n@ 12pm","Open Stalls\n@ 1pm","Open Stalls\n@ 2pm","Open Stalls\n@ 3pm","Open Stalls\n@ 4pm","Open Stalls\n@ 5pm"]
["% Open Stalls",null,null,"(Min and Max values from varying hours)",null,null,null,{"$f":"H3/$C3","v":0.62442396313364057},0.46313364055299538,0.41474654377880182,0.37557603686635943,0.2119815668202765,0.36405529953917048,0.41013824884792627,0.44239631336405533,0.48847926267281105,0.49308755760368661]
["# Open Stalls",null,{"$f":"SUBTOTAL(9, C5:C9999)","v":434},null,null,null,null,{"$f":"SUBTOTAL(9, H5:H9999)","v":271},{"$f":"SUBTOTAL(9, I5:I9999)","v":201},{"$f":"SUBTOTAL(9, J5:J9999)","v":180},163,92,158,178,192,212,214]
["Space Type","Lot / Garage","Sum of Inventory","Sum of Min #","Sum of Min %","Sum of Max #","Sum of Max %","Sum of 8am","Sum of 9am","Sum of 10am","Sum of 11am","Sum of 12pm","Sum of 1pm","Sum of 2pm","Sum of 3pm","Sum of 4pm","Sum of 5pm"]
["Electric Vehicle"]
[null,8980,18,0,0,18,1,18,15,18,17,15,0,18,18,18,18]
[null,"Arbor",12,2,0.16666666666666666,10,0.83333333333333337,5,3,2,2,7,7,8,9,8,10]
[null,"Athena",43,10,0.23255813953488372,21,0.48837209302325579,21,20,19,17,12,10,13,16,18,18]
[null,"Campus Point East",3,0,0,2,0.66666666666666663,0,1,1,0,0,0,1,0,1,2]
[null,"Campus Point West",6,0,0,2,0.33333333333333331,0,0,1,0,0,0,1,0,2,1]
[null,"First Ave",30,2,6.6666666666666666E-2,20,0.66666666666666663,18,11,10,7,7,12,3,2,15,20]
[null,"Gilman",32,0,0,12,0.375,12,8,0,1,1,0,2,5,11,12]
[null,"Hopkins",20,2,0.1,18,0.9,18,15,4,4,2,4,4,3,3,9]
[null,"Nuevo West/Vela",34,4,0.11764705882352941,13,0.38235294117647056,13,6,6,6,4,5,5,6,6,7]
[null,"P001",10,6,0.6,10,1,9,8,6,7,7,6,6,7,9,10]
[null,"P004",1,0,0,0,0,0,0,0,0,0,0,0,0,0,0]
[null,"P007",8,0,0,8,1,8,8,1,0,2,1,2,5,7,6]
[null,"P013",2,0,0,2,1,2,2,2,0,2,2,2,2,2,2]
[null,"P014",2,1,0.5,2,1,2,2,2,2,2,2,2,2,1,2]
[null,"P017",2,0,0,2,1,1,2,0,2,2,2,2,2,2,1]
[null,"P206",2,0,0,2,1,0,2,0,0,0,0,0,0,1,1]
[null,"P357",10,0,0,6,0.6,6,2,1,0,0,0,1,1,3,2]
[null,"P507",2,1,0.5,2,1,2,2,1,2,2,2,2,2,2,2]
[null,"P602",4,0,0,1,0.25,1,0,1,0,0,0,0,0,1,0]
[null,"P610",6,0,0,5,0.83333333333333337,5,0,0,0,1,0,1,2,2,0]
[null,"P703",12,0,0,9,0.75,9,0,0,0,6,3,4,5,7,0]
[null,"P707",2,0,0,2,1,0,0,0,0,2,2,2,2,2,0]
[null,"P751",0,0,{"$error":"#DIV/0!"},0,{"$error":"#DIV/0!"},0,0,0,0,0,0,0,0,0,0]
[null,"Pangea",4,1,0.25,3,0.75,2,3,3,1,2,1,2,2,3,3]
[null,"Scholars",30,3,0.1,6,0.2,4,6,6,5,3,5,3,4,5,4]
[null,"South",32,0,0,11,0.34375,11,5,3,0,2,2,3,3,10,9]
[null,"TDLLN",97,5,5.1546391752577317E-2,95,0.97938144329896903,95,72,86,83,5,86,86,90,67,65]
[null,"Torrey Pines Center South",10,4,0.4,10,1,9,8,7,7,6,6,5,4,6,10]

{"sheet":"ADA By Location","index":10,"n_rows":86,"n_cols":17,"rows_kept":86,"cut":false,"hidden":false,"merged":[[1,3,2,6]]}
["Space Type","Location","Stall\nInventory","Min # of Open Stalls","Min % of Open Stalls","Max # of Open Stalls","Max % of Open Stalls","Open Stalls\n@ 8am","Open Stalls\n@ 9am","Open Stalls\n@ 10am","Open Stalls\n@ 11am","Open Stalls\n@ 12pm","Open Stalls\n@ 1pm","Open Stalls\n@ 2pm","Open Stalls\n@ 3pm","Open Stalls\n@ 4pm","Open Stalls\n@ 5pm"]
["% Open Stalls",null,null,"(Min and Max values from varying hours)",null,null,null,{"$f":"H3/$C3","v":0.30240963855421688},0.24578313253012049,0.22650602409638554,0.19518072289156627,0.21566265060240963,0.21084337349397592,0.24698795180722891,0.32048192771084338,0.42168674698795183,0.43493975903614457]
["# Open Stalls",null,{"$f":"SUBTOTAL(9, C5:C9999)","v":830},null,null,null,null,{"$f":"SUBTOTAL(9, H5:H9999)","v":251},{"$f":"SUBTOTAL(9, I5:I9999)","v":204},{"$f":"SUBTOTAL(9, J5:J9999)","v":188},162,179,175,205,266,350,361]
["Space Type","Lot / Garage","Sum of Inventory","Sum of Min #","Sum of Min %","Sum of Max #","Sum of Max %","Sum of 8am","Sum of 9am","Sum of 10am","Sum of 11am","Sum of 12pm","Sum of 1pm","Sum of 2pm","Sum of 3pm","Sum of 4pm","Sum of 5pm"]
["Accessible"]
[null,8980,7,6,0.8571428571428571,7,1,7,6,6,6,6,7,7,7,7,7]
[null,"Arbor",15,0,0,15,1,5,0,0,0,0,0,0,0,13,15]
[null,"Athena",81,12,0.14814814814814814,37,0.4567901234567901,37,18,13,12,24,17,27,29,33,32]
[null,"Campus Point East",12,0,0,11,0.91666666666666663,3,3,2,2,1,0,0,8,10,11]
[null,"Campus Point West",104,0,0,16,0.15384615384615385,3,1,2,0,0,0,0,8,15,16]
[null,"First Ave",50,11,0.22,45,0.9,20,16,26,11,23,23,20,32,39,45]
[null,"Gilman",43,0,0,22,0.51162790697674421,0,0,0,0,3,3,11,13,13,22]
[null,"Hopkins",24,14,0.58333333333333337,23,0.95833333333333337,22,20,19,18,17,16,14,17,23,23]
[null,"Nuevo West/Vela",19,8,0.42105263157894735,13,0.68421052631578949,10,12,12,13,11,8,10,12,12,12]
[null,"P001",1,0,0,1,1,1,1,0,0,0,0,1,1,1,1]
[null,"P002",2,1,0.5,2,1,2,1,1,1,1,1,1,2,2,2]
[null,"P003",2,0,0,1,0.5,0,1,0,1,0,1,1,1,1,0]
[null,"P005",1,0,0,1,1,1,1,0,1,0,0,0,1,1,1]
[null,"P006",1,1,1,1,1,1,1,1,1,1,1,1,1,1,1]
[null,"P007",3,1,0.33333333333333331,1,0.33333333333333331,1,1,1,1,1,1,1,1,1,1]
[null,"P008",3,0,0,1,0.33333333333333331,1,0,0,0,0,0,0,0,0,1]
[null,"P010",1,0,0,1,1,1,1,0,0,0,1,1,1,1,1]
[null,"P011",2,0,0,2,1,1,1,2,2,0,2,1,2,1,2]
[null,"P012",1,0,0,1,1,1,0,0,0,0,1,1,1,0,1]
[null,"P013",1,1,1,1,1,1,1,1,1,1,1,1,1,1,1]
[null,"P014",4,2,0.5,4,1,4,4,2,4,3,3,4,4,2,3]
[null,"P016",2,1,0.5,2,1,2,1,2,2,2,2,2,2,2,2]
[null,"P017",9,0,0,9,1,8,5,7,6,0,5,5,9,5,7]
[null,"P101",12,0,0,7,0.58333333333333337,2,0,0,0,0,0,1,0,6,7]
[null,"P106",1,0,0,1,1,1,0,0,1,0,0,0,0,0,0]
[null,"P113",2,0,0,1,0.5,0,0,0,0,1,0,0,0,0,0]
[null,"P201",3,0,0,2,0.66666666666666663,2,2,0,0,0,0,1,2,2,2]
[null,"P202",3,0,0,1,0.33333333333333331,0,0,0,0,0,0,1,1,1,0]
[null,"P206",6,0,0,3,0.5,3,3,2,0,0,2,2,2,3,3]
[null,"P303",6,2,0.33333333333333331,6,1,6,4,3,2,4,4,4,4,5,6]
[null,"P304",2,0,0,2,1,0,0,0,0,0,0,0,1,1,2]
[null,"P306",3,0,0,1,0.33333333333333331,0,1,0,1,0,0,0,0,1,0]
[null,"P310",2,0,0,2,1,2,0,1,1,2,2,2,2,2,2]
[null,"P352",1,1,1,1,1,1,1,1,1,1,1,1,1,1,1]
[null,"P353",4,0,0,1,0.25,0,0,1,1,0,0,1,0,1,1]
[null,"P354",4,0,0,1,0.25,0,1,0,1,0,0,0,0,0,1]
[null,"P357",5,0,0,4,0.8,4,3,2,1,0,0,1,2,4,3]
[null,"P385",10,5,0.5,8,0.8,8,8,7,6,5,5,5,5,6,6]
[null,"P401",1,0,0,1,1,1,0,0,0,0,0,0,0,0,0]
[null,"P402",3,0,0,0,0,0,0,0,0,0,0,0,0,0,0]
[null,"P406",2,0,0,1,0.5,1,1,1,1,0,1,1,1,0,0]
[null,"P415",1,0,0,1,1,0,0,0,0,0,0,0,0,1,1]
[null,"P416",23,0,0,14,0.60869565217391308,5,0,0,0,3,3,4,4,12,14]
[null,"P418",6,0,0,3,0.5,2,3,1,2,1,1,2,0,0,3]
[null,"P501",5,0,0,5,1,0,1,0,0,4,5,5,5,5,5]
[null,"P503",6,0,0,3,0.5,3,2,2,1,0,0,0,1,2,3]
[null,"P504",6,0,0,2,0.33333333333333331,1,1,0,0,1,1,0,0,1,2]
[null,"P506",2,0,0,2,1,2,2,0,0,2,2,2,2,2,2]
[null,"P507",9,0,0,7,0.77777777777777779,0,0,0,0,2,2,2,5,7,7]
[null,"P508",10,0,0,0,0,0,0,0,0,0,0,0,0,0,0]
[null,"P601",10,0,0,3,0.3,2,0,0,1,0,0,0,1,3,0]
[null,"P602",4,0,0,3,0.75,0,0,0,0,0,0,0,3,3,0]
[null,"P603",18,0,0,5,0.27777777777777779,0,0,0,0,0,0,0,1,5,0]
[null,"P604",4,0,0,0,0,0,0,0,0,0,0,0,0,0,0]
[null,"P605",1,0,0,1,1,0,0,0,0,0,0,1,1,1,0]
[null,"P606",2,0,0,2,1,0,0,0,0,1,0,1,2,1,0]
[null,"P608",2,0,0,0,0,0,0,0,0,0,0,0,0,0,0]
[null,"P610",5,0,0,2,0.4,0,0,0,0,0,0,0,2,1,0]
[null,"P702",6,0,0,5,0.83333333333333337,0,5,0,0,0,4,3,4,4,0]
[null,"P703",11,0,0,8,0.72727272727272729,8,0,0,0,5,0,6,6,6,0]
[null,"P706",4,0,0,2,0.5,0,2,0,0,1,2,1,2,2,0]
[null,"P707",7,0,0,6,0.8571428571428571,0,0,6,0,4,3,4,5,5,0]
[null,"P751",4,0,0,0,0,0,0,0,0,0,0,0,0,0,0]
[null,"P752",2,0,0,2,1,2,2,2,1,2,2,2,0,1,1]
[null,"P753",2,0,0,2,1,2,1,1,1,1,2,2,0,0,0]
[null,"P758",2,0,0,2,1,2,2,0,2,2,0,2,1,0,0]
[null,"P759",9,0,0,3,0.33333333333333331,1,0,1,1,1,0,1,1,3,3]
[null,"P760",11,0,0,5,0.45454545454545453,2,3,1,0,1,2,1,3,5,5]
[null,"P784",18,0,0,8,0.44444444444444442,7,3,3,0,2,1,3,1,8,5]
[null,"P785",8,0,0,4,0.5,3,2,2,0,0,0,0,4,4,4]
[null,"P953",3,0,0,2,0.66666666666666663,0,0,0,0,0,2,0,0,0,0]
[null,"P954",3,0,0,2,0.66666666666666663,0,0,0,0,0,0,0,1,1,2]
[null,"P955",1,0,0,1,1,1,0,0,0,0,0,0,0,1,1]
[null,"P957",7,0,0,2,0.2857142857142857,0,0,0,0,1,1,0,0,2,2]
[null,"P964",11,0,0,5,0.45454545454545453,0,0,0,0,0,1,1,3,5,5]
[null,"Pangea",17,5,0.29411764705882354,9,0.52941176470588236,7,9,9,9,6,6,5,8,8,8]
[null,"Scholars",65,7,0.1076923076923077,29,0.44615384615384618,14,29,24,23,19,7,7,12,12,23]
[null,"South",24,0,0,8,0.33333333333333331,4,6,4,0,0,0,0,2,8,8]
[null,"TDLLN",22,3,0.13636363636363635,15,0.68181818181818177,10,4,8,15,6,13,13,3,4,3]
[null,"Torrey Pines Center North",5,2,0.4,3,0.6,2,2,3,3,2,2,2,2,2,3]
[null,"Torrey Pines Center South",16,5,0.3125,10,0.625,8,6,6,5,5,5,6,7,8,10]

{"sheet":"Reserved By Location","index":11,"n_rows":66,"n_cols":17,"rows_kept":66,"cut":false,"hidden":false,"merged":[[1,3,2,6]]}
["Space Type","Location","Stall\nInventory","Min # of Open Stalls","Min % of Open Stalls","Max # of Open Stalls","Max % of Open Stalls","Open Stalls\n@ 8am","Open Stalls\n@ 9am","Open Stalls\n@ 10am","Open Stalls\n@ 11am","Open Stalls\n@ 12pm","Open Stalls\n@ 1pm","Open Stalls\n@ 2pm","Open Stalls\n@ 3pm","Open Stalls\n@ 4pm","Open Stalls\n@ 5pm"]
["% Open Stalls",null,null,"(Min and Max values from varying hours)",null,null,null,{"$f":"H3/$C3","v":0},0,0,0,0,0,0,0,0,0]
["# Open Stalls",null,{"$f":"SUBTOTAL(9, C5:C9999)","v":1147},null,null,null,null,{"$f":"SUBTOTAL(9, H5:H9999)","v":0},{"$f":"SUBTOTAL(9, I5:I9999)","v":0},{"$f":"SUBTOTAL(9, J5:J9999)","v":0},0,0,0,0,0,0,0]
["Space Type","Lot / Garage","Sum of Inventory","Sum of Min #","Sum of Min %","Sum of Max #","Sum of Max %","Sum of 8am","Sum of 9am","Sum of 10am","Sum of 11am","Sum of 12pm","Sum of 1pm","Sum of 2pm","Sum of 3pm","Sum of 4pm","Sum of 5pm"]
["Reserved"]
[null,8980,5,0,0,0,0,0,0,0,0,0,0,0,0,0,0]
[null,"Arbor",19,0,0,0,0,0,0,0,0,0,0,0,0,0,0]
[null,"Athena",214,0,0,0,0,0,0,0,0,0,0,0,0,0,0]
[null,"Campus Point East",167,0,0,0,0,0,0,0,0,0,0,0,0,0,0]
[null,"Campus Point West",28,0,0,0,0,0,0,0,0,0,0,0,0,0,0]
[null,"Curb",8,0,0,0,0,0,0,0,0,0,0,0,0,0,0]
[null,"Gilman",43,0,0,0,0,0,0,0,0,0,0,0,0,0,0]
[null,"Hopkins",10,0,0,0,0,0,0,0,0,0,0,0,0,0,0]
[null,"Nuevo West/Vela",1,0,0,0,0,0,0,0,0,0,0,0,0,0,0]
[null,"P001",2,0,0,0,0,0,0,0,0,0,0,0,0,0,0]
[null,"P014",0,0,{"$error":"#DIV/0!"},0,{"$error":"#DIV/0!"},0,0,0,0,0,0,0,0,0,0]
[null,"P101",1,0,0,0,0,0,0,0,0,0,0,0,0,0,0]
[null,"P106",6,0,0,0,0,0,0,0,0,0,0,0,0,0,0]
[null,"P113",4,0,0,0,0,0,0,0,0,0,0,0,0,0,0]
[null,"P202",1,0,0,0,0,0,0,0,0,0,0,0,0,0,0]
[null,"P203",5,0,0,0,0,0,0,0,0,0,0,0,0,0,0]
[null,"P303",5,0,0,0,0,0,0,0,0,0,0,0,0,0,0]
[null,"P306",4,0,0,0,0,0,0,0,0,0,0,0,0,0,0]
[null,"P351",10,0,0,0,0,0,0,0,0,0,0,0,0,0,0]
[null,"P354",1,0,0,0,0,0,0,0,0,0,0,0,0,0,0]
[null,"P357",2,0,0,0,0,0,0,0,0,0,0,0,0,0,0]
[null,"P385",11,0,0,0,0,0,0,0,0,0,0,0,0,0,0]
[null,"P402",4,0,0,0,0,0,0,0,0,0,0,0,0,0,0]
[null,"P405",1,0,0,0,0,0,0,0,0,0,0,0,0,0,0]
[null,"P414",3,0,0,0,0,0,0,0,0,0,0,0,0,0,0]
[null,"P415",8,0,0,0,0,0,0,0,0,0,0,0,0,0,0]
[null,"P416",44,0,0,0,0,0,0,0,0,0,0,0,0,0,0]
[null,"P502",7,0,0,0,0,0,0,0,0,0,0,0,0,0,0]
[null,"P503",23,0,0,0,0,0,0,0,0,0,0,0,0,0,0]
[null,"P504",7,0,0,0,0,0,0,0,0,0,0,0,0,0,0]
[null,"P505",4,0,0,0,0,0,0,0,0,0,0,0,0,0,0]
[null,"P508",16,0,0,0,0,0,0,0,0,0,0,0,0,0,0]
[null,"P509",1,0,0,0,0,0,0,0,0,0,0,0,0,0,0]
[null,"P510",3,0,0,0,0,0,0,0,0,0,0,0,0,0,0]
[null,"P602",90,0,0,0,0,0,0,0,0,0,0,0,0,0,0]
[null,"P603",44,0,0,0,0,0,0,0,0,0,0,0,0,0,0]
[null,"P605",8,0,0,0,0,0,0,0,0,0,0,0,0,0,0]
[null,"P606",6,0,0,0,0,0,0,0,0,0,0,0,0,0,0]
[null,"P608",1,0,0,0,0,0,0,0,0,0,0,0,0,0,0]
[null,"P610",22,0,0,0,0,0,0,0,0,0,0,0,0,0,0]
[null,"P703",2,0,0,0,0,0,0,0,0,0,0,0,0,0,0]
[null,"P707",6,0,0,0,0,0,0,0,0,0,0,0,0,0,0]
[null,"P751",0,0,{"$error":"#DIV/0!"},0,{"$error":"#DIV/0!"},0,0,0,0,0,0,0,0,0,0]
[null,"P752",24,0,0,0,0,0,0,0,0,0,0,0,0,0,0]
[null,"P753",32,0,0,0,0,0,0,0,0,0,0,0,0,0,0]
[null,"P757",0,0,{"$error":"#DIV/0!"},0,{"$error":"#DIV/0!"},0,0,0,0,0,0,0,0,0,0]
[null,"P758",5,0,0,0,0,0,0,0,0,0,0,0,0,0,0]
[null,"P759",17,0,0,0,0,0,0,0,0,0,0,0,0,0,0]
[null,"P760",1,0,0,0,0,0,0,0,0,0,0,0,0,0,0]
[null,"P784",9,0,0,0,0,0,0,0,0,0,0,0,0,0,0]
[null,"P953",7,0,0,0,0,0,0,0,0,0,0,0,0,0,0]
[null,"P954",25,0,0,0,0,0,0,0,0,0,0,0,0,0,0]
[null,"P955",21,0,0,0,0,0,0,0,0,0,0,0,0,0,0]
[null,"P957",67,0,0,0,0,0,0,0,0,0,0,0,0,0,0]
[null,"P964",37,0,0,0,0,0,0,0,0,0,0,0,0,0,0]
[null,"Pangea",7,0,0,0,0,0,0,0,0,0,0,0,0,0,0]
[null,"Scholars",29,0,0,0,0,0,0,0,0,0,0,0,0,0,0]
[null,"South",5,0,0,0,0,0,0,0,0,0,0,0,0,0,0]
[null,"TDLLN",0,0,{"$error":"#DIV/0!"},0,{"$error":"#DIV/0!"},0,0,0,0,0,0,0,0,0,0]
[null,"Torrey Pines Center North",10,0,0,0,0,0,0,0,0,0,0,0,0,0,0]
[null,"Torrey Pines Center South",4,0,0,0,0,0,0,0,0,0,0,0,0,0,0]